Workbook

Sheet Least_5DV_e^x Least
A1: Synthesize | I1: =PI()/180 -> 0.01745329252
A2: ^y=e^x | C2: 0<x<1 | L2: Optimal Synthesis of Function Generators Without the Branch Defect
L3: Tinunu&Gupta
B4: qin | C4: 87.51071063 | D4: =C4*D_R -> 1.527350031 | L4: Transactions of the ASME | N4: Vol. 106, SEPTEMBER 1984
B5: fin | C5: 24.88197971 | D5: =C5*D_R -> 0.4342724704 | N5: qin | O5: 30
N6: fin | O6: 348.5001421 | P6: 310
B7: Dq | C7: 120 | D7: 120 | E7: =D7*D_R -> 2.094395102 | N7: qin | O7: 30
B8: Df | C8: 100 | D8: =C8/(EXP(1)-1) -> 58.19767069 | E8: =D8*D_R -> 1.01574097 | N8: fin | O8: 177.5664523 | P8: 100 | AB8: f is variable
AB9: qin | AC9: 80
B10: y=log(X) | C10: y(required) | AB10: fin | AC10: 132.6195193
B11: x | D11: q | E11: f | G11: q | H11: f | J11: cosf | K11: cosq | L11: cos(f-q) | M11: cos2f | N11: cos2q | O11: cosfcosq | P11: cosq*cos(f-q) | Q11: cosf*cos(f-q)
B12: 0 | C12: =EXP(B12) -> 1 | D12: =(B12-$B$12)*$D$7+$C$4 -> 87.51071063 | E12: =$C$5+$D$8*(C12-1) -> 24.88197971 | G12: =D12*D_R -> 1.527350031 | H12: =E12*D_R -> 0.4342724704 | J12: =COS(H12) -> 0.9071763908 | K12: =COS(G12) -> 0.04343262874 | L12: =COS(H12-G12) -> 0.4597545327 | M12: =J12^2 -> 0.8229690041 | N12: =K12^2 -> 0.001886393239 | O12: =J12*K12 -> 0.03940105538 | P12: =L12*K12 -> 0.01996834793 | Q12: =J12*L12 -> 0.4170784576 | S12: =(-SIN(G12)*$C$31-SIN(H12-G12))*($C$30*COS(H12)-$C$31*COS(G12)+$C$32-COS(H12-G12)) -> -0.001909038949 | T12: =(-SIN(H12)*$C$30+SIN(H12-G12))*($C$30*COS(H12)-$C$31*COS(G12)+$C$32-COS(H12-G12)) -> 0.00123713127
B13: 0.1 | C13: =EXP(B13) -> 1.105170918 | D13: =(B13-$B$12)*$D$7+$C$4 -> 99.51071063 | E13: =$C$5+$D$8*(C13-1) -> 31.00268217 | G13: 1.736789542 | H13: 0.5410988808 | J13: =COS(H13) -> 0.8571431895 | K13: =COS(G13) -> -0.1652319751 | L13: =COS(H13-G13) -> 0.3663708501 | M13: =J13^2 -> 0.7346944472 | N13: 0.02730160558 | O13: =J13*K13 -> -0.1416274621 | P13: =L13*K13 -> -0.06053617916 | Q13: =J13*L13 -> 0.314032279 | S13: =(-SIN(G13)*$C$31-SIN(H13-G13))*($C$30*COS(H13)-$C$31*COS(G13)+$C$32-COS(H13-G13)) -> 0.002129540281 | T13: =(-SIN(H13)*$C$30+SIN(H13-G13))*($C$30*COS(H13)-$C$31*COS(G13)+$C$32-COS(H13-G13)) -> -0.001400814148
B14: 0.2 | C14: 1.221402758 | D14: 111.5107106 | E14: 37.76710452 | G14: 1.946229052 | H14: 0.6591603228 | J14: 0.7905067732 | K14: -0.3666751487 | L14: 0.2799361485 | M14: 0.6249009584 | N14: 0.1344506646 | O14: -0.2898591886 | P14: -0.1026456289 | Q14: 0.2212914214 | S14: 0.002390760075 | T14: -0.001609340672
B15: 0.3 | C15: 1.349858808 | D15: 123.5107106 | E15: 45.24294738 | G15: 2.155668562 | H15: 0.7896383951 | J15: 0.7041021368 | K15: -0.5520928588 | L15: 0.2033382106 | M15: 0.4957598191 | N15: 0.3048065247 | O15: -0.3887297616 | P15: -0.112261574 | Q15: 0.1431708686 | S15: 0.0004642625836 | T15: -0.0003227664048
B16: 0.4 | C16: 1.491824698 | D16: 135.5107106 | E16: 53.5050315 | G16: 2.365108072 | H16: 0.9338389661 | J16: 0.5947521928 | K16: -0.7133814617 | L16: 0.1390749454 | M16: 0.3537301708 | N16: 0.5089131099 | O16: -0.4242851886 | P16: -0.09921348782 | Q16: 0.08271512872 | S16: -0.001736478099 | T16: 0.001259841009
B17: 0.5 | C17: 1.648721271 | D17: 147.5107106 | E17: 62.63604659 | G17: 2.574547582 | H17: 1.093205243 | J17: 0.4596411409 | K17: -0.8434918716 | L17: 0.08933473346 | M17: 0.2112699784 | N17: 0.7114785375 | O17: -0.3877035662 | P17: -0.07535312153 | Q17: 0.04106191881 | S17: -0.002686035324 | T17: 0.002057208924
B18: 0.6 | C18: 1.8221188 | D18: 159.5107106 | E18: 72.72737892 | G18: 2.783987093 | H18: 1.269332219 | J18: 0.2969186055 | K18: -0.9367376392 | L18: 0.05611196558 | M18: 0.08816065827 | N18: 0.8774774046 | O18: -0.2781348335 | P18: -0.05256219016 | Q18: 0.01666068657 | S18: -0.001768141809 | T18: 0.001447368947
B19: 0.7 | C19: 2.013752707 | D19: 171.5107106 | E19: 83.88002594 | G19: 2.993426603 | H19: 1.463982629 | J19: 0.1066107041 | K19: -0.9890434769 | L19: 0.04134056861 | M19: 0.01136584223 | N19: 0.9782069993 | O19: -0.1054426215 | P19: -0.04088761971 | Q19: 0.004407347128 | S19: 0.0005098140208 | T19: -0.0004517548418
B20: 0.8 | C20: 2.225540928 | D20: 183.5107106 | E20: 96.20560708 | G20: 3.202866113 | H20: 1.679104602 | J20: -0.1080966448 | K20: -0.9981233688 | L20: 0.04701747566 | M20: 0.01168488462 | N20: 0.9962502594 | O20: 0.1078937873 | P20: -0.0469292412 | Q20: -0.005082431367 | S20: 0.00262587073 | T20: -0.002550160725
B21: 0.9 | C21: 2.459603111 | D21: 195.5107106 | E21: 109.8274809 | G21: 3.412305623 | H21: 1.916851151 | J21: -0.3391891581 | K21: -0.96358048 | L21: 0.07527059626 | M21: 0.115049285 | N21: 0.9284873414 | O21: 0.3268360518 | P21: -0.07252927727 | Q21: -0.02553097018 | S21: 0.002408646995 | T21: -0.002592615507
B22: 1 | C22: 2.718281828 | D22: 207.5107106 | E22: =$C$5+$D$8*(C22-1) -> 124.8819797 | G22: 3.621745134 | H22: 2.179601722 | J22: -0.5718878964 | K22: -0.8869245003 | L22: 0.1282983077 | M22: 0.3270557661 | N22: 0.7866350693 | O22: 0.5072213868 | P22: -0.1137909125 | Q22: -0.07337224933 | S22: -0.002429201088 | T22: 0.002925900902
J24: =SUM(J12:J22) -> 3.697677434 | K24: =SUM(K12:K22) -> -7.371850152 | L24: =SUM(L12:L22) -> 1.885848335 | M24: =SUM(M12:M22) -> 3.796640814 | N24: =SUM(N12:N22) -> 6.25589391 | O24: -1.034430341 | P24: -0.7567408843 | Q24: 1.136432457 | S24: =SUM(S12:S22) -> -5.825258088e-10 | T24: =SUM(T12:T22) -> -1.246256809e-09
C26: =M24 -> 3.796640814 | D26: =-O24 -> 1.034430341 | E26: =J24 -> 3.697677434 | G26: =Q24 -> 1.136432457 | M26: =M27/D_R -> 305.4098293
C27: =O24 -> -1.034430341 | D27: =-N24 -> -6.25589391 | E27: =K24 -> -7.371850152 | G27: =P24 -> -0.7567408843 | K27: 75 | L27: =K27*D_R -> 1.308996939 | M27: =FourBar(ABS(F31),F32,ABS(F33),F30,-1,L27+PI()) -> 5.33040709
C28: =J24 -> 3.697677434 | D28: =-K24 -> 7.371850152 | E28: 11 | G28: =L24 -> 1.885848335
K29: 4 Design Parameter
B30: K1 | C30: =MMULT(MINVERSE(C26:E28),G26:G28) -> -0.05568469959 | E30: a1 | F30: 1 | I30: d1 | J30: =S24 -> -5.825258088e-10 | L30: fin
B31: K2 | C31: -0.4465805176 | E31: a2 | F31: =F30/C30 -> -17.95825437 | G31: =-F31 -> 17.95825437 | I31: d2 | J31: =T24 -> -1.246256809e-09
B32: K3 | C32: 0.489443368 | E32: a3 | F32: =SQRT(F30^2+F31^2+F33^2-2*C32*F31*F33) -> 17.00439081 | I32: d | J32: =SQRT(J30^2+J31^2) -> 1.375678869e-09
E33: a4 | F33: =F30/C31 -> -2.239237854 | G33: =-F33 -> 2.239237854
I34: =MIN(J37:J55) -> -0.00162844792 | K34: =SQRT(SUM(L37:L47)) -> 0
F35: Generated by Four-Bar | I35: =MAX(J37:J55) -> 0.00206751546 | J35: =MAX(-I34,I35) -> 0.00206751546 | K35: =SQRT(SUM(K37:K55)) -> 0.005921363305
B36: x | C36: q | F36: f | H36: ygen | I36: yactual | J36: e
B37: 0 | C37: =(B37-$B$37)*$D$7+$C$4 -> 87.51071063 | D37: =C37*D_R+PI() -> 4.668942685 | E37: =FourBar($G$31,$F$32,$G$33,$F$30,1,D37) -> 3.574211043 | F37: =E37/D_R-180 -> 24.78720784 | H37: =(F37-$C$5)/$D$8+1 -> 0.9983715521 | I37: =EXP(B37) -> 1 | J37: =-I37+H37 -> -0.00162844792 | K37: =J37^2 -> 2.651842628e-06
B38: 0.02 | C38: =(B38-$B$37)*$D$7+$C$4 -> 89.91071063 | D38: 4.710830587 | E38: =FourBar($G$31,$F$32,$G$33,$F$30,1,D38) -> 3.595743354 | F38: 26.02091841 | H38: =(F38-$C$5)/$D$8+1 -> 1.019570177 | I38: =EXP(B38) -> 1.02020134 | J38: =-I38+H38 -> -0.0006311632634 | K38: =J38^2 -> 3.983670651e-07
B39: 0.04 | C39: 92.31071063 | D39: 4.752718489 | E39: 3.617507549 | F39: 27.26791493 | H39: 1.040997091 | I39: 1.040810774 | J39: 0.0001863170501 | K39: 3.471404314e-08
B40: 0.06 | C40: 94.71071063 | D40: 4.794606391 | E40: 3.63952605 | F40: 28.52948211 | H40: 1.062674371 | I40: 1.061836547 | J40: 0.0008378243699 | K40: 7.019496748e-07
B41: 0.08 | C41: 97.11071063 | D41: 4.836494293 | E41: 3.661821092 | F41: 29.80689392 | H41: 1.084623906 | I41: 1.083287068 | J41: 0.001336838192 | K41: 1.787136352e-06
B42: 0.1 | C42: 99.51071063 | D42: 4.878382195 | E42: 3.68441477 | F42: 31.10141631 | H42: 1.106867449 | I42: 1.105170918 | J42: 0.001696530793 | K42: 2.878216732e-06
B43: 0.12 | C43: 101.9107106 | D43: 4.920270097 | E43: 3.707329081 | F43: 32.41430959 | H43: 1.129426656 | I43: 1.127496852 | J43: 0.001929804046 | K43: 3.724143656e-06
B44: 0.14 | C44: 104.3107106 | D44: 4.962157999 | E44: 3.730585955 | F44: 33.74683034 | H44: 1.152323117 | I44: 1.150273799 | J44: 0.002049318591 | K44: 4.199706685e-06
B45: 0.16 | C45: 106.7107106 | D45: 5.004045901 | E45: 3.754207285 | F45: 35.10023283 | H45: 1.175578386 | I45: 1.173510871 | J45: 0.00206751546 | K45: 4.274620177e-06
B46: 0.18 | C46: 109.1107106 | D46: 5.045933803 | E46: 3.778214939 | F46: 36.47577009 | H46: 1.199213993 | I46: 1.197217363 | J46: 0.001996630211 | K46: 3.986532201e-06
B47: 0.2 | C47: 111.5107106 | D47: 5.087821705 | E47: 3.802630776 | F47: 37.87469453 | H47: 1.223251458 | I47: 1.221402758 | J47: 0.001848699557 | K47: 3.417690052e-06
B48: 0.22 | C48: 113.9107106 | D48: 5.129709607 | E48: 3.827476647 | F48: 39.29825805 | H48: 1.247712291 | I48: 1.246076731 | J48: 0.001635560456 | K48: 2.675058005e-06
B49: 0.24 | C49: 116.3107106 | D49: 5.171597509 | E49: 3.852774388 | F49: 40.74771183 | H49: 1.272617992 | I49: 1.27124915 | J49: 0.001368841589 | K49: 1.873727295e-06
B50: 0.26 | C50: 118.7107106 | D50: 5.213485411 | E50: 3.87854581 | F50: 42.22430557 | H50: 1.297990034 | I50: 1.296930087 | J50: 0.001059947126 | K50: 1.123487911e-06
B51: 0.28 | C51: 121.1107106 | D51: 5.255373314 | E51: 3.90481268 | F51: 43.72928634 | H51: 1.323849845 | I51: 1.323129812 | J51: 0.0007200326889 | K51: 5.184470731e-07
B52: 0.3 | C52: 123.5107106 | D52: 5.297261216 | E52: 3.931596688 | F52: 45.263897 | H52: 1.350218781 | I52: 1.349858808 | J52: 0.0003599734075 | K52: 1.295808541e-07
B53: 0.32 | C53: 125.9107106 | D53: 5.339149118 | E53: 3.958919417 | F53: 46.82937403 | H53: 1.377118088 | I53: 1.377127764 | J53: -9.675986635e-06 | K53: 9.362471737e-11
B54: 0.34 | C54: 128.3107106 | D54: 5.38103702 | E54: 3.986802292 | F54: 48.42694508 | H54: 1.404568861 | I54: 1.404947591 | J54: -0.0003787290761 | K54: 1.434357131e-07
B55: 0.36 | C55: 130.7107106 | D55: 5.422924922 | E55: 4.015266533 | F55: 50.05782594 | H55: 1.432591991 | I55: 1.433329415 | J55: -0.0007374236523 | K55: 5.43793643e-07
B56: 0.38 | C56: =(B56-$B$37)*$D$7+$C$4 -> 133.1107106 | D56: 5.464812824 | E56: 4.044333091 | F56: 51.72321706 | H56: 1.461208104 | I56: 1.462284589 | J56: -0.001076485499 | K56: 1.158821031e-06
B57: 0.4 | C57: 135.5107106 | D57: 5.506700726 | E57: 4.074022584 | F57: 53.4242997 | H57: 1.490437498 | I57: 1.491824698 | J57: -0.001387199883 | K57: 1.924323516e-06
B58: 0.42 | C58: 137.9107106 | D58: 5.548588628 | E58: 4.104355217 | F58: 55.16223156 | H58: 1.520300065 | I58: 1.521961556 | J58: -0.001661490455 | K58: 2.760550532e-06
B59: 0.44 | C59: 140.3107106 | D59: 5.59047653 | E59: 4.135350703 | F59: 56.93814211 | H59: 1.550815213 | I59: 1.552707219 | J59: -0.001892005163 | K59: 3.579683538e-06
B60: 0.46 | C60: 142.7107106 | D60: 5.632364432 | E60: 4.167028173 | F60: 58.75312743 | H60: 1.582001776 | I60: 1.584073985 | J60: -0.002072208617 | K60: 4.294048552e-06
B61: 0.48 | C61: 145.1107106 | D61: 5.674252334 | E61: 4.19940608 | F61: 60.60824486 | H61: 1.613877922 | I61: 1.616074402 | J61: -0.002196480214 | K61: 4.82452533e-06
B62: 0.5 | C62: 147.5107106 | D62: 5.716140236 | E62: 4.232502102 | F62: 62.50450722 | H62: 1.646461054 | I62: 1.648721271 | J62: -0.002260217173 | K62: 5.108581669e-06
B63: 0.52 | C63: 149.9107106 | D63: 5.758028138 | E63: 4.266333036 | F63: 64.44287694 | H63: 1.679767708 | I63: 1.68202765 | J63: -0.002259941466 | K63: 5.107335428e-06
B64: 0.54 | C64: 152.3107106 | D64: 5.79991604 | E64: 4.300914693 | F64: 66.42425997 | H64: 1.713813453 | I64: 1.716006862 | J64: -0.002193409468 | K64: 4.811045096e-06
B65: 0.56 | C65: 154.7107106 | D65: 5.841803942 | E65: 4.336261793 | F65: 68.4494996 | H65: 1.748612777 | I65: 1.7506725 | J65: -0.002059723022 | K65: 4.242458928e-06
B66: 0.58 | C66: 157.1107106 | D66: 5.883691844 | E66: 4.372387853 | F66: 70.51937035 | H66: 1.78417899 | I66: 1.786038431 | J66: -0.001859440434 | K66: 3.457518727e-06
B67: 0.6 | C67: 159.5107106 | D67: 5.925579746 | E67: 4.409305084 | F67: 72.63457192 | H67: 1.820524115 | I67: 1.8221188 | J67: -0.001594685853 | K67: 2.543022971e-06
B68: 0.62 | C68: 161.9107106 | D68: 5.967467648 | E68: 4.447024292 | F68: 74.79572333 | H68: 1.857658786 | I68: 1.858928042 | J68: -0.001269255357 | K68: 1.611009162e-06
B69: 0.64 | C69: 164.3107106 | D69: =C69*D_R+PI() -> 6.00935555 | E69: 4.485554775 | F69: 77.00335738 | H69: 1.895592161 | I69: 1.896480879 | J69: -0.000888718035 | K69: 7.898197458e-07
B70: 0.66 | C70: 166.7107106 | D70: 6.051243452 | E70: 4.524904238 | F70: 79.25791552 | H70: 1.934331824 | I70: 1.934792334 | J70: -0.0004605103408 | K70: 2.12069774e-07
B71: 0.68 | C71: 169.1107106 | D71: 6.093131354 | E71: 4.565078709 | F71: 81.55974317 | H71: 1.97388371 | I71: 1.973877732 | J71: 5.97797431e-06 | K71: 3.573617685e-11
B72: 0.7 | C72: 171.5107106 | D72: 6.135019257 | E72: 4.606082471 | F72: 83.90908566 | H72: 2.014252035 | I72: 2.013752707 | J72: 0.0004993279704 | K72: 2.493284221e-07
B73: 0.72 | C73: 173.9107106 | D73: 6.176907159 | E73: 4.647918 | F73: 86.3060849 | H73: 2.055439238 | I73: 2.054433211 | J73: 0.001006027151 | K73: 1.012090628e-06
B74: 0.74 | C74: 176.3107106 | D74: 6.218795061 | E74: 4.69058592 | F74: 88.75077668 | H74: 2.097445932 | I74: 2.095935514 | J74: 0.001510417928 | K74: 2.281362318e-06
B75: 0.76 | C75: 178.7107106 | D75: 6.260682963 | E75: 4.734084975 | F75: 91.24308891 | H75: 2.140270881 | I75: 2.13827622 | J75: 0.001994660018 | K75: 3.978668589e-06
B76: 0.78 | C76: 181.1107106 | D76: 6.302570865 | E76: -1.504773302 | F76: =E76/D_R+180 -> 93.78284065 | H76: 2.183910973 | I76: 2.181472265 | J76: 0.00243870759 | K76: 5.947294709e-06
B77: 0.8 | C77: 183.5107106 | D77: 6.344458767 | E77: -1.459623355 | F77: 96.36974207 | H77: 2.22836123 | I77: 2.225540928 | J77: 0.002820301717 | K77: 7.954101775e-06
B78: 0.82 | C78: 185.9107106 | D78: 6.386346669 | E78: -1.413657434 | F78: 99.00339535 | H78: 2.273614816 | I78: 2.270499838 | J78: 0.00311497837 | K78: 9.703090244e-06
B79: 0.84 | C79: 188.3107106 | D79: 6.428234571 | E79: -1.366884337 | F79: 101.6832964 | H79: 2.319663069 | I79: 2.316366977 | J79: 0.003296091852 | K79: 1.08642215e-05
B80: 0.86 | C80: 190.7107106 | D80: 6.470122473 | E80: -1.31931467 | F80: 104.4088376 | H80: 2.366495547 | I80: 2.363160694 | J80: 0.003334853286 | K80: 1.112124644e-05
B81: 0.88 | C81: 193.1107106 | D81: 6.512010375 | E81: -1.270960786 | F81: 107.1793111 | H81: 2.41410009 | I81: 2.410899706 | J81: 0.003200383429 | K81: 1.024245409e-05
B82: 0.9 | C82: 195.5107106 | D82: 6.553898277 | E82: -1.221836708 | F82: 109.9939134 | H82: 2.46246289 | I82: 2.459603111 | J82: 0.002859778817 | K82: 8.178334882e-06
B83: 0.92 | C83: 197.9107106 | D83: 6.595786179 | E83: -1.171958047 | F83: 112.8517501 | H83: 2.51156858 | I83: 2.50929039 | J83: 0.002278189997 | K83: 5.190149664e-06
B84: 0.94 | C84: 200.3107106 | D84: 6.637674081 | E84: -1.121341898 | F84: 115.7518419 | H84: 2.561400329 | I84: 2.559981418 | J84: 0.001418910371 | K84: 2.01330664e-06
B85: 0.96 | C85: 202.7107106 | D85: 6.679561983 | E85: -1.070006737 | F85: 118.6931299 | H85: 2.611939947 | I85: 2.611696473 | J85: 0.0002434740173 | K85: 5.927959712e-08
B86: 0.98 | C86: 205.1107106 | D86: 6.721449885 | E86: -1.017972302 | F86: 121.6744834 | H86: 2.663168003 | I86: 2.664456242 | J86: -0.001288239246 | K86: 1.659560354e-06
B87: 1 | C87: 207.5107106 | D87: 6.763337787 | E87: -0.9652594774 | F87: 124.6947058 | H87: 2.715063935 | I87: 2.718281828 | J87: -0.003217893401 | K87: 1.035483794e-05
O88: Generated by Four-Bar
K89: x | L89: y(required) | M89: q | N89: fg | O89: freqired | P89: y (generated) | Q89: e
K90: 1 | L90: 0 | M90: 30 | N90: 31.25002124 | O90: 30 | P90: 0.01444081163 | Q90: -0.01444081163
K91: 1.1 | L91: 0.0953101798 | M91: 39 | N91: 38.00078726 | O91: 38.25021142 | P91: 0.09242871891 | Q91: 0.002881460895
K92: 1.2 | L92: 0.1823215568 | M92: 48 | N92: 44.86368623 | O92: 45.78206435 | P92: 0.1717120367 | Q92: 0.01060952008
K93: 1.3 | L93: 0.2623642645 | M93: 57 | N93: 51.74521066 | O93: 52.7106974 | P93: 0.2512105243 | Q93: 0.01115374014
K94: 1.4 | L94: 0.3364722366 | M94: 66 | N94: 58.55671384 | O94: 59.12560963 | P94: 0.3299000947 | Q94: 0.006572141875
K95: 1.5 | L95: 0.4054651081 | M95: 75 | N95: 65.20142848 | O95: 65.09775004 | P95: 0.4066628484 | Q95: -0.001197740268
B96: qin | C96: 28 | K96: 1.6 | L96: 0.4700036292 | M96: 84 | N96: 71.55500197 | O96: 70.68431431 | P96: 0.4800622075 | Q96: -0.01005857828
B97: fin | C97: 14 | K97: 1.7 | L97: 0.5306282511 | M97: 93 | N97: 77.42935908 | O97: 75.93208478 | P97: 0.547925442 | Q97: -0.01729719098
K98: 1.8 | L98: 0.5877866649 | M98: 102 | N98: 82.48529441 | O98: 80.87981439 | P98: 0.6063338974 | Q98: -0.01854723246
K99: 1.9 | L99: 0.6418538862 | M99: 111 | N99: 85.93175883 | O99: 85.55996511 | P99: 0.6461490156 | Q99: -0.004295129387
B100: x | C100: y(required) | D100: q | E100: fg | F100: freqired | G100: y (generated) | H100: e | K100: 2 | L100: 0.6931471806 | M100: 120 | N100: 83.94243616 | O100: 90 | P100: 0.623167459 | Q100: 0.06997972156
B101: 1 | C101: 0 | D101: 28 | E101: 13.84887412 | F101: 14 | G101: -0.001745874663 | H101: 0.001745874663
B102: 1.1 | C102: 0.0953101798 | D102: 37 | E102: 22.4425745 | F102: 22.25021142 | G102: 0.09753244518 | H102: -0.00222226538
B103: 1.2 | C103: 0.1823215568 | D103: 46 | E103: 29.74673753 | F103: 29.78206435 | G103: 0.1819134453 | H103: 0.0004081114795
B104: 1.3 | C104: 0.2623642645 | D104: 55 | E104: 36.52276731 | F104: 36.7106974 | G104: 0.2601932109 | H104: 0.002171053526
B105: 1.4 | C105: 0.3364722366 | D105: 64 | E105: 42.93747896 | F105: 43.12560963 | G105: 0.3342988659 | H105: 0.002173370765
B106: 1.5 | C106: 0.4054651081 | D106: 73 | E106: 49.03115155 | F106: 49.09775004 | G106: 0.4046957321 | H106: 0.000769375976
B107: 1.6 | C107: 0.4700036292 | D107: 82 | E107: 54.7954243 | F107: 54.68431431 | G107: 0.4712872222 | H107: -0.001283592953
B108: 1.7 | C108: 0.5306282511 | D108: 91 | E108: 60.1949678 | F108: 59.93208478 | G108: 0.5336651947 | H108: -0.003036943672
B109: 1.8 | C109: 0.5877866649 | D109: 100 | E109: 65.17450984 | F109: 64.87981439 | G109: 0.5911911202 | H109: -0.003404455299
B110: 1.9 | C110: 0.6418538862 | D110: 109 | E110: 69.66097135 | F110: 69.55996511 | G110: 0.643020756 | H110: -0.00116686984
B111: 2 | C111: 0.6931471806 | D111: 118 | E111: 73.56412432 | F111: 74 | G111: 0.6881117473 | H111: 0.005035433298

Sheet Least_4DV_e^xLeast
A1: Synthesize | I1: =PI()/180 -> 0.01745329252
A2: ^y=e^x | C2: 0<x<1 | L2: Optimal Synthesis of Function Generators Without the Branch Defect
L3: Tinunu&Gupta
B4: qin | C4: 60 | D4: =C4*D_R -> 1.047197551 | L4: Transactions of the ASME | N4: Vol. 106, SEPTEMBER 1984
B5: fin | C5: 26.80294724 | D5: =C5*D_R -> 0.4677996786 | N5: qin | O5: 30
N6: fin | O6: 348.5001421 | P6: 310
B7: Dq | C7: 120 | D7: 120 | E7: =D7*D_R -> 2.094395102 | N7: qin | O7: 30
B8: Df | C8: 100 | D8: =C8/(EXP(1)-1) -> 58.19767069 | E8: =D8*D_R -> 1.01574097 | N8: fin | O8: 177.5664523 | P8: 100 | AB8: f is variable
AB9: qin | AC9: 80
B10: y=log(X) | C10: y(required) | AB10: fin | AC10: 132.6195193
B11: x | D11: q | E11: f | G11: q | H11: f | J11: cosf | K11: cosq | L11: cos(f-q) | M11: cos2f | N11: cos2q | O11: cosfcosq | P11: cosq*cos(f-q) | Q11: cosf*cos(f-q)
B12: 0 | C12: =EXP(B12) -> 1 | D12: =(B12-$B$12)*$D$7+$C$4 -> 60 | E12: =$C$5+$D$8*(C12-1) -> 26.80294724 | G12: =D12*D_R -> 1.047197551 | H12: =E12*D_R -> 0.4677996786 | J12: =COS(H12) -> 0.8925626246 | K12: =COS(G12) -> 0.5 | L12: =COS(H12-G12) -> 0.8367924785 | M12: =J12^2 -> 0.7966680388 | N12: =K12^2 -> 0.25 | O12: =J12*K12 -> 0.4462813123 | P12: =L12*K12 -> 0.4183962392 | Q12: =J12*L12 -> 0.7468896908 | S12: =(-SIN(G12)*$C$31-SIN(H12-G12))*($C$30*COS(H12)-$C$31*COS(G12)+$C$32-COS(H12-G12)) -> -0.0007547697701 | T12: =(-SIN(H12)*$C$30+SIN(H12-G12))*($C$30*COS(H12)-$C$31*COS(G12)+$C$32-COS(H12-G12)) -> 0.0003957601091
B13: 0.1 | C13: =EXP(B13) -> 1.105170918 | D13: =(B13-$B$12)*$D$7+$C$4 -> 72 | E13: =$C$5+$D$8*(C13-1) -> 32.9236497 | G13: 1.256637061 | H13: 0.574626089 | J13: =COS(H13) -> 0.8393955896 | K13: =COS(G13) -> 0.3090169944 | L13: =COS(H13-G13) -> 0.7763066619 | M13: =J13^2 -> 0.7045849558 | N13: 0.09549150281 | O13: =J13*K13 -> 0.2593875022 | P13: =L13*K13 -> 0.2398919514 | Q13: =J13*L13 -> 0.6516283882 | S13: =(-SIN(G13)*$C$31-SIN(H13-G13))*($C$30*COS(H13)-$C$31*COS(G13)+$C$32-COS(H13-G13)) -> 0.0006868553106 | T13: =(-SIN(H13)*$C$30+SIN(H13-G13))*($C$30*COS(H13)-$C$31*COS(G13)+$C$32-COS(H13-G13)) -> -0.0003627852014
B14: 0.2 | C14: 1.221402758 | D14: 84 | E14: 39.68807205 | G14: 1.466076572 | H14: 0.692687531 | J14: 0.7695325184 | K14: 0.1045284633 | L14: 0.7155473207 | M14: 0.5921802968 | N14: 0.01092619963 | O14: 0.08043805158 | P14: 0.07479506183 | Q14: 0.5506369317 | S14: 0.00114844145 | T14: -0.0006108493594
B15: 0.3 | C15: 1.349858808 | D15: 96 | E15: 47.16391491 | G15: 1.675516082 | H15: 0.8231656033 | J15: 0.6799032752 | K15: -0.1045284633 | L15: 0.6582154559 | M15: 0.4622684636 | N15: 0.01092619963 | O15: -0.07106924453 | P15: -0.0688022501 | Q15: 0.4475228442 | S15: 0.0005339208206 | T15: -0.0002866945484
B16: 0.4 | C16: 1.491824698 | D16: 108 | E16: 55.42599903 | G16: 1.884955592 | H16: 0.9673661743 | J16: 0.5674701731 | K16: -0.3090169944 | L16: 0.6077362576 | M16: 0.3220223974 | N16: 0.09549150281 | O16: -0.1753579273 | P16: -0.1878008317 | Q16: 0.3448721993 | S16: -0.0006273765191 | T16: 0.0003417630253
B17: 0.5 | C17: 1.648721271 | D17: 120 | E17: 64.55701412 | G17: 2.094395102 | H17: 1.126732452 | J17: 0.4296127355 | K17: -0.5 | L17: 0.5672260312 | M17: 0.1845671025 | N17: 0.25 | O17: -0.2148063678 | P17: -0.2836130156 | Q17: 0.2436875269 | S17: -0.001477426505 | T17: 0.0008226621948
B18: 0.6 | C18: 1.8221188 | D18: 132 | E18: 74.64834645 | G18: 2.303834613 | H18: 1.302859427 | J18: 0.2647425148 | K18: -0.6691306064 | L18: 0.5394814584 | M18: 0.07008859913 | N18: 0.4477357684 | O18: -0.1771473194 | P18: -0.3609835554 | Q18: 0.142823678 | S18: -0.00129951609 | T18: 0.0007474650694
B19: 0.7 | C19: 2.013752707 | D19: 144 | E19: 85.80099347 | G19: 2.513274123 | H19: 1.497509837 | J19: 0.07322090441 | K19: -0.8090169944 | L19: 0.5269705319 | M19: 0.005361300842 | N19: 0.6545084972 | O19: -0.05923695601 | P19: -0.4263281159 | Q19: 0.03858525894 | S19: 3.161114506e-06 | T19: -1.904944092e-06
B20: 0.8 | C20: 2.225540928 | D20: 156 | E20: 98.12657461 | G20: 2.722713633 | H20: 1.712631811 | J20: -0.141360404 | K20: -0.9135454576 | L20: 0.5317914297 | M20: 0.01998276383 | N20: 0.8345653032 | O20: 0.129139155 | P20: -0.485815645 | Q20: -0.07517425136 | S20: 0.001599688802 | T20: -0.001028770744
B21: 0.9 | C21: 2.459603111 | D21: 168 | E21: 111.7484484 | G21: 2.932153143 | H21: 1.950378359 | J21: -0.3705322853 | K21: -0.9781476007 | L21: 0.5555477167 | M21: 0.1372941745 | N21: 0.9567727288 | O21: 0.3624352659 | P21: -0.5434076662 | Q21: -0.2058483651 | S21: 0.001768844311 | T21: -0.001243013073
B22: 1 | C22: 2.718281828 | D22: 180 | E22: =$C$5+$D$8*(C22-1) -> 126.8029472 | G22: 3.141592654 | H22: 2.213128931 | J22: -0.5990647866 | K22: -1 | L22: 0.5990647866 | M22: =J22^2 -> 0.3588786185 | N22: =K22^2 -> 1 | O22: =J22*K22 -> 0.5990647866 | P22: =L22*K22 -> -0.5990647866 | Q22: =J22*L22 -> -0.3588786185 | S22: =(-SIN(G22)*$C$31-SIN(H22-G22))*($C$30*COS(H22)-$C$31*COS(G22)+$C$32-COS(H22-G22)) -> -0.001549363818 | T22: =(-SIN(H22)*$C$30+SIN(H22-G22))*($C$30*COS(H22)-$C$31*COS(G22)+$C$32-COS(H22-G22)) -> 0.001226367614
J24: =SUM(J12:J22) -> 3.40548286 | K24: =SUM(K12:K22) -> -4.369840659 | L24: =SUM(L12:L22) -> 6.914680129 | M24: =SUM(M12:M22) -> 3.653896712 | N24: =SUM(N12:N22) -> 4.606417702 | O24: 1.179128258 | P24: -2.222732614 | Q24: 2.526745283 | S24: =SUM(S12:S22) -> 3.245910595e-05 | T24: =SUM(T12:T22) -> 1.427869348e-10
C26: =M24 -> 3.653896712 | D26: =-O24 -> -1.179128258 | E26: =J24 -> 3.40548286 | G26: =Q24 -> 2.526745283 | M26: =M27/D_R -> 273.7170628
C27: =O24 -> 1.179128258 | D27: =-N24 -> -4.606417702 | E27: =K24 -> -4.369840659 | G27: =P24 -> -2.222732614 | K27: 75 | L27: =K27*D_R -> 1.308996939 | M27: =FourBar(ABS(F31),F32,ABS(F33),F30,-1,L27+PI()) -> 4.777263965
C28: =J24 -> 3.40548286 | D28: =-K24 -> 4.369840659 | E28: 11 | G28: =L24 -> 6.914680129
K29: 4 Design Parameter
B30: K1 | C30: =MMULT(MINVERSE(C26:E28),G26:G28) -> -0.2084702119 | E30: a1 | F30: 1 | I30: d1 | J30: =S24 -> 3.245910595e-05 | L30: fin
B31: K2 | C31: -0.3664999575 | E31: a2 | F31: =F30/C30 -> -4.796848389 | G31: =-F31 -> 4.796848389 | I31: d2 | J31: =T24 -> 1.427869348e-10
B32: K3 | C32: 0.8387425707 | E32: a3 | F32: =SQRT(F30^2+F31^2+F33^2-2*C32*F31*F33) -> 3.08207234 | I32: d | J32: =SQRT(J30^2+J31^2) -> 3.245910595e-05
E33: a4 | F33: =F30/C31 -> -2.728513277 | G33: =-F33 -> 2.728513277
I34: =MIN(J37:J55) -> -0.001940290931 | K34: =SQRT(SUM(L37:L47)) -> 0
F35: Generated by Four-Bar | I35: =MAX(J37:J55) -> 0.001890273379 | J35: =MAX(-I34,I35) -> 0.001940290931 | K35: =SQRT(SUM(K37:K55)) -> 0.00582340166
B36: x | C36: q | F36: f | H36: ygen | I36: yactual | J36: e
B37: 0 | C37: =(B37-$B$37)*$D$7+$C$4 -> 60 | D37: =C37*D_R+PI() -> 4.188790205 | E37: =FourBar($G$31,$F$32,$G$33,$F$30,1,D37) -> 3.607472304 | F37: =E37/D_R-180 -> 26.69293773 | H37: =(F37-$C$5)/$D$8+1 -> 0.9981097266 | I37: =EXP(B37) -> 1 | J37: =I37-H37 -> 0.001890273379 | K37: =J37^2 -> 3.573133448e-06
B38: 0.02 | C38: =(B38-$B$37)*$D$7+$C$4 -> 62.4 | D38: 4.230678107 | E38: =FourBar($G$31,$F$32,$G$33,$F$30,1,D38) -> 3.62891409 | F38: 27.92146154 | H38: =(F38-$C$5)/$D$8+1 -> 1.019219228 | I38: =EXP(B38) -> 1.02020134 | J38: =I38-H38 -> 0.000982111978 | K38: =J38^2 -> 9.645439372e-07
B39: 0.04 | C39: 64.8 | D39: 4.272566009 | E39: 3.650628965 | F39: 29.16563229 | H39: 1.040597588 | I39: 1.040810774 | J39: 0.0002131863853 | K39: 4.544843487e-08
B40: 0.06 | C40: 67.2 | D40: 4.314453911 | E40: 3.672633391 | F40: 30.42639301 | H40: 1.06226101 | I40: 1.061836547 | J40: -0.0004244637352 | K40: 1.801694625e-07
B41: 0.08 | C41: 69.6 | D41: 4.356341813 | E41: 3.694943965 | F41: 31.7046947 | H41: 1.084225836 | I41: 1.083287068 | J41: -0.0009387682736 | K41: 8.812858715e-07
B42: 0.1 | C42: 72 | D42: 4.398229715 | E42: 3.717577469 | F42: 33.00149898 | H42: 1.106508588 | I42: 1.105170918 | J42: -0.001337670116 | K42: 1.789361341e-06
B43: 0.12 | C43: 74.4 | D43: 4.440117617 | E43: 3.740550912 | F43: 34.31778032 | H43: 1.129126011 | I43: 1.127496852 | J43: -0.001629159715 | K43: 2.654161376e-06
B44: 0.14 | C44: 76.8 | D44: 4.482005519 | E44: 3.763881558 | F44: 35.65452783 | H44: 1.152095101 | I44: 1.150273799 | J44: -0.001821301996 | K44: 3.317140959e-06
B45: 0.16 | C45: 79.2 | D45: 4.523893421 | E45: 3.787586947 | F45: 37.01274662 | H45: 1.175433127 | I45: 1.173510871 | J45: -0.001922256449 | K45: 3.695069856e-06
B46: 0.18 | C46: 81.6 | D46: 4.565781323 | E46: 3.811684921 | F46: 38.39345881 | H46: 1.199157654 | I46: 1.197217363 | J46: -0.001940290931 | K46: 3.764728899e-06
B47: 0.2 | C47: 84 | D47: 4.607669225 | E47: 3.836193627 | F47: 39.79770421 | H47: 1.223286548 | I47: 1.221402758 | J47: -0.001883789481 | K47: 3.548662809e-06
B48: 0.22 | C48: 86.4 | D48: 4.649557127 | E48: 3.861131527 | F48: 41.22654067 | H48: 1.247837985 | I48: 1.246076731 | J48: -0.001761254266 | K48: 3.102016591e-06
B49: 0.24 | C49: 88.8 | D49: 4.691445029 | E49: 3.8865174 | F49: 42.68104404 | H49: 1.272830452 | I49: 1.27124915 | J49: -0.00158130162 | K49: 2.500514815e-06
B50: 0.26 | C50: 91.2 | D50: 4.733332931 | E50: 3.912370331 | F50: 44.16230784 | H50: 1.298282739 | I50: 1.296930087 | J50: -0.001352651991 | K50: 1.829667409e-06
B51: 0.28 | C51: 93.6 | D51: 4.775220833 | E51: 3.9387097 | F51: 45.67144253 | H51: 1.324213926 | I51: 1.323129812 | J51: -0.001084113529 | K51: 1.175302143e-06
B52: 0.3 | C52: 96 | D52: 4.817108736 | E52: 3.965555166 | F52: 47.20957441 | H52: 1.350643367 | I52: 1.349858808 | J52: -0.0007845589377 | K52: 6.155327267e-07
B53: 0.32 | C53: 98.4 | D53: 4.858996638 | E53: 3.992926635 | F53: 48.77784409 | H53: 1.377590659 | I53: 1.377127764 | J53: -0.0004628951469 | K53: 2.14271917e-07
B54: 0.34 | C54: 100.8 | D54: 4.90088454 | E54: 4.020844231 | F54: 50.37740453 | H54: 1.405075616 | I54: 1.404947591 | J54: -0.0001280252846 | K54: 1.639047349e-08
B55: 0.36 | C55: 103.2 | D55: 4.942772442 | E55: 4.04932825 | F55: 52.0094186 | H55: 1.433118217 | I55: 1.433329415 | J55: 0.0002111975955 | K55: 4.460442434e-08
B56: 0.38 | C56: =(B56-$B$37)*$D$7+$C$4 -> 105.6 | D56: 4.984660344 | E56: 4.078399109 | F56: 53.67505612 | H56: 1.461738564 | I56: 1.462284589 | J56: =I56-H56 -> 0.0005460256281 | K56: =J56^2 -> 2.981439866e-07
B57: 0.4 | C57: 108 | D57: 5.026548246 | E57: 4.108077286 | F57: 55.37549039 | H57: 1.490956817 | I57: 1.491824698 | J57: 0.0008678806927 | K57: 7.532168967e-07
B58: 0.42 | C58: 110.4 | D58: 5.068436148 | E58: 4.138383248 | F58: 57.11189412 | H58: =(F58-$C$5)/$D$8+1 -> 1.520793127 | I58: =EXP(B58) -> 1.521961556 | J58: =I58-H58 -> 0.001168429007 | K58: =J58^2 -> 1.365226343e-06
B59: 0.44 | C59: 112.8 | D59: 5.11032405 | E59: 4.169337371 | F59: 58.8854347 | H59: 1.551267552 | I59: 1.552707219 | J59: 0.001439666321 | K59: 2.072639117e-06
B60: 0.46 | C60: 115.2 | D60: 5.152211952 | E60: 4.200959844 | F60: 60.69726895 | H60: 1.582399971 | I60: 1.584073985 | J60: 0.001674014227 | K60: 2.802323631e-06
B61: 0.48 | C61: 117.6 | D61: 5.194099854 | E61: 4.233270567 | F61: 62.54853705 | H61: 1.614209974 | I61: 1.616074402 | J61: 0.001864427981 | K61: 3.476091696e-06
B62: 0.5 | C62: 120 | D62: 5.235987756 | E62: 4.266289036 | F62: 64.44035595 | H62: 1.646716755 | I62: 1.648721271 | J62: 0.00200451616 | K62: 4.018085037e-06
B63: 0.52 | C63: 122.4 | D63: 5.277875658 | E63: 4.300034209 | F63: 66.37381194 | H63: 1.679938977 | I63: 1.68202765 | J63: 0.00208867225 | K63: 4.362551766e-06
B64: 0.54 | C64: 124.8 | D64: 5.31976356 | E64: 4.334524371 | F64: 68.34995264 | H64: 1.713894644 | I64: 1.716006862 | J64: 0.002112218101 | K64: 4.461465306e-06
B65: 0.56 | C65: 127.2 | D65: 5.361651462 | E65: 4.369776979 | F65: 70.3697783 | H65: 1.748600941 | I65: 1.7506725 | J65: 0.002071558924 | K65: 4.291356377e-06
B66: 0.58 | C66: 129.6 | D66: 5.403539364 | E66: 4.405808501 | F66: 72.43423243 | H66: 1.784074082 | I66: 1.786038431 | J66: 0.001964349177 | K66: 3.85866769e-06
B67: 0.6 | C67: 132 | D67: 5.445427266 | E67: 4.442634241 | F67: 74.54419192 | H67: 1.820329132 | I67: 1.8221188 | J67: 0.001789668377 | K67: 3.202912901e-06
B68: 0.62 | C68: 134.4 | D68: 5.487315168 | E68: 4.480268159 | F68: 76.70045661 | H68: 1.857379836 | I68: 1.858928042 | J68: 0.001548205471 | K68: 2.396940181e-06
B69: 0.64 | C69: 136.8 | D69: =C69*D_R+PI() -> 5.52920307 | E69: 4.518722683 | F69: =E69/D_R-180 -> 78.90373854 | H69: 1.895238429 | I69: 1.896480879 | J69: 0.001242449967 | K69: 1.54368192e-06
B70: 0.66 | C70: 139.2 | D70: 5.571090972 | E70: 4.558008514 | F70: 81.15465086 | H70: 1.933915447 | I70: 1.934792334 | J70: 0.0008768875826 | K70: 7.689318325e-07
B71: 0.68 | C71: 141.6 | D71: 5.612978874 | E71: 4.598134435 | F71: 83.45369675 | H71: 1.973419535 | I71: 1.973877732 | J71: 0.0004581976979 | K71: 2.099451304e-07
B72: 0.7 | C72: 144 | D72: 5.654866776 | E72: 4.639107113 | F72: 85.8012583 | H72: 2.013757258 | I72: 2.013752707 | J72: -4.55057922e-06 | K72: 2.070777123e-11
B73: 0.72 | C73: 146.4 | D73: 5.696754679 | E73: 4.680930918 | F73: 88.1975858 | H73: 2.054932918 | I73: 2.054433211 | J73: -0.0004997073526 | K73: 2.497074383e-07
B74: 0.74 | C74: 148.8 | D74: 5.738642581 | E74: 4.723607739 | F74: 90.64278749 | H74: 2.096948374 | I74: 2.095935514 | J74: -0.00101285991 | K74: 1.025885198e-06
B75: 0.76 | C75: 151.2 | D75: 5.780530483 | E75: 4.76713682 | F75: 93.13682016 | H75: 2.139802885 | I75: 2.13827622 | J75: -0.001526664071 | K75: 2.330703186e-06
B76: 0.78 | C76: 153.6 | D76: 5.822418385 | E76: 4.811514619 | F76: 95.67948073 | H76: 2.183492959 | I76: 2.181472265 | J76: -0.002020693467 | K76: 4.083202089e-06
B77: 0.8 | C77: 156 | D77: 5.864306287 | E77: 4.856734676 | F77: 98.27039918 | H77: 2.22801224 | I77: 2.225540928 | J77: -0.002471311404 | K77: 6.107380056e-06
B78: 0.82 | C78: 158.4 | D78: 5.906194189 | E78: 4.902787526 | F78: 100.9090331 | H78: 2.273351407 | I78: 2.270499838 | J78: -0.002851569863 | K78: 8.131450685e-06
B79: 0.84 | C79: 160.8 | D79: 5.948082091 | E79: 4.94966063 | F79: 103.5946641 | H79: 2.319498117 | I79: 2.316366977 | J79: -0.003131139963 | K79: 9.804037471e-06
B80: 0.86 | C80: 163.2 | D80: 5.989969993 | E80: 4.997338348 | F80: 106.3263961 | H80: 2.366436971 | I80: 2.363160694 | J80: -0.003276277734 | K80: 1.073399579e-05
B81: 0.88 | C81: 165.6 | D81: 6.031857895 | E81: 5.045801953 | F81: 109.1031562 | H81: 2.414149535 | I81: 2.410899706 | J81: -0.003249828409 | K81: 1.056138469e-05
B82: 0.9 | C82: 168 | D82: 6.073745797 | E82: 5.095029685 | F82: 111.9236974 | H82: 2.462614383 | I82: 2.459603111 | J82: -0.003011271612 | K82: 9.067756724e-06
B83: 0.92 | C83: 170.4 | D83: 6.115633699 | E83: 5.144996843 | F83: 114.7866047 | H83: 2.511807199 | I83: 2.50929039 | J83: -0.002516808778 | K83: 6.334326427e-06
B84: 0.94 | C84: 172.8 | D84: 6.157521601 | E84: 5.195675931 | F84: 117.6903026 | H84: 2.561700911 | I84: 2.559981418 | J84: -0.001719493016 | K84: 2.956656234e-06
B85: 0.96 | C85: 175.2 | D85: 6.199409503 | E85: 5.247036835 | F85: 120.6330656 | H85: 2.612265874 | I85: 2.611696473 | J85: -0.0005694003764 | K85: 3.242167887e-07
B86: 0.98 | C86: 177.6 | D86: 6.241297405 | E86: 5.299047048 | F86: 123.6130313 | H86: 2.663470082 | I86: 2.664456242 | J86: 0.0009861598018 | K86: 9.725111547e-07
B87: 1 | C87: 180 | D87: 6.283185307 | E87: 5.351671924 | F87: 126.6282146 | H87: 2.715279429 | I87: 2.718281828 | J87: 0.003002399017 | K87: 9.014399857e-06
O88: Generated by Four-Bar
K89: x | L89: y(required) | M89: q | N89: fg | O89: freqired | P89: y (generated) | Q89: e
K90: 1 | L90: 0 | M90: 30 | N90: 31.25002124 | O90: 30 | P90: 0.01444081163 | Q90: -0.01444081163
K91: 1.1 | L91: 0.0953101798 | M91: 39 | N91: 38.00078726 | O91: 38.25021142 | P91: 0.09242871891 | Q91: 0.002881460895
K92: 1.2 | L92: 0.1823215568 | M92: 48 | N92: 44.86368623 | O92: 45.78206435 | P92: 0.1717120367 | Q92: 0.01060952008
K93: 1.3 | L93: 0.2623642645 | M93: 57 | N93: 51.74521066 | O93: 52.7106974 | P93: 0.2512105243 | Q93: 0.01115374014
K94: 1.4 | L94: 0.3364722366 | M94: 66 | N94: 58.55671384 | O94: 59.12560963 | P94: 0.3299000947 | Q94: 0.006572141875
K95: 1.5 | L95: 0.4054651081 | M95: 75 | N95: 65.20142848 | O95: 65.09775004 | P95: 0.4066628484 | Q95: -0.001197740268
B96: qin | C96: 28 | K96: 1.6 | L96: 0.4700036292 | M96: 84 | N96: 71.55500197 | O96: 70.68431431 | P96: 0.4800622075 | Q96: -0.01005857828
B97: fin | C97: 14 | K97: 1.7 | L97: 0.5306282511 | M97: 93 | N97: 77.42935908 | O97: 75.93208478 | P97: 0.547925442 | Q97: -0.01729719098
K98: 1.8 | L98: 0.5877866649 | M98: 102 | N98: 82.48529441 | O98: 80.87981439 | P98: 0.6063338974 | Q98: -0.01854723246
K99: 1.9 | L99: 0.6418538862 | M99: 111 | N99: 85.93175883 | O99: 85.55996511 | P99: 0.6461490156 | Q99: -0.004295129387
B100: x | C100: y(required) | D100: q | E100: fg | F100: freqired | G100: y (generated) | H100: e | K100: 2 | L100: 0.6931471806 | M100: 120 | N100: 83.94243616 | O100: 90 | P100: 0.623167459 | Q100: 0.06997972156
B101: 1 | C101: 0 | D101: 28 | E101: 13.84887412 | F101: 14 | G101: -0.001745874663 | H101: 0.001745874663
B102: 1.1 | C102: 0.0953101798 | D102: 37 | E102: 22.4425745 | F102: 22.25021142 | G102: 0.09753244518 | H102: -0.00222226538
B103: 1.2 | C103: 0.1823215568 | D103: 46 | E103: 29.74673753 | F103: 29.78206435 | G103: 0.1819134453 | H103: 0.0004081114795
B104: 1.3 | C104: 0.2623642645 | D104: 55 | E104: 36.52276731 | F104: 36.7106974 | G104: 0.2601932109 | H104: 0.002171053526
B105: 1.4 | C105: 0.3364722366 | D105: 64 | E105: 42.93747896 | F105: 43.12560963 | G105: 0.3342988659 | H105: 0.002173370765
B106: 1.5 | C106: 0.4054651081 | D106: 73 | E106: 49.03115155 | F106: 49.09775004 | G106: 0.4046957321 | H106: 0.000769375976
B107: 1.6 | C107: 0.4700036292 | D107: 82 | E107: 54.7954243 | F107: 54.68431431 | G107: 0.4712872222 | H107: -0.001283592953
B108: 1.7 | C108: 0.5306282511 | D108: 91 | E108: 60.1949678 | F108: 59.93208478 | G108: 0.5336651947 | H108: -0.003036943672
B109: 1.8 | C109: 0.5877866649 | D109: 100 | E109: 65.17450984 | F109: 64.87981439 | G109: 0.5911911202 | H109: -0.003404455299
B110: 1.9 | C110: 0.6418538862 | D110: 109 | E110: 69.66097135 | F110: 69.55996511 | G110: 0.643020756 | H110: -0.00116686984
B111: 2 | C111: 0.6931471806 | D111: 118 | E111: 73.56412432 | F111: 74 | G111: 0.6881117473 | H111: 0.005035433298

Sheet 4DV_Chen (2)
A1: Synthesize | I1: =PI()/180 -> 0.01745329252
A2: y=log x | C2: 1<x<10 | L2: Optimal Synthesis of Function Generators Without the Branch Defect
L3: Tinunu&Gupta
B4: qin | C4: 140 | D4: =C4*D_R -> 2.443460953 | L4: Transactions of the ASME | N4: Vol. 106, SEPTEMBER 1984
B5: fin | C5: 253.0182954 | D5: =C5*D_R -> 4.416002322 | H5: qin | I5: 170 | K5: qin | L5: 172.5316293 | M5: 220 | N5: qin
H6: fin | I6: 97.7099429 | J6: 80 | K6: fin | L6: 80 | N6: fin
B7: Dq | C7: 90 | D7: =C7/9 -> 10 | E7: =D7*D_R -> 0.1745329252 | H7: qin | I7: 140 | K7: qin | N7: qin
B8: Df | C8: 60 | D8: =C8/LOG(10) -> 60 | E8: =D8*D_R -> 1.047197551 | H8: fin | I8: 253.0182954 | J8: 80 | K8: fin | N8: fin | AB8: f is variable
AB9: qin | AC9: 80
B10: y=sin(X) | AB10: fin | AC10: 132.6195193
B11: x | C11: y(required) | D11: q | E11: f | G11: q | H11: f | J11: cosf | K11: cosq | L11: cos(f-q) | M11: cos2f | N11: cos2q | O11: cosfcosq | P11: cosq*cos(f-q) | Q11: cosf*cos(f-q)
D12: =C4+0 -> 140 | E12: =C5+0 -> 253.0182954 | G12: =D12*D_R -> 2.443460953 | H12: =E12*D_R -> 4.416002322 | J12: =COS(H12) -> -0.2920663276 | K12: =COS(G12) -> -0.7660444431 | L12: =COS(H12-G12) -> -0.3910250394 | M12: =J12^2 -> 0.08530273971 | N12: =K12^2 -> 0.5868240888 | O12: =J12*K12 -> 0.2237357873 | P12: =L12*K12 -> 0.2995425585 | Q12: =J12*L12 -> 0.1142052472 | S12: =(-SIN(G12)*$C$31-SIN(H12-G12))*($C$30*COS(H12)-$C$31*COS(G12)+$C$32-COS(H12-G12)) -> -0.03878166228 | T12: =(-SIN(H12)*$C$30+SIN(H12-G12))*($C$30*COS(H12)-$C$31*COS(G12)+$C$32-COS(H12-G12)) -> 0.05446952646
D13: =C4+40 -> 180 | E13: =C5+28 -> 281.0182954 | G13: 3.141592654 | H13: 4.904694513 | J13: =COS(H13) -> 0.1911224337 | K13: =COS(G13) -> -1 | L13: =COS(H13-G13) -> -0.1911224337 | M13: =J13^2 -> 0.03652778467 | N13: 1 | O13: =J13*K13 -> -0.1911224337 | P13: =L13*K13 -> 0.1911224337 | Q13: =J13*L13 -> -0.03652778467 | S13: =(-SIN(G13)*$C$31-SIN(H13-G13))*($C$30*COS(H13)-$C$31*COS(G13)+$C$32-COS(H13-G13)) -> 0.06646021883 | T13: =(-SIN(H13)*$C$30+SIN(H13-G13))*($C$30*COS(H13)-$C$31*COS(G13)+$C$32-COS(H13-G13)) -> -0.0829735034
D14: =C4+80 -> 220 | E14: =C5+61.6 -> 314.6182954 | G14: 3.839724354 | H14: 5.491125142 | J14: 0.7023803776 | K14: -0.7660444431 | L14: -0.08051720646 | M14: 0.4933381949 | N14: 0.5868240888 | O14: -0.5380545852 | P14: 0.06167975859 | Q14: -0.05655370588 | S14: 0.01789959834 | T14: -0.01922610403
D15: =C4+120 -> 260 | E15: =C5+96 -> 349.0182954 | G15: 4.537856055 | H15: 6.091518404 | J15: 0.9816880615 | K15: -0.1736481777 | L15: 0.01713313941 | M15: 0.9637114502 | N15: 0.03015368961 | O15: -0.1704683429 | P15: -0.002975138436 | Q15: 0.01681939841 | S15: -0.05015563797 | T15: 0.04580053899
D16: =C4+160 -> 300 | E16: =C5+129 -> 382.0182954 | G16: 5.235987756 | H16: 6.667477057 | J16: 0.9270641899 | K16: 0.5 | L16: 0.1388568866 | M16: 0.8594480122 | N16: 0.25 | O16: 0.4635320949 | P16: 0.06942844332 | Q16: 0.1287292471 | S16: -0.009998562712 | T16: 0.008012786526
D17: =C4+200 -> 340 | E17: =C5+170 -> 423.0182954 | G17: 5.934119457 | H17: 7.383062051 | J17: 0.453705965 | K17: 0.9396926208 | L17: 0.1215524025 | M17: 0.2058491027 | N17: 0.8830222216 | O17: 0.4263441474 | P17: 0.1142218957 | Q17: 0.0551490501 | S17: 0.02691292339 | T17: -0.01988703549
D18: =C4+240 -> 380 | E18: =C5+225 -> 478.0182954 | G18: 6.632251158 | H18: 8.342993139 | J18: -0.4697534771 | K18: 0.9396926208 | L18: -0.1394893011 | M18: 0.2206683292 | N18: 0.8830222216 | O18: -0.441423876 | P18: -0.1310770669 | Q18: 0.0655255842 | S18: -0.005449746758 | T18: 0.004473024539
D19: =C4+280 -> 420 | E19: =C5+274 -> 527.0182954 | G19: 7.330382858 | H19: 9.198204473 | J19: -0.9744418453 | K19: 0.5 | L19: -0.2926770521 | M19: 0.9495369099 | N19: 0.25 | O19: -0.4872209227 | P19: -0.146338526 | Q19: 0.2851967667 | S19: 0.02646435772 | T19: -0.02881223268
D20: =C4+320 -> 460 | E20: =C5+322 -> 575.0182954 | G20: 8.028514559 | H20: 10.03596251 | J20: -0.8189688511 | K20: -0.1736481777 | L20: -0.4229076377 | M20: 0.6707099791 | N20: 0.03015368961 | O20: 0.1422124486 | P20: 0.0734371406 | Q20: 0.3463481821 | S20: -0.02761500438 | T20: 0.03814388553
J24: =SUM(J12:J20) -> 0.7007305268 | K24: =SUM(K12:K20) -> 2.775557562e-16 | L24: -1.240196242 | M24: 4.485092502 | N24: 4.5 | O24: -0.5724656824 | P24: 0.5290414991 | Q24: 0.9188919853 | R24: 0 | S24: 0.005736484172 | T24: 8.864408474e-07
C26: =M24 -> 4.485092502 | D26: =-O24 -> 0.5724656824 | E26: =J24 -> 0.7007305268 | G26: =Q24 -> 0.9188919853 | M26: =M27/D_R -> 321.9562862
C27: =O24 -> -0.5724656824 | D27: =-N24 -> -4.5 | E27: =K24 -> 2.775557562e-16 | G27: =P24 -> 0.5290414991 | K27: 75 | L27: =K27*D_R -> 1.308996939 | M27: =FourBar(ABS(F31),F32,ABS(F33),F30,-1,L27+PI()) -> 5.619197241
C28: =J24 -> 0.7007305268 | D28: =-K24 -> -2.775557562e-16 | E28: 9 | G28: =L24 -> -1.240196242
K29: 4 Design Parameter
B30: K1 | C30: =MMULT(MINVERSE(C26:E28),G26:G28) -> 0.248468706 | E30: a1 | F30: 1 | I30: d1 | J30: =S24 -> 0.005736484172 | L30: fin,
B31: K2 | C31: -0.1491736236 | E31: a2 | F31: =F30/C30 -> 4.0246517 | G31: =-F31 -> -4.0246517 | I31: d2 | J31: =T24 -> 8.864408474e-07
B32: K3 | C32: -0.1571450943 | E32: a3 | F32: =SQRT(F30^2+F31^2+F33^2-2*C32*F31*F33) -> 7.325067144 | I32: d | J32: =SQRT(J30^2+J31^2) -> 0.005736484241
E33: a4 | F33: =F30/C31 -> -6.703597966 | G33: =-F33 -> 6.703597966
F35: Generated by Four-Bar
C36: q | F36: f | H36: e
C37: =D12 -> 140 | D37: =C37*D_R -> 2.443460953 | E37: =FourBar($F$31,$F$32,$G$33,$F$30,1,D37) -> 1.234004502 | F37: =E37/D_R+180 -> 250.7032498 | H37: =F37-E12 -> -2.315045553 | I37: =C37-$C$37 -> 0 | J37: =F37-180 -> 70.70324984
C38: =D13 -> 180 | D38: 3.141592654 | E38: =FourBar($F$31,$F$32,$G$33,$F$30,1,D38) -> 1.818682756 | F38: 284.2028462 | H38: =F38-E13 -> 3.184550825 | I38: =C38-$C$37 -> 40
C39: 220 | D39: 3.839724354 | E39: 2.36351275 | F39: 315.4193054 | H39: 0.8010100148 | I39: 80
C40: 260 | D40: 4.537856055 | E40: 2.908334989 | F40: 346.6353203 | H40: -2.382975113 | I40: 120
C41: 300 | D41: 5.235987756 | E41: 3.51593425 | F41: 381.4481936 | H41: -0.5701018208 | I41: 160
C42: 340 | D42: 5.934119457 | E42: 4.27491022 | F42: 424.9343134 | H42: =F42-E17 -> 1.916018012 | I42: 200
C43: 380 | D43: 6.632251158 | E43: -1.089311235 | F43: =E43/D_R+180+360 -> 477.5870637 | H43: =F43-E18 -> -0.431231722 | I43: 240
C44: 420 | D44: 7.330382858 | E44: -0.1909910098 | F44: =E44/D_R+180 -> 169.0570212 | H44: =F44-E19+360 -> 2.038725823 | I44: 280
C45: 460 | D45: 8.028514559 | E45: 0.5766227036 | F45: =E45/D_R+180 -> 213.0380473 | H45: =F45-E20+360 -> -1.980248102 | I45: 320
F64: Generated by Four-Bar
B65: x | C65: y(required) | D65: q | E65: fg | F65: freqired | G65: y (generated) | H65: e
B66: 1 | C66: 0 | D66: 30 | E66: 31.25002124 | F66: 30 | G66: 0.01444081163 | H66: -0.01444081163
B67: 1.1 | C67: 0.0953101798 | D67: 39 | E67: 38.00078726 | F67: 38.25021142 | G67: 0.09242871891 | H67: 0.002881460895
B68: 1.2 | C68: 0.1823215568 | D68: 48 | E68: 44.86368623 | F68: 45.78206435 | G68: 0.1717120367 | H68: 0.01060952008
B69: 1.3 | C69: 0.2623642645 | D69: 57 | E69: 51.74521066 | F69: 52.7106974 | G69: 0.2512105243 | H69: 0.01115374014
B70: 1.4 | C70: 0.3364722366 | D70: 66 | E70: 58.55671384 | F70: 59.12560963 | G70: 0.3299000947 | H70: 0.006572141875
B71: 1.5 | C71: 0.4054651081 | D71: 75 | E71: 65.20142848 | F71: 65.09775004 | G71: 0.4066628484 | H71: -0.001197740268
B72: 1.6 | C72: 0.4700036292 | D72: 84 | E72: 71.55500197 | F72: 70.68431431 | G72: 0.4800622075 | H72: -0.01005857828
B73: 1.7 | C73: 0.5306282511 | D73: 93 | E73: 77.42935908 | F73: 75.93208478 | G73: 0.547925442 | H73: -0.01729719098
B74: 1.8 | C74: 0.5877866649 | D74: 102 | E74: 82.48529441 | F74: 80.87981439 | G74: 0.6063338974 | H74: -0.01854723246
B75: 1.9 | C75: 0.6418538862 | D75: 111 | E75: 85.93175883 | F75: 85.55996511 | G75: 0.6461490156 | H75: -0.004295129387
B76: 2 | C76: 0.6931471806 | D76: 120 | E76: 83.94243616 | F76: 90 | G76: 0.623167459 | H76: 0.06997972156
B83: qin | C83: 28
B84: fin | C84: 14
B87: x | C87: y(required) | D87: q | E87: fg | F87: freqired | G87: y (generated) | H87: e
B88: 1 | C88: 0 | D88: 28 | E88: 13.84887412 | F88: 14 | G88: -0.001745874663 | H88: 0.001745874663
B89: 1.1 | C89: 0.0953101798 | D89: 37 | E89: 22.4425745 | F89: 22.25021142 | G89: 0.09753244518 | H89: -0.00222226538
B90: 1.2 | C90: 0.1823215568 | D90: 46 | E90: 29.74673753 | F90: 29.78206435 | G90: 0.1819134453 | H90: 0.0004081114795
B91: 1.3 | C91: 0.2623642645 | D91: 55 | E91: 36.52276731 | F91: 36.7106974 | G91: 0.2601932109 | H91: 0.002171053526
B92: 1.4 | C92: 0.3364722366 | D92: 64 | E92: 42.93747896 | F92: 43.12560963 | G92: 0.3342988659 | H92: 0.002173370765
B93: 1.5 | C93: 0.4054651081 | D93: 73 | E93: 49.03115155 | F93: 49.09775004 | G93: 0.4046957321 | H93: 0.000769375976
B94: 1.6 | C94: 0.4700036292 | D94: 82 | E94: 54.7954243 | F94: 54.68431431 | G94: 0.4712872222 | H94: -0.001283592953
B95: 1.7 | C95: 0.5306282511 | D95: 91 | E95: 60.1949678 | F95: 59.93208478 | G95: 0.5336651947 | H95: -0.003036943672
B96: 1.8 | C96: 0.5877866649 | D96: 100 | E96: 65.17450984 | F96: 64.87981439 | G96: 0.5911911202 | H96: -0.003404455299
B97: 1.9 | C97: 0.6418538862 | D97: 109 | E97: 69.66097135 | F97: 69.55996511 | G97: 0.643020756 | H97: -0.00116686984
B98: 2 | C98: 0.6931471806 | D98: 118 | E98: 73.56412432 | F98: 74 | G98: 0.6881117473 | H98: 0.005035433298

Sheet 4DV_Chen (1)
A1: Synthesize | I1: =PI()/180 -> 0.01745329252
A2: y=log x | C2: 1<x<10 | L2: Optimal Synthesis of Function Generators Without the Branch Defect
L3: Tinunu&Gupta
B4: qin | C4: 172.5316293 | D4: =C4*D_R -> 3.011244995 | L4: Transactions of the ASME | N4: Vol. 106, SEPTEMBER 1984
B5: fin | C5: 80 | D5: =C5*D_R -> 1.396263402 | H5: qin | I5: 181.1955971 | K5: qin | L5: 172.5316293 | M5: 220 | N5: qin
H6: fin | I6: 80 | K6: fin | L6: 80 | N6: fin
B7: Dq | C7: 90 | D7: =C7/9 -> 10 | E7: =D7*D_R -> 0.1745329252 | H7: qin | I7: 276.7657827 | J7: 240 | K7: qin | N7: qin
B8: Df | C8: 60 | D8: =C8/LOG(10) -> 60 | E8: =D8*D_R -> 1.047197551 | H8: fin | I8: 80 | K8: fin | N8: fin | AB8: f is variable
AB9: qin | AC9: 80
B10: y=sin(X) | AB10: fin | AC10: 132.6195193
B11: x | C11: y(required) | D11: q | E11: f | G11: q | H11: f | J11: cosf | K11: cosq | L11: cos(f-q) | M11: cos2f | N11: cos2q | O11: cosfcosq | P11: cosq*cos(f-q) | Q11: cosf*cos(f-q)
D12: =C4+0 -> 172.5316293 | E12: =C5+0 -> 80 | G12: =D12*D_R -> 3.011244995 | H12: =E12*D_R -> 1.396263402 | J12: =COS(H12) -> 0.1736481777 | K12: =COS(G12) -> -0.9915167654 | L12: =COS(H12-G12) -> -0.04417089102 | M12: =J12^2 -> 0.03015368961 | N12: =K12^2 -> 0.9831054961 | O12: =J12*K12 -> -0.1721750794 | P12: =L12*K12 -> 0.04379617899 | Q12: =J12*L12 -> -0.007670194732 | S12: =(-SIN(G12)*$C$31-SIN(H12-G12))*($C$30*COS(H12)-$C$31*COS(G12)+$C$32-COS(H12-G12)) -> -0.03548227203 | T12: =(-SIN(H12)*$C$30+SIN(H12-G12))*($C$30*COS(H12)-$C$31*COS(G12)+$C$32-COS(H12-G12)) -> 0.04161214456
D13: =C4+40 -> 212.5316293 | E13: =C5+28 -> 108 | G13: 3.709376696 | H13: 1.884955592 | J13: =COS(H13) -> -0.3090169944 | K13: =COS(G13) -> -0.8430947087 | L13: =COS(H13-G13) -> -0.250914418 | M13: =J13^2 -> 0.09549150281 | N13: 0.7108086879 | O13: =J13*K13 -> 0.2605305929 | P13: =L13*K13 -> 0.2115446181 | Q13: =J13*L13 -> 0.07753681929 | S13: =(-SIN(G13)*$C$31-SIN(H13-G13))*($C$30*COS(H13)-$C$31*COS(G13)+$C$32-COS(H13-G13)) -> 0.07739676142 | T13: =(-SIN(H13)*$C$30+SIN(H13-G13))*($C$30*COS(H13)-$C$31*COS(G13)+$C$32-COS(H13-G13)) -> -0.08075681388
D14: =C4+80 -> 252.5316293 | E14: =C5+61.6 -> 141.6 | G14: 4.407508397 | H14: 2.471386221 | J14: -0.7836934573 | K14: -0.3001792679 | L14: -0.3572536592 | M14: 0.6141754351 | N14: 0.09010759286 | O14: 0.2352485283 | P14: 0.1072401419 | Q14: 0.2799773553 | S14: 0.01473458726 | T14: -0.01371927391
D15: =C4+120 -> 292.5316293 | E15: =C5+96 -> 176 | G15: 5.105640098 | H15: 3.071779484 | J15: -0.9975640503 | K15: 0.3831933886 | L15: -0.4466917809 | M15: 0.9951340344 | N15: 0.146837173 | O15: -0.3822599487 | P15: -0.1711693371 | Q15: 0.4456036621 | S15: -0.05191604532 | T15: 0.04444108224
D16: =C4+160 -> 332.5316293 | E16: =C5+129 -> 209 | G16: 5.803771799 | H16: 3.647738137 | J16: -0.8746197071 | K16: 0.8872655997 | L16: -0.552397236 | M16: 0.7649596321 | N16: 0.7872402445 | O16: -0.776019979 | P16: -0.4901230649 | Q16: 0.4831375087 | S16: -0.0127237109 | T16: 0.01059652814
D17: =C4+200 -> 372.5316293 | E17: =C5+170 -> 250 | G17: 6.501903499 | H17: 4.36332313 | J17: -0.3420201433 | K17: 0.976176376 | L17: -0.5377651087 | M17: 0.1169777784 | N17: 0.952920317 | O17: -0.333871984 | P17: -0.5249535949 | Q17: 0.1839264995 | S17: 0.02788512931 | T17: -0.02438946585
D18: =C4+240 -> 412.5316293 | E18: =C5+225 -> 305 | G18: 7.2000352 | H18: 5.323254219 | J18: 0.5735764364 | K18: 0.6083233769 | L18: -0.3012322395 | M18: 0.3289899283 | N18: 0.3700573308 | O18: 0.3489199547 | P18: -0.1832466132 | Q18: -0.1727797144 | S18: -0.001329567458 | T18: 0.001359672298
D19: =C4+280 -> 452.5316293 | E19: =C5+274 -> 354 | G19: 7.898166901 | H19: 6.178465552 | J19: 0.9945218954 | K19: -0.04417089102 | L19: -0.1483553607 | M19: 0.9890738004 | N19: 0.001951067614 | O19: -0.04392891826 | P19: 0.006552988469 | Q19: -0.1475426545 | S19: 0.01839393958 | T19: -0.02202096875
D20: =C4+320 -> 492.5316293 | E20: =C5+322 -> 402 | G20: 8.596298602 | H20: 7.016223593 | J20: 0.7431448255 | K20: -0.6759971081 | L20: -0.009278548866 | M20: 0.5522642316 | N20: 0.4569720902 | O20: -0.5023637529 | P20: 0.006272272201 | Q20: -0.006895305577 | S20: -0.03696382667 | T20: 0.04667844803
J24: =SUM(J12:J20) -> -0.8220230176 | K24: =SUM(K12:K20) -> 8.881784197e-16 | L24: -2.648059243 | M24: 4.487220033 | N24: 4.5 | O24: -1.365920587 | P24: -0.9940864104 | Q24: 1.135293976 | R24: 0 | S24: -5.004805393e-06 | T24: 0.00380135288
C26: =M24 -> 4.487220033 | D26: =-O24 -> 1.365920587 | E26: =J24 -> -0.8220230176 | G26: =Q24 -> 1.135293976 | M26: =M27/D_R -> 350.1257524
C27: =O24 -> -1.365920587 | D27: =-N24 -> -4.5 | E27: =K24 -> 8.881784197e-16 | G27: =P24 -> -0.9940864104 | K27: 75 | L27: =K27*D_R -> 1.308996939 | M27: =FourBar(ABS(F31),F32,ABS(F33),F30,-1,L27+PI()) -> 6.110847176
C28: =J24 -> -0.8220230176 | D28: =-K24 -> -8.881784197e-16 | E28: 9 | G28: =L24 -> -2.648059243
K29: 4 Design Parameter
B30: K1 | C30: =MMULT(MINVERSE(C26:E28),G26:G28) -> 0.1480134098 | E30: a1 | F30: 1 | I30: d1 | J30: =S24 -> -5.004805393e-06 | L30: qin,
B31: K2 | C31: 0.1759804104 | E31: a2 | F31: =F30/C30 -> 6.756144605 | G31: =-F31 -> -6.756144605 | I31: d2 | J31: =T24 -> 0.00380135288
B32: K3 | C32: -0.2807098681 | E32: a3 | F32: =SQRT(F30^2+F31^2+F33^2-2*C32*F31*F33) -> 10.02444302 | I32: d | J32: =SQRT(J30^2+J31^2) -> 0.003801356175
E33: a4 | F33: =F30/C31 -> 5.682450664 | G33: =-F33 -> -5.682450664
F35: Generated by Four-Bar
C36: q | F36: f | H36: e
C37: =D12 -> 172.5316293 | D37: =C37*D_R -> 3.011244995 | E37: =FourBar($F$31,$F$32,$F$33,$F$30,1,D37) -> 1.364475337 | F37: =E37/D_R -> 78.17867803 | H37: =F37-E12 -> -1.821321966 | I37: =C37-$C$37 -> 0 | J37: =F37-180 -> -101.821322
C38: =D13 -> 212.5316293 | D38: 3.709376696 | E38: =FourBar($F$31,$F$32,$F$33,$F$30,1,D38) -> 1.950295752 | F38: =E38/D_R -> 111.7437154 | H38: =F38-E13 -> 3.743715372 | I38: =C38-$C$37 -> 40
C39: 252.5316293 | D39: 4.407508397 | E39: 2.484400816 | F39: =E39/D_R -> 142.3456814 | H39: 0.7456813522 | I39: 80
C40: 292.5316293 | D40: 5.105640098 | E40: 3.016996962 | F40: =E40/D_R -> 172.8611927 | H40: -3.138807253 | I40: 120
C41: 332.5316293 | D41: 5.803771799 | E41: 3.629385504 | F41: =E41/D_R -> 207.9484716 | H41: -1.051528405 | I41: 160
C42: 372.5316293 | D42: 6.501903499 | E42: -1.871444813 | F42: =E42/D_R+360 -> 252.7741107 | H42: =F42-E17 -> 2.774110652 | I42: 200
C43: 412.5316293 | D43: 7.2000352 | E43: -0.961894752 | F43: =E43/D_R+360 -> 304.8874904 | H43: =F43-E18 -> -0.1125096277 | I43: 240
C44: 452.5316293 | D44: 7.898166901 | E44: -0.0815611409 | F44: =E44/D_R -> -4.673109146 | H44: =F44-E19+360 -> 1.326890854 | I44: 280
C45: 492.5316293 | D45: 8.596298602 | E45: 0.6942995137 | F45: =E45/D_R -> 39.78043185 | H45: =F45-E20+360 -> -2.219568146 | I45: 320
F64: Generated by Four-Bar
B65: x | C65: y(required) | D65: q | E65: fg | F65: freqired | G65: y (generated) | H65: e
B66: 1 | C66: 0 | D66: 30 | E66: 31.25002124 | F66: 30 | G66: 0.01444081163 | H66: -0.01444081163
B67: 1.1 | C67: 0.0953101798 | D67: 39 | E67: 38.00078726 | F67: 38.25021142 | G67: 0.09242871891 | H67: 0.002881460895
B68: 1.2 | C68: 0.1823215568 | D68: 48 | E68: 44.86368623 | F68: 45.78206435 | G68: 0.1717120367 | H68: 0.01060952008
B69: 1.3 | C69: 0.2623642645 | D69: 57 | E69: 51.74521066 | F69: 52.7106974 | G69: 0.2512105243 | H69: 0.01115374014
B70: 1.4 | C70: 0.3364722366 | D70: 66 | E70: 58.55671384 | F70: 59.12560963 | G70: 0.3299000947 | H70: 0.006572141875
B71: 1.5 | C71: 0.4054651081 | D71: 75 | E71: 65.20142848 | F71: 65.09775004 | G71: 0.4066628484 | H71: -0.001197740268
B72: 1.6 | C72: 0.4700036292 | D72: 84 | E72: 71.55500197 | F72: 70.68431431 | G72: 0.4800622075 | H72: -0.01005857828
B73: 1.7 | C73: 0.5306282511 | D73: 93 | E73: 77.42935908 | F73: 75.93208478 | G73: 0.547925442 | H73: -0.01729719098
B74: 1.8 | C74: 0.5877866649 | D74: 102 | E74: 82.48529441 | F74: 80.87981439 | G74: 0.6063338974 | H74: -0.01854723246
B75: 1.9 | C75: 0.6418538862 | D75: 111 | E75: 85.93175883 | F75: 85.55996511 | G75: 0.6461490156 | H75: -0.004295129387
B76: 2 | C76: 0.6931471806 | D76: 120 | E76: 83.94243616 | F76: 90 | G76: 0.623167459 | H76: 0.06997972156
B83: qin | C83: 28
B84: fin | C84: 14
B87: x | C87: y(required) | D87: q | E87: fg | F87: freqired | G87: y (generated) | H87: e
B88: 1 | C88: 0 | D88: 28 | E88: 13.84887412 | F88: 14 | G88: -0.001745874663 | H88: 0.001745874663
B89: 1.1 | C89: 0.0953101798 | D89: 37 | E89: 22.4425745 | F89: 22.25021142 | G89: 0.09753244518 | H89: -0.00222226538
B90: 1.2 | C90: 0.1823215568 | D90: 46 | E90: 29.74673753 | F90: 29.78206435 | G90: 0.1819134453 | H90: 0.0004081114795
B91: 1.3 | C91: 0.2623642645 | D91: 55 | E91: 36.52276731 | F91: 36.7106974 | G91: 0.2601932109 | H91: 0.002171053526
B92: 1.4 | C92: 0.3364722366 | D92: 64 | E92: 42.93747896 | F92: 43.12560963 | G92: 0.3342988659 | H92: 0.002173370765
B93: 1.5 | C93: 0.4054651081 | D93: 73 | E93: 49.03115155 | F93: 49.09775004 | G93: 0.4046957321 | H93: 0.000769375976
B94: 1.6 | C94: 0.4700036292 | D94: 82 | E94: 54.7954243 | F94: 54.68431431 | G94: 0.4712872222 | H94: -0.001283592953
B95: 1.7 | C95: 0.5306282511 | D95: 91 | E95: 60.1949678 | F95: 59.93208478 | G95: 0.5336651947 | H95: -0.003036943672
B96: 1.8 | C96: 0.5877866649 | D96: 100 | E96: 65.17450984 | F96: 64.87981439 | G96: 0.5911911202 | H96: -0.003404455299
B97: 1.9 | C97: 0.6418538862 | D97: 109 | E97: 69.66097135 | F97: 69.55996511 | G97: 0.643020756 | H97: -0.00116686984
B98: 2 | C98: 0.6931471806 | D98: 118 | E98: 73.56412432 | F98: 74 | G98: 0.6881117473 | H98: 0.005035433298

Sheet 5DV_Chen
A1: Synthesize | I1: =PI()/180 -> 0.01745329252
A2: y=log x | C2: 1<x<10 | L2: Optimal Synthesis of Function Generators Without the Branch Defect
L3: Tinunu&Gupta
B4: qin | C4: 5.653239648 | D4: =C4*D_R -> 0.09866764527 | L4: Transactions of the ASME | N4: Vol. 106, SEPTEMBER 1984
B5: fin | C5: 114.0059537 | D5: =C5*D_R -> 1.98977926 | H5: qin | K5: qin | N5: qin
H6: fin | K6: fin | N6: fin
B7: Dq | C7: 90 | D7: =C7/9 -> 10 | E7: =D7*D_R -> 0.1745329252 | H7: qin | K7: qin | N7: qin
B8: Df | C8: 60 | D8: =C8/LOG(10) -> 60 | E8: =D8*D_R -> 1.047197551 | H8: fin | K8: fin | N8: fin | AB8: f is variable
AB9: qin | AC9: 80
B10: y=sin(X) | AB10: fin | AC10: 132.6195193
B11: x | C11: y(required) | D11: q | E11: f | G11: q | H11: f | J11: cosf | K11: cosq | L11: cos(f-q) | M11: cos2f | N11: cos2q | O11: cosfcosq | P11: cosq*cos(f-q) | Q11: cosf*cos(f-q)
D12: =C4+0 -> 5.653239648 | E12: =C5+0 -> 114.0059537 | G12: =D12*D_R -> 0.09866764527 | H12: =E12*D_R -> 1.98977926 | J12: =COS(H12) -> -0.4068315696 | K12: =COS(G12) -> 0.9951362956 | L12: =COS(H12-G12) -> -0.3148658271 | M12: =J12^2 -> 0.165511926 | N12: =K12^2 -> 0.9902962468 | O12: =J12*K12 -> -0.4048528611 | P12: =L12*K12 -> -0.3133344128 | Q12: =J12*L12 -> 0.1280973586 | S12: =(-SIN(G12)*$C$31-SIN(H12-G12))*($C$30*COS(H12)-$C$31*COS(G12)+$C$32-COS(H12-G12)) -> -0.02949760566 | T12: =(-SIN(H12)*$C$30+SIN(H12-G12))*($C$30*COS(H12)-$C$31*COS(G12)+$C$32-COS(H12-G12)) -> 0.03363429409
D13: =C4+40 -> 45.65323965 | E13: =C5+28 -> 142.0059537 | G13: 0.7967993461 | H13: 2.47847145 | J13: =COS(H13) -> -0.7880747242 | K13: =COS(G13) -> 0.6989991454 | L13: =COS(H13-G13) -> -0.1106487429 | M13: =J13^2 -> 0.6210617709 | N13: 0.4885998053 | O13: =J13*K13 -> -0.5508635587 | P13: =L13*K13 -> -0.0773433767 | Q13: =J13*L13 -> 0.08719947751 | S13: =(-SIN(G13)*$C$31-SIN(H13-G13))*($C$30*COS(H13)-$C$31*COS(G13)+$C$32-COS(H13-G13)) -> 0.0431448724 | T13: =(-SIN(H13)*$C$30+SIN(H13-G13))*($C$30*COS(H13)-$C$31*COS(G13)+$C$32-COS(H13-G13)) -> -0.04085431966
D14: =C4+80 -> 85.65323965 | E14: =C5+61.6 -> 175.6059537 | G14: 1.494931047 | H14: 3.064902079 | J14: -0.9970607189 | K14: 0.07579252659 | L14: 0.0008252946874 | M14: 0.9941300772 | N14: 0.005744507086 | O14: -0.07556975105 | P14: 6.255116954e-05 | Q14: -0.0008228689144 | S14: -0.0439842031 | T14: 0.03605759091
D15: =C4+120 -> 125.6532396 | E15: =C5+96 -> 210.0059537 | G15: 2.193062748 | H15: 3.665295342 | J15: -0.8659734429 | K15: -0.5828782578 | L15: 0.09840422241 | M15: 0.7499100038 | N15: 0.3397470634 | O15: 0.5047570917 | P15: -0.05735768172 | Q15: -0.08521544328 | S15: -0.08442885385 | T15: 0.06453110376
D16: =C4+160 -> 165.6532396 | E16: =C5+129 -> 243.0059537 | G16: 2.891194448 | H16: 4.241253995 | J16: -0.4538979107 | K16: -0.9688138274 | L16: 0.218948586 | M16: 0.2060233133 | N16: 0.9386002321 | O16: 0.4397425721 | P16: -0.2121204176 | Q16: -0.09938030574 | S16: 0.03112215088 | T16: -0.02466941259
D17: =C4+200 -> 205.6532396 | E17: =C5+170 -> 284.0059537 | G17: 3.589326149 | H17: 4.956838988 | J17: 0.24202272 | K17: -0.90143064 | L17: 0.2018862909 | M17: 0.05857499701 | N17: 0.8125771987 | O17: -0.2181666954 | P17: -0.1819864884 | Q17: 0.04886106926 | S17: 0.1321027474 | T17: -0.1219947836
D18: =C4+240 -> 245.6532396 | E18: =C5225 -> 0 | G18: 4.28745785 | H18: 0 | J18: 1 | K18: -0.4122580378 | L18: -0.4122580378 | M18: 1 | N18: 0.1699566898 | O18: -0.4122580378 | P18: 0.1699566898 | Q18: -0.4122580378 | S18: -0.149562654 | T18: 0.1959813364
D19: =C4+280 -> 285.6532396 | E19: =C5+274 -> 388.0059537 | G19: 4.985589551 | H19: 6.77198141 | J19: 0.8828988042 | K19: 0.2698146819 | L19: -0.2139292116 | M19: 0.7795102984 | N19: 0.07279996259 | O19: 0.23821906 | P19: -0.05772124218 | Q19: -0.1888778451 | S19: 0.09306950529 | T19: -0.1316210693
D20: =C4+320 -> 325.6532396 | E20: =C5+322 -> 436.0059537 | G20: 5.683721252 | H20: 7.609739451 | J20: 0.2418210686 | K20: 0.8256381134 | L20: -0.3477983948 | M20: 0.0584774292 | N20: 0.6816782943 | O20: 0.1996566908 | P20: -0.2871556105 | Q20: -0.08410497947 | S20: 0.008034018776 | T20: -0.01106474555
J24: =SUM(J12:J20) -> -1.145095773 | K24: =SUM(K12:K20) -> 0 | L24: -0.8794358201 | M24: 4.633199816 | N24: 4.5 | O24: -0.2793354895 | P24: -1.016999989 | Q24: -0.6065015749 | R24: 0 | S24: -2.186316669e-08 | T24: -5.464679494e-09
C26: =M24 -> 4.633199816 | D26: =-O24 -> 0.2793354895 | E26: =J24 -> -1.145095773 | G26: =Q24 -> -0.6065015749 | M26: =M27/D_R -> 325.965136
C27: =O24 -> -0.2793354895 | D27: =-N24 -> -4.5 | E27: =K24 -> 0 | G27: =P24 -> -1.016999989 | K27: 75 | L27: =K27*D_R -> 1.308996939 | M27: =FourBar(ABS(F31),F32,ABS(F33),F30,-1,L27+PI()) -> 5.68916487
C28: =J24 -> -1.145095773 | D28: =-K24 -> 0 | E28: 9 | G28: =L24 -> -0.8794358201
K29: 4 Design Parameter
B30: K1 | C30: =MMULT(MINVERSE(C26:E28),G26:G28) -> -0.1748311958 | E30: a1 | F30: 1 | I30: d1 | J30: =S24 -> -2.186316669e-08 | L30: qin, fin,
B31: K2 | C31: 0.2368525659 | E31: a2 | F31: =F30/C30 -> -5.719803012 | G31: =-F31 -> 5.719803012 | I31: d2 | J31: =T24 -> -5.464679494e-09
B32: K3 | C32: -0.1199593648 | E32: a3 | F32: =SQRT(F30^2+F31^2+F33^2-2*C32*F31*F33) -> 6.7637182 | I32: d | J32: =SQRT(J30^2+J31^2) -> 2.253576668e-08
E33: a4 | F33: =F30/C31 -> 4.222035747 | G33: =-F33 -> -4.222035747
F35: Generated by Four-Bar
C36: q | F36: f | H36: e
C37: =D12 -> 5.653239648 | D37: =C37*D_R+PI() -> 3.240260299 | E37: =FourBar($G$31,$F$32,$F$33,$F$30,1,D37) -> 1.962549693 | F37: =E37/D_R -> 112.4458145 | H37: =F37-E12 -> -1.560139234 | J37: =F37-180 -> -67.55418549
C38: =D13 -> 45.65323965 | D38: 3.938392 | E38: =FourBar($G$31,$F$32,$F$33,$F$30,1,D38) -> 2.512279876 | F38: 143.9430338 | H38: =F38-E13 -> 1.937080095
C39: 85.65323965 | D39: 4.6365237 | E39: 3.029889136 | F39: 173.5998599 | H39: -2.006093868
C40: 125.6532396 | D40: 5.334655401 | E40: 3.587074621 | F40: 205.5242366 | H40: -4.481717157
C41: 165.6532396 | D41: 6.032787102 | E41: 4.277841079 | F41: 245.1022392 | H41: 2.096285492
C42: 205.6532396 | D42: 6.730918803 | E42: -1.144283864 | F42: -65.56263599 | H42: =F42-E17+360 -> 10.43141027
C43: 245.6532396 | D43: 7.429050504 | E43: -0.2312289604 | F43: -13.24844353 | H43: -13.24844353
C44: 285.6532396 | D44: 8.127182204 | E44: 0.606837657 | F44: 34.76923659 | H44: =F44-E19+360 -> 6.763282854
C45: 325.6532396 | D45: 8.825313905 | E45: 1.335591218 | F45: 76.52373994 | H45: =F45-E20+360 -> 0.5177862037
F64: Generated by Four-Bar
B65: x | C65: y(required) | D65: q | E65: fg | F65: freqired | G65: y (generated) | H65: e
B66: 1 | C66: 0 | D66: 30 | E66: 31.25002124 | F66: 30 | G66: 0.01444081163 | H66: -0.01444081163
B67: 1.1 | C67: 0.0953101798 | D67: 39 | E67: 38.00078726 | F67: 38.25021142 | G67: 0.09242871891 | H67: 0.002881460895
B68: 1.2 | C68: 0.1823215568 | D68: 48 | E68: 44.86368623 | F68: 45.78206435 | G68: 0.1717120367 | H68: 0.01060952008
B69: 1.3 | C69: 0.2623642645 | D69: 57 | E69: 51.74521066 | F69: 52.7106974 | G69: 0.2512105243 | H69: 0.01115374014
B70: 1.4 | C70: 0.3364722366 | D70: 66 | E70: 58.55671384 | F70: 59.12560963 | G70: 0.3299000947 | H70: 0.006572141875
B71: 1.5 | C71: 0.4054651081 | D71: 75 | E71: 65.20142848 | F71: 65.09775004 | G71: 0.4066628484 | H71: -0.001197740268
B72: 1.6 | C72: 0.4700036292 | D72: 84 | E72: 71.55500197 | F72: 70.68431431 | G72: 0.4800622075 | H72: -0.01005857828
B73: 1.7 | C73: 0.5306282511 | D73: 93 | E73: 77.42935908 | F73: 75.93208478 | G73: 0.547925442 | H73: -0.01729719098
B74: 1.8 | C74: 0.5877866649 | D74: 102 | E74: 82.48529441 | F74: 80.87981439 | G74: 0.6063338974 | H74: -0.01854723246
B75: 1.9 | C75: 0.6418538862 | D75: 111 | E75: 85.93175883 | F75: 85.55996511 | G75: 0.6461490156 | H75: -0.004295129387
B76: 2 | C76: 0.6931471806 | D76: 120 | E76: 83.94243616 | F76: 90 | G76: 0.623167459 | H76: 0.06997972156
B83: qin | C83: 28
B84: fin | C84: 14
B87: x | C87: y(required) | D87: q | E87: fg | F87: freqired | G87: y (generated) | H87: e
B88: 1 | C88: 0 | D88: 28 | E88: 13.84887412 | F88: 14 | G88: -0.001745874663 | H88: 0.001745874663
B89: 1.1 | C89: 0.0953101798 | D89: 37 | E89: 22.4425745 | F89: 22.25021142 | G89: 0.09753244518 | H89: -0.00222226538
B90: 1.2 | C90: 0.1823215568 | D90: 46 | E90: 29.74673753 | F90: 29.78206435 | G90: 0.1819134453 | H90: 0.0004081114795
B91: 1.3 | C91: 0.2623642645 | D91: 55 | E91: 36.52276731 | F91: 36.7106974 | G91: 0.2601932109 | H91: 0.002171053526
B92: 1.4 | C92: 0.3364722366 | D92: 64 | E92: 42.93747896 | F92: 43.12560963 | G92: 0.3342988659 | H92: 0.002173370765
B93: 1.5 | C93: 0.4054651081 | D93: 73 | E93: 49.03115155 | F93: 49.09775004 | G93: 0.4046957321 | H93: 0.000769375976
B94: 1.6 | C94: 0.4700036292 | D94: 82 | E94: 54.7954243 | F94: 54.68431431 | G94: 0.4712872222 | H94: -0.001283592953
B95: 1.7 | C95: 0.5306282511 | D95: 91 | E95: 60.1949678 | F95: 59.93208478 | G95: 0.5336651947 | H95: -0.003036943672
B96: 1.8 | C96: 0.5877866649 | D96: 100 | E96: 65.17450984 | F96: 64.87981439 | G96: 0.5911911202 | H96: -0.003404455299
B97: 1.9 | C97: 0.6418538862 | D97: 109 | E97: 69.66097135 | F97: 69.55996511 | G97: 0.643020756 | H97: -0.00116686984
B98: 2 | C98: 0.6931471806 | D98: 118 | E98: 73.56412432 | F98: 74 | G98: 0.6881117473 | H98: 0.005035433298

Sheet LwSR5dvlogx
A1: Synthesize | I1: =PI()/180 -> 0.01745329252
A2: y=log x | C2: 1<x<10 | L2: Optimal Synthesis of Function Generators Without the Branch Defect
L3: Tinunu&Gupta
B4: qin | C4: 133.4737003 | D4: =C4*D_R -> 2.329555535 | L4: Transactions of the ASME | N4: Vol. 106, SEPTEMBER 1984
B5: fin | C5: 38.90763911 | D5: =C5*D_R -> 0.6790664067 | H5: qin | K5: qin | N5: qin
H6: fin | K6: fin | N6: fin
B7: Dq | C7: 90 | D7: =C7/9 -> 10 | E7: =D7*D_R -> 0.1745329252 | H7: qin | K7: qin | N7: qin
B8: Df | C8: 60 | D8: =C8/LOG(10) -> 60 | E8: =D8*D_R -> 1.047197551 | H8: fin | K8: fin | N8: fin | AB8: f is variable
AB9: qin | AC9: 80
B10: y=sin(X) | AB10: fin | AC10: 132.6195193
B11: x | C11: y(required) | D11: q | E11: f | G11: q | H11: f | J11: cosf | K11: cosq | L11: cos(f-q) | M11: cos2f | N11: cos2q | O11: cosfcosq | P11: cosq*cos(f-q) | Q11: cosf*cos(f-q)
B12: 1 | C12: =LOG(B12) -> 0 | D12: =(B12-$B$12)*$D$7+$C$4 -> 133.4737003 | E12: =$C$5+$D$8*C12 -> 38.90763911 | G12: =D12*D_R -> 2.329555535 | H12: =E12*D_R -> 0.6790664067 | J12: =COS(H12) -> 0.7781594167 | K12: =COS(G12) -> -0.6880215441 | L12: =COS(H12-G12) -> -0.07960847374 | M12: =J12^2 -> 0.6055320779 | N12: =K12^2 -> 0.4733736452 | O12: =J12*K12 -> -0.5353904435 | P12: =L12*K12 -> 0.05477234503 | Q12: =J12*L12 -> -0.06194808349 | S12: =(-SIN(G12)*$C$31-SIN(H12-G12))*($C$30*COS(H12)-$C$31*COS(G12)+$C$32-COS(H12-G12)) -> 0.4123804892 | T12: =(-SIN(H12)*$C$30+SIN(H12-G12))*($C$30*COS(H12)-$C$31*COS(G12)+$C$32-COS(H12-G12)) -> -0.4713518717
B13: 2 | C13: =LOG(B13) -> 0.3010299957 | D13: =(B13-$B$12)*$D$7+$C$4 -> 143.4737003 | E13: =$C$5+$D$8*C13 -> 56.96943885 | G13: 2.50408846 | H13: 0.994304281 | J13: =COS(H13) -> 0.5450862982 | K13: =COS(G13) -> -0.8035837422 | L13: =COS(H13-G13) -> 0.06097430235 | M13: =J13^2 -> 0.2971190725 | N13: 0.6457468308 | O13: =J13*K13 -> -0.4380224874 | P13: =L13*K13 -> -0.04899795806 | Q13: =J13*L13 -> 0.03323625675 | S13: =(-SIN(G13)*$C$31-SIN(H13-G13))*($C$30*COS(H13)-$C$31*COS(G13)+$C$32-COS(H13-G13)) -> 0.02265454205 | T13: =(-SIN(H13)*$C$30+SIN(H13-G13))*($C$30*COS(H13)-$C$31*COS(G13)+$C$32-COS(H13-G13)) -> -0.02927313962
B14: 3 | C14: 0.4771212547 | D14: 153.4737003 | E14: 67.5349144 | G14: 2.678621385 | H14: 1.178706616 | J14: 0.3821203758 | K14: -0.894729455 | L14: 0.07082221926 | M14: 0.1460159816 | N14: 0.8005407977 | O14: -0.3418943556 | P14: -0.06336672564 | Q14: 0.02706261304 | S14: -0.1350643629 | T14: 0.1877888698
B15: 4 | C15: 0.6020599913 | D15: 163.4737003 | E15: 75.03123859 | G15: 2.85315431 | H15: 1.309542155 | J15: 0.2582923681 | K15: -0.958689266 | L15: 0.02718082401 | M15: 0.06671494744 | N15: 0.9190851088 | O15: -0.2476221208 | P15: -0.02605796422 | Q15: 0.0070205994 | S15: -0.1866207725 | T15: 0.2754431353
B16: 5 | C16: 0.6989700043 | D16: 173.4737003 | E16: 80.84583937 | G16: 3.027687235 | H16: 1.411026084 | J16: 0.1590913802 | K16: -0.9935197888 | L16: -0.04584874654 | M16: 0.02531006725 | N16: 0.9870815708 | O16: -0.1580604345 | P16: 0.04555163698 | Q16: -0.007294140367 | S16: -0.176854122 | T16: 0.2762762797
B17: 6 | C17: 0.7781512504 | D17: 183.4737003 | E17: 85.59671414 | G17: 3.202220161 | H17: 1.493944491 | J17: 0.0767762081 | K17: -0.9981627156 | L17: -0.1370466793 | M17: 0.00589458613 | N17: 0.9963288068 | O17: -0.07663514837 | P17: 0.1367948855 | Q17: -0.01052192437 | S17: -0.128995272 | T17: 0.2137668295
B18: 7 | C18: 0.84509804 | D18: 193.4737003 | E18: 89.61352152 | G18: 3.376753086 | H18: 1.564051005 | J18: 0.006745270897 | K18: -0.9724769733 | L18: -0.2395533251 | M18: 4.549867947e-05 | N18: 0.9457114636 | O18: -0.006559620626 | P18: 0.2329600925 | Q18: -0.001615852072 | S18: -0.05952531242 | T18: 0.1052742897
B19: 8 | C19: 0.903089987 | D19: 203.4737003 | E19: 93.09303833 | G19: 3.551286011 | H19: 1.62478003 | J19: -0.05395748639 | K19: -0.9172430103 | L19: -0.3482556827 | M19: 0.002911410338 | N19: 0.84133474 | O19: 0.04949212725 | P19: 0.3194350908 | Q19: 0.01879100126 | S19: 0.01749940926 | T19: -0.03335457709
B20: 9 | C20: 0.9542425094 | D20: 213.4737003 | E20: 96.16218968 | G20: 3.725818936 | H20: 1.678346826 | J20: -0.1073432775 | K20: -0.8341390826 | L20: -0.4588280664 | M20: 0.01152257923 | N20: 0.6957880091 | O20: 0.08953922305 | P20: 0.3827264224 | Q20: 0.04925210847 | S20: 0.08940991453 | T20: -0.1863797767
B21: 10 | C21: 1 | D21: 223.4737003 | E21: 98.90763911 | G21: 3.900351861 | H21: 1.726263958 | J21: -0.1548421073 | K21: -0.7256902609 | L21: -0.5673560651 | M21: 0.0239760782 | N21: 0.5266263548 | O21: 0.1123674093 | P21: 0.4117247709 | Q21: 0.08785060873 | S21: 0.145108961 | T21: -0.3381915087
J22: 1 | K22: 1 | L22: 1 | M22: 1 | N22: 1 | O22: 1 | P22: 1 | Q22: 1 | S22: 0 | T22: 0
J24: =SUM(J12:J22) -> 2.890128447 | K24: =SUM(K12:K22) -> -7.786255839 | L24: -0.7175196932 | M24: =SUM(M12:M22) -> 2.185042299 | N24: 8.831617328 | O24: -0.5527858511 | P24: 2.445542596 | Q24: 1.141833187 | S24: =SUM(S12:S22) -> -6.525777341e-06 | T24: =SUM(T12:T22) -> -1.469717704e-06
C26: =M24 -> 2.185042299 | D26: =-O24 -> 0.5527858511 | E26: =J24 -> 2.890128447 | G26: =Q24 -> 1.141833187 | M26: =M27/D_R -> 313.4072964
C27: =O24 -> -0.5527858511 | D27: =-N24 -> -8.831617328 | E27: =K24 -> -7.786255839 | G27: =P24 -> 2.445542596 | K27: 75 | L27: =K27*D_R -> 1.308996939 | M27: =FourBar(ABS(F31),F32,ABS(F33),F30,-1,L27+PI()) -> 5.469989222
C28: =J24 -> 2.890128447 | D28: =-K24 -> 7.786255839 | E28: 10 | G28: =L24 -> -0.7175196932
K29: 4 Design Parameter
B30: K1 | C30: =MMULT(MINVERSE(C26:E28),G26:G28) -> 0.6227167605 | E30: a1 | F30: 1 | I30: d1 | J30: =S24 -> -6.525777341e-06 | L30: qin, fin,
B31: K2 | C31: -0.2996618652 | E31: a2 | F31: =F30/C30 -> 1.605866525 | G31: =-F31 -> -1.605866525 | I31: d2 | J31: =T24 -> -1.469717704e-06
B32: K3 | C32: -0.01840071695 | E32: a3 | F32: =SQRT(F30^2+F31^2+F33^2-2*C32*F31*F33) -> 3.810221986 | I32: d | J32: =SQRT(J30^2+J31^2) -> 6.689233142e-06
E33: a4 | F33: =F30/C31 -> -3.337094626 | G33: =-F33 -> 3.337094626
I34: =MIN(J37:J55) -> -0.2250075608 | K34: =SQRT(SUM(L37:L47)) -> 0
F35: Generated by Four-Bar | I35: =MAX(J37:J55) -> 0.10579489 | J35: =MAX(-I34,I35) -> 0.2250075608 | K35: =SQRT(SUM(K37:K55)) -> 0.41466122
B36: x | C36: q | F36: f | H36: ygen | I36: yactual | J36: e
B37: 1 | C37: =(B37-$B$37)*$D$7+$C$4 -> 133.4737003 | D37: =C37*D_R -> 2.329555535 | E37: =FourBar($F$31,$F$32,$G$33,$F$30,-1,D37) -> 4.056286427 | F37: =E37/D_R-180 -> 52.40809276 | H37: =(F37-$C$5)/$D$8 -> 0.2250075608 | I37: =LOG(B37) -> 0 | J37: =I37-H37 -> -0.2250075608 | K37: =J37^2 -> 0.05062840244
B38: 1.5 | C38: =(B38-$B$37)*$D$7+$C$4 -> 138.4737003 | D38: 2.416821997 | E38: =FourBar($F$31,$F$32,$G$33,$F$30,-1,D38) -> 4.102038062 | F38: 55.02946837 | H38: =(F38-$C$5)/$D$8 -> 0.2686971543 | I38: =LOG(B38) -> 0.1760912591 | J38: =I38-H38 -> -0.09260589529 | K38: =J38^2 -> 0.008575851842
B39: 2 | C39: 143.4737003 | D39: 2.50408846 | E39: =FourBar($F$31,$F$32,$G$33,$F$30,-1,D39) -> 4.148549229 | F39: 57.69436192 | H39: 0.3131120467 | I39: 0.3010299957 | J39: -0.01208205106 | K39: 0.0001459759579
B40: 2.5 | C40: 148.4737003 | D40: 2.591354922 | E40: =FourBar($F$31,$F$32,$G$33,$F$30,-1,D40) -> 4.195861974 | F40: 60.40518252 | H40: 0.3582923901 | I40: 0.3979400087 | J40: 0.03964761858 | K40: 0.001571933659
B41: 3 | C41: 153.4737003 | D41: 2.678621385 | E41: =FourBar($F$31,$F$32,$G$33,$F$30,-1,D41) -> 4.244016557 | F41: 63.1642369 | H41: 0.4042766297 | I41: 0.4771212547 | J41: 0.07284462499 | K41: 0.00530633939
B42: 3.5 | C42: 158.4737003 | D42: 2.765887848 | E42: =FourBar($F$31,$F$32,$G$33,$F$30,-1,D42) -> 4.293051754 | F42: 65.97374675 | H42: 0.4511017939 | I42: 0.5440680444 | J42: 0.09296625047 | K42: 0.008642723727
B43: 4 | C43: 163.4737003 | D43: 2.85315431 | E43: =FourBar($F$31,$F$32,$G$33,$F$30,-1,D43) -> 4.343005153 | F43: 68.83586568 | H43: 0.4988037761 | I43: 0.6020599913 | J43: 0.1032562153 | K43: 0.01066184599
B44: 4.5 | C44: 168.4737003 | D44: 2.940420773 | E44: =FourBar($F$31,$F$32,$G$33,$F$30,-1,D44) -> 4.393913455 | F44: 71.75269654 | H44: 0.5474176238 | I44: 0.6532125138 | J44: 0.10579489 | K44: 0.01119255874
B45: 5 | C45: 173.4737003 | D45: 3.027687235 | E45: =FourBar($F$31,$F$32,$G$33,$F$30,-1,D45) -> 4.445812799 | F45: 74.72630989 | H45: 0.5969778463 | I45: 0.6989700043 | J45: 0.101992158 | K45: 0.0104024003
B46: 5.5 | C46: 178.4737003 | D46: 3.114953698 | E46: =FourBar($F$31,$F$32,$G$33,$F$30,-1,D46) -> 4.498739113 | F46: 77.75876432 | H46: 0.6475187535 | I46: 0.7403626895 | J46: 0.09284393602 | K46: 0.008619996456
B47: 6 | C47: 183.4737003 | D47: 3.202220161 | E47: =FourBar($F$31,$F$32,$G$33,$F$30,-1,D47) -> 4.552728519 | F47: 80.85212939 | H47: 0.699074838 | I47: 0.7781512504 | J47: 0.07907641242 | K47: 0.006253079002
B48: 6.5 | C48: 188.4737003 | D48: 3.289486623 | E48: =FourBar($F$31,$F$32,$G$33,$F$30,-1,D48) -> 4.607817785 | F48: 84.00851186 | H48: 0.7516812124 | I48: 0.8129133566 | J48: 0.06123214428 | K48: 0.003749375494
B49: 7 | C49: 193.4737003 | D49: 3.376753086 | E49: =FourBar($F$31,$F$32,$G$33,$F$30,-1,D49) -> 4.664044861 | F49: 87.23008601 | H49: 0.805374115 | I49: 0.84509804 | J49: 0.03972392503 | K49: 0.001577990219
B50: 7.5 | C50: 198.4737003 | D50: 3.464019548 | E50: =FourBar($F$31,$F$32,$G$33,$F$30,-1,D50) -> 4.721449491 | F50: 90.51912903 | H50: 0.8601914986 | I50: 0.8750612634 | J50: 0.0148697648 | K50: 0.0002211099051
B51: 8 | C51: 203.4737003 | D51: 3.551286011 | E51: =FourBar($F$31,$F$32,$G$33,$F$30,-1,D51) -> 4.780073935 | F51: 93.87806225 | H51: 0.9161737188 | I51: 0.903089987 | J51: -0.01308373185 | K51: 0.0001711840392
B52: 8.5 | C52: 208.4737003 | D52: 3.638552474 | E52: =FourBar($F$31,$F$32,$G$33,$F$30,-1,D52) -> 4.839963816 | F52: 97.30949966 | H52: 0.9733643424 | I52: 0.9294189257 | J52: -0.04394541671 | K52: 0.00193119965
B53: 9 | C53: 213.4737003 | D53: 3.725818936 | E53: =FourBar($F$31,$F$32,$G$33,$F$30,-1,D53) -> 4.901169116 | F53: 100.816305 | H53: 1.031811099 | I53: 0.9542425094 | J53: -0.07756858926 | K53: 0.00601688604
B54: 9.5 | C54: 218.4737003 | D54: 3.813085399 | E54: =FourBar($F$31,$F$32,$G$33,$F$30,-1,D54) -> 4.963745354 | F54: 104.4016594 | H54: 1.091567005 | I54: 0.9777236053 | J54: -0.1138433992 | K54: 0.01296031955
B55: 10 | C55: 223.4737003 | D55: 3.900351861 | E55: =FourBar($F$31,$F$32,$G$33,$F$30,-1,D55) -> 5.027754985 | F55: 108.0691411 | H55: 1.152691699 | I55: 1 | J55: -0.1526916992 | K55: 0.02331475499
F64: Generated by Four-Bar
B65: x | C65: y(required) | D65: q | E65: fg | F65: freqired | G65: y (generated) | H65: e
B66: 1 | C66: 0 | D66: 30 | E66: 31.25002124 | F66: 30 | G66: 0.01444081163 | H66: -0.01444081163
B67: 1.1 | C67: 0.0953101798 | D67: 39 | E67: 38.00078726 | F67: 38.25021142 | G67: 0.09242871891 | H67: 0.002881460895
B68: 1.2 | C68: 0.1823215568 | D68: 48 | E68: 44.86368623 | F68: 45.78206435 | G68: 0.1717120367 | H68: 0.01060952008
B69: 1.3 | C69: 0.2623642645 | D69: 57 | E69: 51.74521066 | F69: 52.7106974 | G69: 0.2512105243 | H69: 0.01115374014
B70: 1.4 | C70: 0.3364722366 | D70: 66 | E70: 58.55671384 | F70: 59.12560963 | G70: 0.3299000947 | H70: 0.006572141875
B71: 1.5 | C71: 0.4054651081 | D71: 75 | E71: 65.20142848 | F71: 65.09775004 | G71: 0.4066628484 | H71: -0.001197740268
B72: 1.6 | C72: 0.4700036292 | D72: 84 | E72: 71.55500197 | F72: 70.68431431 | G72: 0.4800622075 | H72: -0.01005857828
B73: 1.7 | C73: 0.5306282511 | D73: 93 | E73: 77.42935908 | F73: 75.93208478 | G73: 0.547925442 | H73: -0.01729719098
B74: 1.8 | C74: 0.5877866649 | D74: 102 | E74: 82.48529441 | F74: 80.87981439 | G74: 0.6063338974 | H74: -0.01854723246
B75: 1.9 | C75: 0.6418538862 | D75: 111 | E75: 85.93175883 | F75: 85.55996511 | G75: 0.6461490156 | H75: -0.004295129387
B76: 2 | C76: 0.6931471806 | D76: 120 | E76: 83.94243616 | F76: 90 | G76: 0.623167459 | H76: 0.06997972156
B83: qin | C83: 28
B84: fin | C84: 14
B87: x | C87: y(required) | D87: q | E87: fg | F87: freqired | G87: y (generated) | H87: e
B88: 1 | C88: 0 | D88: 28 | E88: 13.84887412 | F88: 14 | G88: -0.001745874663 | H88: 0.001745874663
B89: 1.1 | C89: 0.0953101798 | D89: 37 | E89: 22.4425745 | F89: 22.25021142 | G89: 0.09753244518 | H89: -0.00222226538
B90: 1.2 | C90: 0.1823215568 | D90: 46 | E90: 29.74673753 | F90: 29.78206435 | G90: 0.1819134453 | H90: 0.0004081114795
B91: 1.3 | C91: 0.2623642645 | D91: 55 | E91: 36.52276731 | F91: 36.7106974 | G91: 0.2601932109 | H91: 0.002171053526
B92: 1.4 | C92: 0.3364722366 | D92: 64 | E92: 42.93747896 | F92: 43.12560963 | G92: 0.3342988659 | H92: 0.002173370765
B93: 1.5 | C93: 0.4054651081 | D93: 73 | E93: 49.03115155 | F93: 49.09775004 | G93: 0.4046957321 | H93: 0.000769375976
B94: 1.6 | C94: 0.4700036292 | D94: 82 | E94: 54.7954243 | F94: 54.68431431 | G94: 0.4712872222 | H94: -0.001283592953
B95: 1.7 | C95: 0.5306282511 | D95: 91 | E95: 60.1949678 | F95: 59.93208478 | G95: 0.5336651947 | H95: -0.003036943672
B96: 1.8 | C96: 0.5877866649 | D96: 100 | E96: 65.17450984 | F96: 64.87981439 | G96: 0.5911911202 | H96: -0.003404455299
B97: 1.9 | C97: 0.6418538862 | D97: 109 | E97: 69.66097135 | F97: 69.55996511 | G97: 0.643020756 | H97: -0.00116686984
B98: 2 | C98: 0.6931471806 | D98: 118 | E98: 73.56412432 | F98: 74 | G98: 0.6881117473 | H98: 0.005035433298

Sheet Least_4DV_1 LOGX
A1: Synthesize | I1: =PI()/180 -> 0.01745329252
A2: y=log x | C2: 1<x<10 | L2: Optimal Synthesis of Function Generators Without the Branch Defect
L3: Tinunu&Gupta
B4: qin | C4: 275.9050624 | D4: =C4*D_R -> 4.815451762 | L4: Transactions of the ASME | N4: Vol. 106, SEPTEMBER 1984
B5: fin | C5: 40 | D5: =C5*D_R -> 0.6981317008 | H5: qin | I5: 181.8997081 | J5: 240270 | K5: qin | L5: 86.75987236 | M5: 60 | N5: qin | O5: 112.0642219 | P5: 80,30,150
H6: fin | I6: 40 | K6: fin | L6: 40 | N6: fin | O6: 110
B7: Dq | C7: 90 | D7: =C7/9 -> 10 | E7: =D7*D_R -> 0.1745329252 | H7: qin | I7: 294.9097282 | J7: 300340 | K7: qin | L7: 129.5631864 | M7: 160 | N7: qin | O7: 233.1099547 | P7: 220
B8: Df | C8: 60 | D8: =C8/LOG(10) -> 60 | E8: =D8*D_R -> 1.047197551 | H8: fin | I8: 40 | K8: fin | L8: 40 | N8: fin | O8: 110 | P8: Mekanizma uzuv boyutları kötü | AB8: f is variable
AB9: qin | AC9: 200.0698994
B10: y=sin(X) | AB10: fin | AC10: 40
B11: x | C11: y(required) | D11: q | E11: f | G11: q | H11: f | J11: cosf | K11: cosq | L11: cos(f-q) | M11: cos2f | N11: cos2q | O11: cosfcosq | P11: cosq*cos(f-q) | Q11: cosf*cos(f-q)
B12: 1 | C12: =LOG(B12) -> 0 | D12: =(B12-$B$12)*$D$7+$C$4 -> 275.9050624 | E12: =$C$5+$D$8*C12 -> 40 | G12: =D12*D_R -> 4.815451762 | H12: =E12*D_R -> 0.6981317008 | J12: =COS(H12) -> 0.7660444431 | K12: =COS(G12) -> 0.1028804244 | L12: =COS(H12-G12) -> -0.5605658283 | M12: =J12^2 -> 0.5868240888 | N12: =K12^2 -> 0.01058438172 | O12: =J12*K12 -> 0.07881097739 | P12: =L12*K12 -> -0.0576712503 | Q12: =J12*L12 -> -0.4294183377 | S12: =(-SIN(G12)*$C$31-SIN(H12-G12))*($C$30*COS(H12)-$C$31*COS(G12)+$C$32-COS(H12-G12)) -> 0.2338546633 | T12: =(-SIN(H12)*$C$30+SIN(H12-G12))*($C$30*COS(H12)-$C$31*COS(G12)+$C$32-COS(H12-G12)) -> -0.1860792713 | AB12: qin | AC12: 95.9050636
B13: 2 | C13: =LOG(B13) -> 0.3010299957 | D13: =(B13-$B$12)*$D$7+$C$4 -> 285.9050624 | E13: =$C$5+$D$8*C13 -> 58.06179974 | G13: 4.989984687 | H13: 1.013369575 | J13: =COS(H13) -> 0.5290042439 | K13: =COS(G13) -> 0.2740441933 | L13: =COS(H13-G13) -> -0.6711610339 | M13: =J13^2 -> 0.2798454901 | N13: 0.07510021986 | O13: =J13*K13 -> 0.1449705412 | P13: =L13*K13 -> -0.1839277841 | Q13: =J13*L13 -> -0.3550470353 | S13: =(-SIN(G13)*$C$31-SIN(H13-G13))*($C$30*COS(H13)-$C$31*COS(G13)+$C$32-COS(H13-G13)) -> -0.008217496979 | T13: =(-SIN(H13)*$C$30+SIN(H13-G13))*($C$30*COS(H13)-$C$31*COS(G13)+$C$32-COS(H13-G13)) -> 0.0067249906 | AB13: fin | AC13: 40
B14: 3 | C14: 0.4771212547 | D14: 295.9050624 | E14: 68.62727528 | G14: 5.164517613 | H14: 1.19777191 | J14: 0.3644335199 | K14: 0.436881268 | L14: -0.6784445361 | M14: 0.1328117905 | N14: 0.1908652423 | O14: 0.1592141783 | P14: -0.2963997092 | Q14: -0.2472479304 | S14: -0.1016497901 | T14: 0.08606446487
B15: 4 | C15: 0.6020599913 | D15: 305.9050624 | E15: 76.12359948 | G15: 5.339050538 | H15: 1.328607449 | J15: 0.239828195 | K15: 0.5864439265 | L15: -0.6457047669 | M15: 0.05751756313 | N15: 0.3439164789 | O15: 0.1406457884 | P15: -0.3786696388 | Q15: -0.1548582088 | S15: -0.1417960902 | T15: 0.1250704161 | AB15: qin | AC15: 20.06983904 | AD15: 80
B16: 5 | C16: 0.6989700043 | D16: 315.9050624 | E16: 81.93820026 | G16: 5.513583463 | H16: 1.430091378 | J16: 0.1402411318 | K16: 0.718187783 | L16: -0.5882530605 | M16: 0.01966757504 | N16: 0.5157936917 | O16: 0.1007194675 | P16: -0.4224761614 | Q16: -0.08249727498 | S16: -0.1466130004 | T16: 0.1353410554 | AB16: fin | AC16: 40 | AD16: 40
B17: 6 | C17: 0.7781512504 | D17: 325.9050624 | E17: 86.68907502 | G17: 5.688116388 | H17: 1.513009785 | J17: 0.05775438655 | K17: 0.8281098672 | L17: -0.5118031669 | M17: 0.003335569166 | N17: 0.6857659522 | O17: 0.04782697738 | P17: -0.4238292526 | Q17: -0.02955887794 | S17: -0.1204298028 | T17: 0.1166836958
B18: 7 | C18: 0.84509804 | D18: 335.9050624 | E18: 90.7058824 | G18: 5.862649313 | H18: 1.583116299 | J18: -0.01231966037 | K18: 0.9128702521 | L18: -0.4194650738 | M18: 0.0001517740317 | N18: 0.8333320972 | O18: -0.01124625147 | P18: -0.3829171877 | Q18: 0.005167667247 | S18: -0.06555683011 | T18: 0.06680331215 | AB18: qin | AC18: 200.0699438 | AD18: 140
B19: 8 | C19: 0.903089987 | D19: 345.9050624 | E19: 94.18539922 | G19: 6.037182239 | H19: 1.643845324 | J19: -0.07298404742 | K19: 0.9698935364 | L19: -0.3136666063 | M19: 0.005326671177 | N19: 0.9406934719 | O19: -0.07078675585 | P19: -0.304223214 | Q19: 0.02289265847 | S19: 0.01437474441 | T19: -0.01543449438 | AB19: fin | AC19: 40
B20: 9 | C20: 0.9542425094 | D20: 355.9050624 | E20: 97.25455057 | G20: 6.211715164 | H20: 1.69741212 | J20: -0.1262777561 | K20: 0.9974470963 | L20: -0.1967930583 | M20: 0.01594607169 | N20: 0.9949007099 | O20: -0.1259553812 | P20: -0.1962906646 | Q20: 0.02485058582 | S20: 0.1133241952 | T20: -0.128493875
B21: 10 | C21: 1 | D21: 365.9050624 | E21: 100 | G21: 6.386248089 | H21: 1.745329252 | J21: -0.1736481777 | K21: 0.9946937309 | L21: -0.07140931416 | M21: 0.03015368961 | N21: 0.9894156183 | O21: -0.1727267537 | P21: -0.07103039712 | Q21: 0.01240009727 | S21: 0.2227092295 | T21: -0.2674647627
J24: =SUM(J12:J21) -> 1.712076279 | K24: =SUM(K12:K21) -> 6.821452078 | L24: -4.657266445 | M24: 1.131580283 | N24: 5.580367864 | O24: 0.291472788 | P24: =SUM(P12:P21) -> -2.71743526 | Q24: =SUM(Q12:Q21) -> -1.233316656 | R24: 0 | S24: -1.781118412e-07 | T24: -0.06078446845
C26: =M24 -> 1.131580283 | D26: =-O24 -> -0.291472788 | E26: =J24 -> 1.712076279 | G26: =Q24 -> -1.233316656 | M26: =M27/D_R -> 370.217486
C27: =O24 -> 0.291472788 | D27: =-N24 -> -5.580367864 | E27: =K24 -> 6.821452078 | G27: =P24 -> -2.71743526 | K27: 75 | L27: =K27*D_R -> 1.308996939 | M27: =FourBar(ABS(F31),F32,ABS(F33),F30,-1,L27+PI()) -> 6.461514079
C28: =J24 -> 1.712076279 | D28: =-K24 -> -6.821452078 | E28: 10 | G28: =L24 -> -4.657266445
K29: 4 Design Parameter
B30: K1 | C30: =MMULT(MINVERSE(C26:E28),G26:G28) -> -0.160380115 | E30: a1 | F30: 1 | I30: d1 | J30: =S24 -> -1.781118412e-07 | L30: qin
B31: K2 | C31: -0.3439990518 | E31: a2 | F31: =F30/C30 -> -6.23518695 | G31: =-F31 -> 6.23518695 | I31: d2 | J31: =T24 -> -0.06078446845
B32: K3 | C32: -0.6729256502 | E32: a3 | F32: =SQRT(F30^2+F31^2+F33^2-2*C32*F31*F33) -> 8.527747073 | I32: d | J32: =SQRT(J30^2+J31^2) -> 0.06078446845
E33: a4 | F33: =F30/C31 -> -2.906984757 | G33: =-F33 -> 2.906984757
I34: =MIN(J37:J55) -> -0.2185231114 | K34: =SQRT(SUM(L37:L47)) -> 0
F35: Generated by Four-Bar | I35: =MAX(J37:J55) -> 0.13799834 | J35: =MAX(-I34,I35) -> 0.2185231114 | K35: =SQRT(SUM(K37:K55)) -> 0.4953471789
B36: x | C36: q | F36: f | H36: ygen | I36: yactual | J36: e
B37: 1 | C37: =(B37-$B$37)*$D$7+$C$4 -> 275.9050624 | D37: =C37*D_R-PI() -> 1.673859109 | E37: =FourBar($G$31,$F$32,$G$33,$F$30,-1,D37) -> 4.068561221 | F37: =E37/D_R-180 -> 53.11138668 | H37: =(F37-$C$5)/$D$8 -> 0.2185231114 | I37: =LOG(B37) -> 0 | J37: =I37-H37 -> -0.2185231114 | K37: =J37^2 -> 0.0477523502
B38: 1.5 | C38: =(B38-$B$37)*$D$7+$C$4 -> 280.9050624 | D38: 1.761125571 | E38: =FourBar($G$31,$F$32,$G$33,$F$30,-1,D38) -> 4.106225867 | F38: 55.2694119 | H38: =(F38-$C$5)/$D$8 -> 0.2544901983 | I38: =LOG(B38) -> 0.1760912591 | J38: =I38-H38 -> -0.07839893922 | K38: =J38^2 -> 0.006146393671
B39: 2 | C39: 285.9050624 | D39: 1.848392034 | E39: 4.146252056 | F39: 57.56274362 | H39: 0.2927123937 | I39: 0.3010299957 | J39: 0.008317601964 | K39: 6.918250244e-05
B40: 2.5 | C40: 290.9050624 | D40: 1.935658496 | E40: 4.188530708 | F40: 59.98513195 | H40: 0.3330855325 | I40: 0.3979400087 | J40: 0.06485447616 | K40: 0.004206103078
B41: 3 | C41: 295.9050624 | D41: 2.022924959 | E41: 4.232995157 | F41: 62.53275722 | H41: 0.3755459536 | I41: 0.4771212547 | J41: 0.1015753011 | K41: 0.0103175418
B42: 3.5 | C42: 300.9050624 | D42: 2.110191422 | E42: 4.279609673 | F42: 65.20357222 | H42: 0.420059537 | I42: 0.5440680444 | J42: 0.1240085074 | K42: 0.0153781099
B43: 4 | C43: 305.9050624 | D43: 2.197457884 | E43: 4.328361533 | F43: 67.99684807 | H43: 0.4666141345 | I43: 0.6020599913 | J43: 0.1354458568 | K43: 0.01834558013
B44: 4.5 | C44: 310.9050624 | D44: 2.284724347 | E44: 4.379255376 | F44: 70.91285043 | H44: 0.5152141738 | I44: 0.6532125138 | J44: 0.13799834 | K44: 0.01904354184
B45: 5 | C45: 315.9050624 | D45: 2.371990809 | E45: 4.432309051 | F45: 73.95260213 | H45: 0.5658767021 | I45: 0.6989700043 | J45: 0.1330933022 | K45: 0.0177138271
B46: 5.5 | C46: 320.9050624 | D46: 2.459257272 | E46: 4.487550515 | F46: 77.11770484 | H46: 0.618628414 | I46: 0.7403626895 | J46: 0.1217342755 | K46: 0.01481923383
B47: 6 | C47: 325.9050624 | D47: 2.546523735 | E47: 4.545015438 | F47: 80.4102024 | H47: 0.6735033734 | I47: 0.7781512504 | J47: 0.104647877 | K47: 0.01095117817
B48: 6.5 | C48: 330.9050624 | D48: 2.633790197 | E48: 4.604745354 | F48: 83.83247454 | H48: 0.7305412423 | I48: 0.8129133566 | J48: 0.08237211437 | K48: 0.006785165226
B49: 7 | C49: 335.9050624 | D49: 2.72105666 | E49: 4.66678621 | F49: 87.38715371 | H49: 0.7897858952 | I49: 0.84509804 | J49: 0.05531214484 | K49: 0.003059433367
B50: 7.5 | C50: 340.9050624 | D50: 2.808323122 | E50: 4.731187229 | F50: 91.07706028 | H50: 0.851284338 | I50: 0.8750612634 | J50: 0.0237769254 | K50: 0.0005653421816
B51: 8 | C51: 345.9050624 | D51: 2.895589585 | E51: 4.798000048 | F51: 94.90515284 | H51: 0.9150858806 | I51: 0.903089987 | J51: -0.01199589365 | K51: 0.0001439014644
B52: 8.5 | C52: 350.9050624 | D52: 2.982856048 | E52: 4.867278081 | F52: 98.87449177 | H52: 0.9812415294 | I52: 0.9294189257 | J52: -0.05182260373 | K52: 0.002685582257
B53: 9 | C53: 355.9050624 | D53: 3.07012251 | E53: 4.939076091 | F53: 102.9882147 | H53: 1.049803578 | I53: 0.9542425094 | J53: -0.09556106875 | K53: 0.00913191786
B54: 9.5 | C54: 360.9050624 | D54: 3.157388973 | E54: 5.013449952 | F54: 107.2495231 | H54: 1.120825384 | I54: 0.9777236053 | J54: -0.1431017792 | K54: 0.02047811921
B55: 10 | C55: 365.9050624 | D55: 3.244655435 | E55: 5.090456607 | F55: 111.6616794 | H55: 1.194361323 | I55: 1 | J55: -0.1943613229 | K55: 0.03777632385
F64: Generated by Four-Bar
B65: x | C65: y(required) | D65: q | E65: fg | F65: freqired | G65: y (generated) | H65: e
B66: 1 | C66: 0 | D66: 30 | E66: 31.25002124 | F66: 30 | G66: 0.01444081163 | H66: -0.01444081163
B67: 1.1 | C67: 0.0953101798 | D67: 39 | E67: 38.00078726 | F67: 38.25021142 | G67: 0.09242871891 | H67: 0.002881460895
B68: 1.2 | C68: 0.1823215568 | D68: 48 | E68: 44.86368623 | F68: 45.78206435 | G68: 0.1717120367 | H68: 0.01060952008
B69: 1.3 | C69: 0.2623642645 | D69: 57 | E69: 51.74521066 | F69: 52.7106974 | G69: 0.2512105243 | H69: 0.01115374014
B70: 1.4 | C70: 0.3364722366 | D70: 66 | E70: 58.55671384 | F70: 59.12560963 | G70: 0.3299000947 | H70: 0.006572141875
B71: 1.5 | C71: 0.4054651081 | D71: 75 | E71: 65.20142848 | F71: 65.09775004 | G71: 0.4066628484 | H71: -0.001197740268
B72: 1.6 | C72: 0.4700036292 | D72: 84 | E72: 71.55500197 | F72: 70.68431431 | G72: 0.4800622075 | H72: -0.01005857828
B73: 1.7 | C73: 0.5306282511 | D73: 93 | E73: 77.42935908 | F73: 75.93208478 | G73: 0.547925442 | H73: -0.01729719098
B74: 1.8 | C74: 0.5877866649 | D74: 102 | E74: 82.48529441 | F74: 80.87981439 | G74: 0.6063338974 | H74: -0.01854723246
B75: 1.9 | C75: 0.6418538862 | D75: 111 | E75: 85.93175883 | F75: 85.55996511 | G75: 0.6461490156 | H75: -0.004295129387
B76: 2 | C76: 0.6931471806 | D76: 120 | E76: 83.94243616 | F76: 90 | G76: 0.623167459 | H76: 0.06997972156
B83: qin | C83: 28
B84: fin | C84: 14
B87: x | C87: y(required) | D87: q | E87: fg | F87: freqired | G87: y (generated) | H87: e
B88: 1 | C88: 0 | D88: 28 | E88: 13.84887412 | F88: 14 | G88: -0.001745874663 | H88: 0.001745874663
B89: 1.1 | C89: 0.0953101798 | D89: 37 | E89: 22.4425745 | F89: 22.25021142 | G89: 0.09753244518 | H89: -0.00222226538
B90: 1.2 | C90: 0.1823215568 | D90: 46 | E90: 29.74673753 | F90: 29.78206435 | G90: 0.1819134453 | H90: 0.0004081114795
B91: 1.3 | C91: 0.2623642645 | D91: 55 | E91: 36.52276731 | F91: 36.7106974 | G91: 0.2601932109 | H91: 0.002171053526
B92: 1.4 | C92: 0.3364722366 | D92: 64 | E92: 42.93747896 | F92: 43.12560963 | G92: 0.3342988659 | H92: 0.002173370765
B93: 1.5 | C93: 0.4054651081 | D93: 73 | E93: 49.03115155 | F93: 49.09775004 | G93: 0.4046957321 | H93: 0.000769375976
B94: 1.6 | C94: 0.4700036292 | D94: 82 | E94: 54.7954243 | F94: 54.68431431 | G94: 0.4712872222 | H94: -0.001283592953
B95: 1.7 | C95: 0.5306282511 | D95: 91 | E95: 60.1949678 | F95: 59.93208478 | G95: 0.5336651947 | H95: -0.003036943672
B96: 1.8 | C96: 0.5877866649 | D96: 100 | E96: 65.17450984 | F96: 64.87981439 | G96: 0.5911911202 | H96: -0.003404455299
B97: 1.9 | C97: 0.6418538862 | D97: 109 | E97: 69.66097135 | F97: 69.55996511 | G97: 0.643020756 | H97: -0.00116686984
B98: 2 | C98: 0.6931471806 | D98: 118 | E98: 73.56412432 | F98: 74 | G98: 0.6881117473 | H98: 0.005035433298

Sheet Sheet1
A1: Synthesize y=sinx | I1: =PI()/180 -> 0.01745329252
A2: 0<x<90 | L2: Optimal Synthesis of Function Generators Without the Branch Defec
L3: Tinunu&Gupta
B4: qin | C4: 73.30423913 | D4: =C4*D_R -> 1.279400328 | L4: Transactions of the ASME | N4: Vol. 106, SEPTEMBER 1984
B5: fin | C5: 60.41765947 | D5: =C5*D_R -> 1.054487084 | L5: assuming initial crank angles Least squares formulation with 3 design variables is performed.
L6: In the resulting error curve max error is tried to be minized uzing the initial crank angles as the two design variables.
B7: Dq | C7: 120 | D7: =C7/90 -> 1.333333333
B8: Df | C8: 60 | D8: =C8*D_R -> 1.047197551
B10: y=sin(X)
B11: x | C11: y(required) | D11: q | E11: f | G11: q | H11: f | J11: cosf | K11: cosq | L11: cos(f-q) | M11: cos2f | N11: cos2q | O11: cosfcosq | P11: cosq*cos(f-q) | Q11: cosf*cos(f-q)
B12: 0 | C12: =SIN(B12*D_R) -> 0 | D12: =B12*$D$7 -> 0 | E12: 0 | G12: =D12*D_R+$D$4 -> 1.279400328 | H12: =E12*D_R+$D$5 -> 1.054487084 | J12: =COS(H12) -> 0.493673851 | K12: =COS(G12) -> 0.2872896529 | L12: =COS(H12-G12) -> 0.9748134591 | M12: =J12^2 -> 0.2437138711 | N12: =K12^2 -> 0.08253534465 | O12: =J12*K12 -> 0.1418273893 | P12: =L12*K12 -> 0.2800538203 | Q12: =J12*L12 -> 0.4812399143
B13: 10 | C13: 0.1736481777 | D13: =B13*$D$7 -> 13.33333333 | E13: =C13*60 -> 10.41889066 | G13: 1.512110895 | H13: 1.236331031 | J13: =COS(H13) -> 0.3282641432 | K13: =COS(G13) -> 0.05865175194 | L13: =COS(H13-G13) -> 0.9622131351 | M13: =J13^2 -> 0.1077573477 | N13: =K13^2 -> 0.003440028006 | O13: =J13*K13 -> 0.0192532671 | P13: =L13*K13 -> 0.05643548611 | Q13: =J13*L13 -> 0.3158600703
B14: =B13+10 -> 20 | C14: 0.3420201433 | D14: 26.66666667 | E14: =C14*60 -> 20.5212086 | G14: 1.744821462 | H14: 1.412649741 | J14: 0.1574881933 | K14: -0.1731480801 | L14: 0.9453363819 | M14: 0.02480253102 | N14: 0.02998025765 | O14: -0.02726877831 | P14: -0.1636831796 | Q14: 0.1488793188
B15: =B14+10 -> 30 | C15: 0.5 | D15: 40 | E15: 30 | G15: 1.977532029 | H15: 1.57808586 | J15: -0.00728946836 | K15: -0.3956134544 | L15: 0.9212765245 | M15: 5.313634897e-05 | N15: 0.1565100053 | O15: 0.002883811758 | P15: -0.3644693883 | Q15: -0.006715616076
B16: 40 | C16: 0.6427876097 | D16: 53.33333333 | E16: 38.56725658 | G16: 2.210242596 | H16: 1.727612695 | J16: -0.1561744363 | K16: -0.5967512049 | L16: 0.8857774231 | M16: 0.02439045455 | N16: 0.3561120005 | O16: 0.09319728303 | P16: -0.5285887445 | Q16: -0.1383357897
B17: 50 | C17: 0.7660444431 | D17: 66.66666667 | E17: 45.96266659 | G17: 2.442953163 | H17: 1.856686949 | J17: -0.2820120357 | K17: -0.7657179435 | L17: 0.8330122151 | M17: 0.07953078828 | N17: 0.586323969 | O17: 0.215941676 | P17: -0.6378524002 | Q17: -0.2349194705
B18: 60 | C18: 0.8660254038 | D18: 80 | E18: 51.96152423 | G18: 2.67566373 | H18: 1.961386766 | J18: -0.3807344516 | K18: -0.8934046295 | L18: 0.7555670789 | M18: 0.1449587226 | N18: 0.7981718321 | O18: 0.3401499217 | P18: -0.6750271262 | Q18: -0.2876704174
B19: 70 | C19: 0.9396926208 | D19: 93.33333333 | E19: 56.38155725 | G19: 2.908374297 | H19: 2.038530895 | J19: -0.4508653382 | K19: -0.9729276408 | L19: 0.6449462321 | M19: 0.2032795532 | N19: 0.9465881942 | O19: 0.4386593498 | P19: -0.627486016 | Q19: -0.2907839011
B20: 80 | C20: 0.984807753 | D20: 106.6666667 | E20: 59.08846518 | G20: 3.141084864 | H20: 2.085775351 | J20: -0.4925165943 | K20: -0.9999998711 | L20: 0.4929584616 | M20: 0.2425725956 | N20: 0.9999997421 | O20: 0.4925165308 | P20: -0.4929583981 | Q20: -0.2427902226
B21: 90 | C21: 1 | D21: 120 | E21: 60 | G21: 3.373795431 | H21: 2.101684635 | J21: -0.5062995805 | K21: -0.9731618495 | L21: 0.2942641917 | M21: 0.2563392652 | N21: 0.9470439853 | O21: 0.4927114362 | P21: -0.2863666851 | Q21: -0.1489858368
J22: 1 | K22: 1 | L22: 1 | M22: 1 | N22: 1 | O22: 1 | P22: 1 | Q22: 1
J24: =SUM(J12:J22) -> -0.2964657176 | K24: =SUM(K12:K22) -> -4.424783269 | L24: 8.710165103 | M24: =SUM(M12:M22) -> 2.327398266 | N24: 5.906705359 | O24: 3.209871887 | P24: -2.439942632 | Q24: 0.5957780492
C26: =M24 -> 2.327398266 | D26: =-O24 -> -3.209871887 | E26: =J24 -> -0.2964657176 | G26: =Q24 -> 0.5957780492 | M26: =M27/D_R -> 278.3495249
C27: =O24 -> 3.209871887 | D27: =-N24 -> -5.906705359 | E27: =K24 -> -4.424783269 | G27: =P24 -> -2.439942632 | K27: 79 | L27: =K27*D_R -> 1.378810109 | M27: =FourBar(ABS(F31),F32,ABS(F33),F30,-1,L27+PI()) -> 4.858115681
C28: =J24 -> -0.2964657176 | D28: =-K24 -> 4.424783269 | E28: 11 | G28: =L24 -> 8.710165103
B30: K1 | C30: =MMULT(MINVERSE(C26:E28),G26:G28) -> 7.036646679 | E30: a1 | F30: 1
B31: K2 | C31: 5.012048569 | E31: a2 | F31: =F30/C30 -> 0.1421131464 | G31: =-F31 -> -0.1421131464
B32: K3 | C32: -1.034630822 | E32: a3 | F32: =SQRT(F30^2+F31^2+F33^2-2*C32*F31*F33) -> 1.057675062
E33: a4 | F33: =F30/C31 -> 0.1995192158 | G33: =-F33 -> -0.1995192158
I34: =MIN(J37:J55) -> -0.003679141194
F35: Generated by Four-Bar | I35: =MAX(J37:J55) -> 0.003703371004 | J35: =MAX(-I34,I35) -> 0.003703371004
B36: x | C36: q | F36: f | H36: ygen | I36: yactual | J36: e
B37: 0 | C37: =B37*$D$7+$C$4 -> 73.30423913 | D37: =C37*D_R+PI() -> 4.420992982 | E37: =FourBar($G$31,$F$32,$G$33,$F$30,-1,D37) -> 4.199932525 | F37: =E37-PI()-$D$5 -> 0.003852787649 | H37: =F37/$D$8 -> 0.003679141194 | I37: =SIN(B37*D_R) -> 0 | J37: =I37-H37 -> -0.003679141194
B38: 5 | C38: =B38*$D$7+$C$4 -> 79.9709058 | D38: 4.537348266 | E38: =FourBar($G$31,$F$32,$G$33,$F$30,-1,D38) -> 4.291136256 | F38: =E38-PI()-$D$5 -> 0.09505651852 | H38: =F38/$D$8 -> 0.09077228878 | I38: 0.08715574275 | J38: =I38-H38 -> -0.003616546029
B39: 10 | C39: 86.63757246 | D39: 4.653703549 | E39: 4.380679035 | F39: 0.1845992974 | H39: 0.1762793441 | I39: 0.1736481777 | J39: -0.002631166393
B40: 15 | C40: 93.30423913 | D40: 4.770058832 | E40: 4.46830017 | F40: 0.2722204318 | H40: 0.259951364 | I40: 0.2588190451 | J40: -0.001132318892
B41: 20 | C41: 99.9709058 | D41: 4.886414116 | E41: 4.553699177 | F41: 0.3576194393 | H41: 0.3415014091 | I41: 0.3420201433 | J41: 0.000518734225
B42: 25 | C42: 106.6375725 | D42: 5.002769399 | E42: 4.636530402 | F42: 0.4404506647 | H42: 0.4205994028 | I42: 0.4226182617 | J42: 0.00201885891
B43: 30 | C43: 113.3042391 | D43: 5.119124683 | E43: 4.716397636 | F43: 0.5203178983 | H43: 0.4968669929 | I43: 0.5 | J43: 0.003133007063
B44: 35 | C44: 119.9709058 | D44: 5.235479966 | E44: 4.792849416 | F44: 0.5967696785 | H44: 0.5698730653 | I44: 0.5735764364 | J44: 0.003703371004
B45: 40 | C45: 126.6375725 | D45: 5.35183525 | E45: 4.865376041 | F45: 0.6692963034 | H45: 0.6391308905 | I45: 0.6427876097 | J45: 0.003656719168
B46: 45 | C46: 133.3042391 | D46: 5.468190533 | E46: 4.933409742 | F46: 0.7373300045 | H46: 0.7040982894 | I46: 0.7071067812 | J46: 0.003008491765
B47: 50 | C47: 139.9709058 | D47: 5.584545817 | E47: 4.996329896 | F47: 0.8002501582 | H47: 0.7641826104 | I47: 0.7660444431 | J47: 0.001861832749
B48: 55 | C48: 146.6375725 | D48: 5.7009011 | E48: 5.053475389 | F48: 0.8573956516 | H48: =F48/$D$8 -> 0.8187525368 | I48: 0.8191520443 | J48: 0.00039950745
B49: 60 | C49: 153.3042391 | D49: 5.817256384 | E49: 5.104166015 | F49: 0.9080862777 | H49: 0.8671585191 | I49: 0.8660254038 | J49: -0.001133115296
B50: 65 | C50: 159.9709058 | D50: 5.933611667 | E50: 5.147733706 | F50: 0.9516539682 | H50: 0.9087625989 | I50: 0.906307787 | J50: -0.002454811881
B51: 70 | C51: 166.6375725 | D51: 6.049966951 | E51: 5.18356227 | F51: 0.9874825318 | H51: 0.9429763569 | I51: 0.9396926208 | J51: -0.003283736143
B52: 75 | C52: 173.3042391 | D52: 6.166322234 | E52: 5.211131313 | F52: 1.015051576 | H52: 0.9693028547 | I52: 0.9659258263 | J52: -0.003377028368
B53: 80 | C53: 179.9709058 | D53: 6.282677518 | E53: 5.230057101 | F53: 1.033977363 | H53: 0.9873756501 | I53: 0.984807753 | J53: -0.002567897107
B54: 85 | C54: 186.6375725 | D54: 6.399032801 | E54: 5.240121726 | F54: 1.044041989 | H54: 0.9969866597 | I54: 0.9961946981 | J54: -0.0007919615871
B55: 90 | C55: 193.3042391 | D55: 6.515388084 | E55: 5.241283482 | F55: 1.045203744 | H55: 0.9980960543 | I55: 1 | J55: 0.001903945712
F64: Generated by Four-Bar
B65: x | C65: y(required) | D65: q | E65: fg | F65: freqired | G65: y (generated) | H65: e
B66: 1 | C66: 0 | D66: 30 | E66: 31.25002124 | F66: 30 | G66: 0.01444081163 | H66: -0.01444081163
B67: 1.1 | C67: 0.0953101798 | D67: 39 | E67: 38.00078726 | F67: 38.25021142 | G67: 0.09242871891 | H67: 0.002881460895
B68: 1.2 | C68: 0.1823215568 | D68: 48 | E68: 44.86368623 | F68: 45.78206435 | G68: 0.1717120367 | H68: 0.01060952008
B69: 1.3 | C69: 0.2623642645 | D69: 57 | E69: 51.74521066 | F69: 52.7106974 | G69: 0.2512105243 | H69: 0.01115374014
B70: 1.4 | C70: 0.3364722366 | D70: 66 | E70: 58.55671384 | F70: 59.12560963 | G70: 0.3299000947 | H70: 0.006572141875
B71: 1.5 | C71: 0.4054651081 | D71: 75 | E71: 65.20142848 | F71: 65.09775004 | G71: 0.4066628484 | H71: -0.001197740268
B72: 1.6 | C72: 0.4700036292 | D72: 84 | E72: 71.55500197 | F72: 70.68431431 | G72: 0.4800622075 | H72: -0.01005857828
B73: 1.7 | C73: 0.5306282511 | D73: 93 | E73: 77.42935908 | F73: 75.93208478 | G73: 0.547925442 | H73: -0.01729719098
B74: 1.8 | C74: 0.5877866649 | D74: 102 | E74: 82.48529441 | F74: 80.87981439 | G74: 0.6063338974 | H74: -0.01854723246
B75: 1.9 | C75: 0.6418538862 | D75: 111 | E75: 85.93175883 | F75: 85.55996511 | G75: 0.6461490156 | H75: -0.004295129387
B76: 2 | C76: 0.6931471806 | D76: 120 | E76: 83.94243616 | F76: 90 | G76: 0.623167459 | H76: 0.06997972156
B83: qin | C83: 28
B84: fin | C84: 14
B87: x | C87: y(required) | D87: q | E87: fg | F87: freqired | G87: y (generated) | H87: e
B88: 1 | C88: 0 | D88: 28 | E88: 13.84887412 | F88: 14 | G88: -0.001745874663 | H88: 0.001745874663
B89: 1.1 | C89: 0.0953101798 | D89: 37 | E89: 22.4425745 | F89: 22.25021142 | G89: 0.09753244518 | H89: -0.00222226538
B90: 1.2 | C90: 0.1823215568 | D90: 46 | E90: 29.74673753 | F90: 29.78206435 | G90: 0.1819134453 | H90: 0.0004081114795
B91: 1.3 | C91: 0.2623642645 | D91: 55 | E91: 36.52276731 | F91: 36.7106974 | G91: 0.2601932109 | H91: 0.002171053526
B92: 1.4 | C92: 0.3364722366 | D92: 64 | E92: 42.93747896 | F92: 43.12560963 | G92: 0.3342988659 | H92: 0.002173370765
B93: 1.5 | C93: 0.4054651081 | D93: 73 | E93: 49.03115155 | F93: 49.09775004 | G93: 0.4046957321 | H93: 0.000769375976
B94: 1.6 | C94: 0.4700036292 | D94: 82 | E94: 54.7954243 | F94: 54.68431431 | G94: 0.4712872222 | H94: -0.001283592953
B95: 1.7 | C95: 0.5306282511 | D95: 91 | E95: 60.1949678 | F95: 59.93208478 | G95: 0.5336651947 | H95: -0.003036943672
B96: 1.8 | C96: 0.5877866649 | D96: 100 | E96: 65.17450984 | F96: 64.87981439 | G96: 0.5911911202 | H96: -0.003404455299
B97: 1.9 | C97: 0.6418538862 | D97: 109 | E97: 69.66097135 | F97: 69.55996511 | G97: 0.643020756 | H97: -0.00116686984
B98: 2 | C98: 0.6931471806 | D98: 118 | E98: 73.56412432 | F98: 74 | G98: 0.6881117473 | H98: 0.005035433298

Sheet Sheet1 (2)
A1: Synthesize y=sinx | I1: =PI()/180 -> 0.01745329252
A2: 0<x<90 | L2: Optimal Synthesis of Function Generators Without the Branch Defect
L3: Tinunu&Gupta
B4: qin | C4: 85.42686938 | D4: =C4*D_R -> 1.49098014 | L4: Transactions of the ASME | N4: Vol. 106, SEPTEMBER 1984
B5: fin | C5: 72.95244262 | D5: =C5*D_R -> 1.273260321
B7: Dq | C7: 120 | D7: =C7/90 -> 1.333333333
B8: Df | C8: 60 | D8: =C8*D_R -> 1.047197551
B10: y=sin(X)
B11: x | C11: y(required) | D11: q | E11: f | G11: q | H11: f | J11: cosf | K11: cosq | L11: cos(f-q) | M11: cos2f | N11: cos2q | O11: cosfcosq | P11: cosq*cos(f-q) | Q11: cosf*cos(f-q)
B12: 0 | C12: =SIN(B12*D_R) -> 0 | D12: =B12*$D$7 -> 0 | E12: 0 | G12: =D12*D_R+$D$4 -> 1.49098014 | H12: =E12*D_R+$D$5 -> 1.273260321 | J12: =COS(H12) -> 0.2931653683 | K12: =COS(G12) -> 0.07973146691 | L12: =COS(H12-G12) -> 0.9763925149 | M12: =J12^2 -> 0.08594593319 | N12: =K12^2 -> 0.006357106815 | O12: =J12*K12 -> 0.02337450486 | P12: =L12*K12 -> 0.07784920749 | Q12: =J12*L12 -> 0.2862444713 | S12: =(-SIN(G12)*$C$31-SIN(H12-G12))*($C$30*COS(H12)-$C$31*COS(G12)+$C$32-COS(H12-G12)) -> 0.006474532122 | T12: =(-SIN(H12)*$C$30+SIN(H12-G12))*($C$30*COS(H12)-$C$31*COS(G12)+$C$32-COS(H12-G12)) -> 0.009780128177
B13: 10 | C13: 0.1736481777 | D13: =B13*$D$7 -> 13.33333333 | E13: =C13*60 -> 10.41889066 | G13: 1.723690707 | H13: 1.455104267 | J13: =COS(H13) -> 0.115434149 | K13: =COS(G13) -> -0.1522993823 | L13: =COS(H13-G13) -> 0.9641469743 | M13: =J13^2 -> 0.01332504275 | N13: 0.02319510184 | O13: =J13*K13 -> -0.01758054958 | P13: =L13*K13 -> -0.1468389886 | Q13: =J13*L13 -> 0.1112954855 | S13: =(-SIN(G13)*$C$31-SIN(H13-G13))*($C$30*COS(H13)-$C$31*COS(G13)+$C$32-COS(H13-G13)) -> -0.006581257069 | T13: =(-SIN(H13)*$C$30+SIN(H13-G13))*($C$30*COS(H13)-$C$31*COS(G13)+$C$32-COS(H13-G13)) -> -0.01083317562
B14: =B13+10 -> 20 | C14: 0.3420201433 | D14: 26.66666667 | E14: =C14*60 -> 20.5212086 | G14: 1.956401274 | H14: 1.631422978 | J14: -0.06058951784 | K14: -0.3761197324 | L14: 0.9476576563 | M14: 0.003671089672 | N14: 0.1414660531 | O14: 0.02278891323 | P14: -0.356432744 | Q14: -0.05741812047 | S14: -0.001847727034 | T14: -0.003448060234
B15: =B14+10 -> 30 | C15: 0.5 | D15: 40 | E15: 30 | G15: 2.189111841 | H15: 1.796859097 | J15: -0.2241422177 | K15: -0.5796633703 | L15: 0.9240502463 | M15: 0.05023973377 | N15: 0.3360096229 | O15: 0.1299270334 | P15: -0.5356380801 | Q15: -0.2071186715 | S15: 0.003788686343 | T15: 0.008593965534
B16: 40 | C16: 0.6427876097 | D16: 53.33333333 | E16: 38.56725658 | G16: 2.421822408 | H16: 1.946385932 | J16: -0.3668210974 | K16: -0.7519572059 | L16: 0.8890930195 | M16: 0.1345577175 | N16: 0.5654396395 | O16: 0.2758337675 | P16: -0.6685599028 | Q16: -0.3261380771 | S16: 0.003268234657 | T16: 0.01033831497
B17: 50 | C17: 0.7660444431 | D17: 66.66666667 | E17: 45.96266659 | G17: 2.654532975 | H17: 2.075460186 | J17: -0.4835132311 | K17: -0.8837128339 | L17: 0.8369704241 | M17: 0.2337850447 | N17: 0.7809483728 | O17: 0.4272868477 | P17: -0.7396415054 | Q17: -0.4046862741 | S17: 0.0002695420059 | T17: 0.001703419832
B18: 60 | C18: 0.8660254038 | D18: 80 | E18: 51.96152423 | G18: 2.887243542 | H18: 2.180160003 | J18: -0.5723457828 | K18: -0.9678272743 | L18: 0.760259696 | M18: 0.327579695 | N18: 0.9366896329 | O18: 0.5539318589 | P18: -0.7358000693 | Q18: -0.4351314308 | S18: 0.000232851885 | T18: -0.00785913154
B19: 70 | C19: 0.9396926208 | D19: 93.33333333 | E19: 56.38155725 | G19: 3.119954109 | H19: 2.257304132 | J19: -0.6338399653 | K19: -0.9997658958 | L19: 0.6504269147 | M19: 0.4017531016 | N19: 0.9995318465 | O19: 0.6336915807 | P19: -0.650274647 | Q19: -0.412266573 | S19: 0.002165806943 | T19: -0.009216714452
B20: 80 | C20: 0.984807753 | D20: 106.6666667 | E20: 59.08846518 | G20: 3.352664676 | H20: 2.304548588 | J20: -0.6696610232 | K20: -0.9778068791 | L20: 0.4992043135 | M20: 0.4484458859 | N20: 0.9561062929 | O20: 0.6547991551 | P20: -0.4881254118 | Q20: -0.3342976713 | S20: 0.0005649157373 | T20: -0.001291115924
B21: 90 | C21: 1 | D21: 120 | E21: 60 | G21: 3.585375243 | H21: 2.320457872 | J21: -0.6813910776 | K21: -0.9031340405 | L21: 0.3011314488 | M21: 0.4642938006 | N21: 0.815651095 | O21: 0.615387477 | P21: -0.2719620621 | Q21: -0.2051882824 | S21: -0.003501212435 | T21: 0.005689446229
J22: 1 | K22: 1 | L22: 1 | M22: 1 | N22: 1 | O22: 1 | P22: 1 | Q22: 1 | S22: 0 | T22: 0
J24: =SUM(J12:J22) -> -2.283704396 | K24: =SUM(K12:K22) -> -5.512555148 | L24: 8.749333208 | M24: =SUM(M12:M22) -> 3.163597045 | N24: 6.561394764 | O24: 4.319440589 | P24: -3.515424204 | Q24: -0.984705144 | S24: =SUM(S12:S22) -> 0.004834373156 | T24: =SUM(T12:T22) -> 0.003457076981
C26: =M24 -> 3.163597045 | D26: =-O24 -> -4.319440589 | E26: =J24 -> -2.283704396 | G26: =Q24 -> -0.984705144 | M26: =M27/D_R -> 271.7904646
C27: =O24 -> 4.319440589 | D27: =-N24 -> -6.561394764 | E27: =K24 -> -5.512555148 | G27: =P24 -> -3.515424204 | K27: 75 | L27: =K27*D_R -> 1.308996939 | M27: =FourBar(ABS(F31),F32,ABS(F33),F30,-1,L27+PI()) -> 4.743638483
C28: =J24 -> -2.283704396 | D28: =-K24 -> 5.512555148 | E28: 11 | G28: =L24 -> 8.749333208
B30: K1 | C30: =MMULT(MINVERSE(C26:E28),G26:G28) -> 2.932536225 | E30: a1 | F30: 1 | I30: d1 | J30: =S24 -> 0.004834373156
B31: K2 | C31: 2.222139711 | E31: a2 | F31: =F30/C30 -> 0.3410017552 | G31: =-F31 -> -0.3410017552 | I31: d2 | J31: =T24 -> 0.003457076981
B32: K3 | C32: 0.2906101251 | E32: a3 | F32: =SQRT(F30^2+F31^2+F33^2-2*C32*F31*F33) -> 1.108875655 | I32: d | J32: =SQRT(J30^2+J31^2) -> 0.0059432773
E33: a4 | F33: =F30/C31 -> 0.4500167092 | G33: =-F33 -> -0.4500167092
I34: =MIN(J37:J55) -> -0.00102419565 | K34: =SQRT(SUM(L37:L47)) -> 0
F35: Generated by Four-Bar | I35: =MAX(J37:J55) -> 0.00102419446 | J35: =MAX(-I34,I35) -> 0.00102419565
B36: x | C36: q | F36: f | H36: ygen | I36: yactual | J36: e
B37: 0 | C37: =B37*$D$7+$C$4 -> 85.42686938 | D37: =C37*D_R+PI() -> 4.632572794 | E37: =FourBar($G$31,$F$32,$G$33,$F$30,-1,D37) -> 4.413780441 | F37: =E37-PI()-$D$5 -> -0.00107253393 | H37: =F37/$D$8 -> -0.00102419446 | I37: =SIN(B37*D_R) -> 0 | J37: =I37-H37 -> 0.00102419446
B38: 5 | C38: =B38*$D$7+$C$4 -> 92.09353605 | D38: 4.748928077 | E38: =FourBar($G$31,$F$32,$G$33,$F$30,-1,D38) -> 4.506676588 | F38: =E38-PI()-$D$5 -> 0.09182361357 | H38: =F38/$D$8 -> 0.08768509195 | I38: 0.08715574275 | J38: =I38-H38 -> -0.0005293492066
B39: 10 | C39: 98.76020272 | D39: 4.865283361 | E39: 4.597769456 | F39: 0.1829164816 | H39: 0.1746723733 | I39: 0.1736481777 | J39: -0.00102419565
B40: 15 | C40: 105.4268694 | D40: 4.981638644 | E40: 4.686769248 | F40: 0.2719162733 | H40: 0.2596609141 | I40: 0.2588190451 | J40: -0.0008418689534
B41: 20 | C41: 112.093536 | D41: 5.097993928 | E41: 4.77334281 | F41: 0.3584898357 | H41: 0.3423325764 | I41: 0.3420201433 | J41: -0.0003124330618
B42: 25 | C42: 118.7602027 | D42: 5.214349211 | E42: 4.857108686 | F42: 0.4422557114 | H42: 0.4223230955 | I42: 0.4226182617 | J42: 0.0002951662204
B43: 30 | C43: 125.4268694 | D43: 5.330704495 | E43: 4.937633351 | F43: 0.5227803765 | H43: 0.4992184864 | I43: 0.5 | J43: 0.000781513574
B44: 35 | C44: 132.093536 | D44: 5.447059778 | E44: 5.014429829 | F44: 0.5995768544 | H44: 0.5725537208 | I44: 0.5735764364 | J44: 0.00102271554
B45: 40 | C45: 138.7602027 | D45: 5.563415062 | E45: 5.086960309 | F45: 0.6721073347 | H45: 0.6418152277 | I45: 0.6427876097 | J45: 0.0009723820236
B46: 45 | C46: 145.4268694 | D46: 5.679770345 | E46: 5.154644725 | F46: 0.7397917507 | H46: 0.7064490839 | I46: 0.7071067812 | J46: 0.0006576972753
B47: 50 | C47: 152.093536 | D47: 5.796125629 | E47: 5.216877209 | F47: 0.8020242346 | H47: 0.7658767285 | I47: 0.7660444431 | J47: 0.0001677145992
B48: 55 | C48: 158.7602027 | D48: 5.912480912 | E48: 5.273051597 | F48: 0.8581986226 | H48: =F48/$D$8 -> 0.8195193176 | I48: 0.8191520443 | J48: -0.0003672733186
B49: 60 | C49: 165.4268694 | D49: 6.028836196 | E49: 5.322595385 | F49: 0.9077424099 | H49: 0.8668301496 | I49: 0.8660254038 | J49: -0.0008047457804
B50: 65 | C50: 172.093536 | D50: 6.145191479 | E50: 5.36500879 | F50: 0.9501558149 | H50: 0.9073319679 | I50: 0.906307787 | J50: -0.001024180893
B51: 70 | C51: 178.7602027 | D51: 6.261546763 | E51: 5.399902579 | F51: 0.9850496039 | H51: 0.9406530819 | I51: 0.9396926208 | J51: -0.0009604611306
B52: 75 | C52: 185.4268694 | D52: 6.377902046 | E52: 5.427026454 | F52: 1.012173479 | H52: 0.9665544749 | I52: 0.9659258263 | J52: -0.0006286486222
B53: 80 | C53: 192.093536 | D53: 6.494257329 | E53: 5.446280555 | F53: 1.03142758 | H53: 0.9849407871 | I53: 0.984807753 | J53: -0.0001330340587
B54: 85 | C54: 198.7602027 | D54: 6.610612613 | E54: 5.457706355 | F54: 1.042853381 | H54: 0.9958516228 | I54: 0.9961946981 | J54: 0.00034307533
B55: 90 | C55: 205.4268694 | D55: 6.726967896 | E55: 5.461458608 | F55: 1.046605633 | H55: 0.9994347598 | I55: 1 | J55: 0.0005652401562
F64: Generated by Four-Bar
B65: x | C65: y(required) | D65: q | E65: fg | F65: freqired | G65: y (generated) | H65: e
B66: 1 | C66: 0 | D66: 30 | E66: 31.25002124 | F66: 30 | G66: 0.01444081163 | H66: -0.01444081163
B67: 1.1 | C67: 0.0953101798 | D67: 39 | E67: 38.00078726 | F67: 38.25021142 | G67: 0.09242871891 | H67: 0.002881460895
B68: 1.2 | C68: 0.1823215568 | D68: 48 | E68: 44.86368623 | F68: 45.78206435 | G68: 0.1717120367 | H68: 0.01060952008
B69: 1.3 | C69: 0.2623642645 | D69: 57 | E69: 51.74521066 | F69: 52.7106974 | G69: 0.2512105243 | H69: 0.01115374014
B70: 1.4 | C70: 0.3364722366 | D70: 66 | E70: 58.55671384 | F70: 59.12560963 | G70: 0.3299000947 | H70: 0.006572141875
B71: 1.5 | C71: 0.4054651081 | D71: 75 | E71: 65.20142848 | F71: 65.09775004 | G71: 0.4066628484 | H71: -0.001197740268
B72: 1.6 | C72: 0.4700036292 | D72: 84 | E72: 71.55500197 | F72: 70.68431431 | G72: 0.4800622075 | H72: -0.01005857828
B73: 1.7 | C73: 0.5306282511 | D73: 93 | E73: 77.42935908 | F73: 75.93208478 | G73: 0.547925442 | H73: -0.01729719098
B74: 1.8 | C74: 0.5877866649 | D74: 102 | E74: 82.48529441 | F74: 80.87981439 | G74: 0.6063338974 | H74: -0.01854723246
B75: 1.9 | C75: 0.6418538862 | D75: 111 | E75: 85.93175883 | F75: 85.55996511 | G75: 0.6461490156 | H75: -0.004295129387
B76: 2 | C76: 0.6931471806 | D76: 120 | E76: 83.94243616 | F76: 90 | G76: 0.623167459 | H76: 0.06997972156
B83: qin | C83: 28
B84: fin | C84: 14
B87: x | C87: y(required) | D87: q | E87: fg | F87: freqired | G87: y (generated) | H87: e
B88: 1 | C88: 0 | D88: 28 | E88: 13.84887412 | F88: 14 | G88: -0.001745874663 | H88: 0.001745874663
B89: 1.1 | C89: 0.0953101798 | D89: 37 | E89: 22.4425745 | F89: 22.25021142 | G89: 0.09753244518 | H89: -0.00222226538
B90: 1.2 | C90: 0.1823215568 | D90: 46 | E90: 29.74673753 | F90: 29.78206435 | G90: 0.1819134453 | H90: 0.0004081114795
B91: 1.3 | C91: 0.2623642645 | D91: 55 | E91: 36.52276731 | F91: 36.7106974 | G91: 0.2601932109 | H91: 0.002171053526
B92: 1.4 | C92: 0.3364722366 | D92: 64 | E92: 42.93747896 | F92: 43.12560963 | G92: 0.3342988659 | H92: 0.002173370765
B93: 1.5 | C93: 0.4054651081 | D93: 73 | E93: 49.03115155 | F93: 49.09775004 | G93: 0.4046957321 | H93: 0.000769375976
B94: 1.6 | C94: 0.4700036292 | D94: 82 | E94: 54.7954243 | F94: 54.68431431 | G94: 0.4712872222 | H94: -0.001283592953
B95: 1.7 | C95: 0.5306282511 | D95: 91 | E95: 60.1949678 | F95: 59.93208478 | G95: 0.5336651947 | H95: -0.003036943672
B96: 1.8 | C96: 0.5877866649 | D96: 100 | E96: 65.17450984 | F96: 64.87981439 | G96: 0.5911911202 | H96: -0.003404455299
B97: 1.9 | C97: 0.6418538862 | D97: 109 | E97: 69.66097135 | F97: 69.55996511 | G97: 0.643020756 | H97: -0.00116686984
B98: 2 | C98: 0.6931471806 | D98: 118 | E98: 73.56412432 | F98: 74 | G98: 0.6881117473 | H98: 0.005035433298

Sheet Sheet1 (3)
A1: Synthesize y=sinx | I1: =PI()/180 -> 0.01745329252
A2: 0<x<90 | L2: Optimal Synthesis of Function Generators Without the Branch Defect
L3: Tinunu&Gupta
B4: qin | C4: 82.69000314 | D4: =C4*D_R -> 1.443212813 | L4: Transactions of the ASME | N4: Vol. 106, SEPTEMBER 1984
B5: fin | C5: 70 | D5: =C5*D_R -> 1.221730476
B7: Dq | C7: 120 | D7: =C7/90 -> 1.333333333
B8: Df | C8: 60 | D8: =C8*D_R -> 1.047197551
B10: y=sin(X)
B11: x | C11: y(required) | D11: q | E11: f | G11: q | H11: f | J11: cosf | K11: cosq | L11: cos(f-q) | M11: cos2f | N11: cos2q | O11: cosfcosq | P11: cosq*cos(f-q) | Q11: cosf*cos(f-q)
B12: 0 | C12: =SIN(B12*D_R) -> 0 | D12: =B12*$D$7 -> 0 | E12: 0 | G12: =D12*D_R+$D$4 -> 1.443212813 | H12: =E12*D_R+$D$5 -> 1.221730476 | J12: =COS(H12) -> 0.3420201433 | K12: =COS(G12) -> 0.1272376705 | L12: =COS(H12-G12) -> 0.9755728874 | M12: =J12^2 -> 0.1169777784 | N12: =K12^2 -> 0.01618942479 | O12: =J12*K12 -> 0.04351784629 | P12: =L12*K12 -> 0.1241296216 | Q12: =J12*L12 -> 0.3336655788 | S12: =(-SIN(G12)*$C$31-SIN(H12-G12))*($C$30*COS(H12)-$C$31*COS(G12)+$C$32-COS(H12-G12)) -> -0.00283551002 | T12: =(-SIN(H12)*$C$30+SIN(H12-G12))*($C$30*COS(H12)-$C$31*COS(G12)+$C$32-COS(H12-G12)) -> -0.004214239528
B13: 10 | C13: 0.1736481777 | D13: =B13*$D$7 -> 13.33333333 | E13: =C13*60 -> 10.41889066 | G13: 1.67592338 | H13: 1.403574423 | J13: =COS(H13) -> 0.1664436506 | K13: =COS(G13) -> -0.1049335217 | L13: =COS(H13-G13) -> 0.9631416973 | M13: =J13^2 -> 0.02770348883 | N13: 0.01101104398 | O13: =J13*K13 -> -0.01746551843 | P13: =L13*K13 -> -0.1010658502 | Q13: =J13*L13 -> 0.1603088202 | S13: =(-SIN(G13)*$C$31-SIN(H13-G13))*($C$30*COS(H13)-$C$31*COS(G13)+$C$32-COS(H13-G13)) -> -0.01359306082 | T13: =(-SIN(H13)*$C$30+SIN(H13-G13))*($C$30*COS(H13)-$C$31*COS(G13)+$C$32-COS(H13-G13)) -> -0.02183350885
B14: =B13+10 -> 20 | C14: 0.3420201433 | D14: 26.66666667 | E14: =C14*60 -> 20.5212086 | G14: 1.908633947 | H14: 1.579893133 | J14: -0.009096680689 | K14: -0.3314477206 | L14: 0.9464496238 | M14: 8.274959956e-05 | N14: 0.1098575915 | O14: 0.00301507408 | P14: -0.3136985705 | Q14: -0.008609550016 | S14: -0.001820964671 | T14: -0.003272793752
B15: =B14+10 -> 30 | C15: 0.5 | D15: 40 | E15: 30 | G15: 2.141344514 | H15: 1.745329252 | J15: -0.1736481777 | K15: -0.5400934871 | L15: 0.9226054075 | M15: 0.03015368961 | N15: 0.2917009748 | O15: 0.0937862498 | P15: -0.4982931718 | Q15: -0.1602087477 | S15: 0.008924137555 | T15: 0.01904480158
B16: 40 | C16: 0.6427876097 | D16: 53.33333333 | E16: 38.56725658 | G16: 2.374055081 | H16: 1.894856087 | J16: -0.3184176261 | K16: -0.7196226739 | L16: 0.8873645261 | M16: 0.1013897846 | N16: 0.5178567928 | O16: 0.2291405435 | P16: -0.638567633 | Q16: -0.2825525059 | S16: 0.008229663324 | T16: 0.02331134375
B17: 50 | C17: 0.7660444431 | D17: 66.66666667 | E17: 45.96266659 | G17: 2.606765648 | H17: 2.023930341 | J17: -0.4377854077 | K17: -0.8603568161 | L17: 0.8349054739 | M17: 0.1916560632 | N17: 0.7402138509 | O17: 0.3766516595 | P17: -0.7183166153 | Q17: -0.3655094333 | S17: 0.001807295805 | T17: 0.008780626903
B18: 60 | C18: 0.8660254038 | D18: 80 | E18: 51.96152423 | G18: 2.839476215 | H18: 2.128630159 | J18: -0.529349656 | K18: -0.9547088996 | L18: 0.7578101165 | M18: 0.2802110583 | N18: 0.9114690829 | O18: 0.5053748275 | P18: -0.7234880624 | Q18: -0.4011465245 | S18: -0.0002980702014 | T18: -0.01034820383
B19: 70 | C19: 0.9396926208 | D19: 93.33333333 | E19: 56.38155725 | G19: 3.072186782 | H19: 2.205774288 | J19: -0.5931597712 | K19: -0.9975923792 | L19: 0.6475644264 | M19: 0.3518385142 | N19: 0.9951905551 | O19: 0.5917316674 | P19: -0.6460053368 | Q19: -0.384109167 | S19: 0.003056819993 | T19: -0.01822822906
B20: 80 | C20: 0.984807753 | D20: 106.6666667 | E20: 59.08846518 | G20: 3.304897349 | H20: 2.253018744 | J20: -0.6305195605 | K20: -0.9866953955 | L20: 0.4959406252 | M20: 0.3975549162 | N20: 0.9735678034 | O20: 0.6221307471 | P20: -0.4893423313 | Q20: -0.312700265 | S20: 0.003022581238 | T20: -0.008270817706
B21: 90 | C21: 1 | D21: 120 | E21: 60 | G21: 3.537607916 | H21: 2.268928028 | J21: -0.6427876097 | K21: -0.9226054075 | L21: 0.2975414544 | M21: 0.4131759112 | N21: 0.851200738 | O21: 0.5930393246 | P21: -0.2745133548 | Q21: -0.1912559602 | S21: -0.006493110931 | T21: 0.01194706071
J22: 1 | K22: 1 | L22: 1 | M22: 1 | N22: 1 | O22: 1 | P22: 1 | Q22: 1 | S22: 0 | T22: 0
J24: =SUM(J12:J22) -> -1.826300696 | K24: =SUM(K12:K22) -> -5.290818631 | L24: 8.728896239 | M24: =SUM(M12:M22) -> 2.910743954 | N24: 6.418257858 | O24: 4.040922421 | P24: -3.279161304 | Q24: -0.6121177547 | S24: =SUM(S12:S22) -> -2.187265291e-07 | T24: =SUM(T12:T22) -> -0.003083959783
C26: =M24 -> 2.910743954 | D26: =-O24 -> -4.040922421 | E26: =J24 -> -1.826300696 | G26: =Q24 -> -0.6121177547 | M26: =M27/D_R -> 272.6783415
C27: =O24 -> 4.040922421 | D27: =-N24 -> -6.418257858 | E27: =K24 -> -5.290818631 | G27: =P24 -> -3.279161304 | K27: 75 | L27: =K27*D_R -> 1.308996939 | M27: =FourBar(ABS(F31),F32,ABS(F33),F30,-1,L27+PI()) -> 4.759134857
C28: =J24 -> -1.826300696 | D28: =-K24 -> 5.290818631 | E28: 11 | G28: =L24 -> 8.728896239
K29: Design Parameter
B30: K1 | C30: =MMULT(MINVERSE(C26:E28),G26:G28) -> 3.395488966 | E30: a1 | F30: 1 | I30: d1 | J30: =S24 -> -2.187265291e-07 | K30: qin
B31: K2 | C31: 2.53492822 | E31: a2 | F31: =F30/C30 -> 0.2945083933 | G31: =-F31 -> -0.2945083933 | I31: d2 | J31: =T24 -> -0.003083959783
B32: K3 | C32: 0.1380213315 | E32: a3 | F32: =SQRT(F30^2+F31^2+F33^2-2*C32*F31*F33) -> 1.100129846 | I32: d | J32: =SQRT(J30^2+J31^2) -> 0.003083959791
E33: a4 | F33: =F30/C31 -> 0.3944884877 | G33: =-F33 -> -0.3944884877
I34: =MIN(J37:J55) -> -0.001593709736 | K34: =SQRT(SUM(L37:L47)) -> 0
F35: Generated by Four-Bar | I35: =MAX(J37:J55) -> 0.001661874054 | J35: =MAX(-I34,I35) -> 0.001661874054
B36: x | C36: q | F36: f | H36: ygen | I36: yactual | J36: e
B37: 0 | C37: =B37*$D$7+$C$4 -> 82.69000314 | D37: =C37*D_R+PI() -> 4.584805467 | E37: =FourBar($G$31,$F$32,$G$33,$F$30,-1,D37) -> 4.363685462 | F37: =E37-PI()-$D$5 -> 0.0003623317234 | H37: =F37/$D$8 -> 0.000346001309 | I37: =SIN(B37*D_R) -> 0 | J37: =I37-H37 -> -0.000346001309
B38: 5 | C38: =B38*$D$7+$C$4 -> 89.35666981 | D38: 4.70116075 | E38: =FourBar($G$31,$F$32,$G$33,$F$30,-1,D38) -> 4.456147506 | F38: =E38-PI()-$D$5 -> 0.09282437624 | H38: =F38/$D$8 -> 0.08864074991 | I38: 0.08715574275 | J38: =I38-H38 -> -0.001485007164
B39: 10 | C39: 96.02333648 | D39: 4.817516034 | E39: 4.546836005 | F39: 0.1835128754 | H39: 0.1752418874 | I39: 0.1736481777 | J39: -0.001593709736
B40: 15 | C40: 102.6900031 | D40: 4.933871317 | E40: 4.635469068 | F40: 0.2721459384 | H40: 0.259880228 | I40: 0.2588190451 | J40: -0.001061182884
B41: 20 | C41: 109.3566698 | D41: 5.050226601 | E41: 4.721722524 | F41: 0.3583993938 | H41: 0.3422462108 | I41: 0.3420201433 | J41: -0.0002260674534
B42: 25 | C42: 116.0233365 | D42: 5.166581884 | E42: 4.805224883 | F42: 0.4419017526 | H42: 0.4219850897 | I42: 0.4226182617 | J42: 0.0006331720166
B43: 30 | C43: 122.6900031 | D43: 5.282937168 | E43: 4.885553168 | F43: 0.522230038 | H43: 0.4986929519 | I43: 0.5 | J43: 0.001307048095
B44: 35 | C44: 129.3566698 | D44: 5.399292451 | E44: 4.962230659 | F44: 0.5989075291 | H44: 0.5719145623 | I44: 0.5735764364 | J44: 0.001661874054
B45: 40 | C45: 136.0233365 | D45: 5.515647735 | E45: 5.034728008 | F45: 0.6714048775 | H45: 0.6411444304 | I45: 0.6427876097 | J45: 0.001643179241
B46: 45 | C46: 142.6900031 | D46: 5.632003018 | E46: 5.102469559 | F46: 0.7391464295 | H46: 0.7058328475 | I46: 0.7071067812 | J46: 0.001273933652
B47: 50 | C47: 149.3566698 | D47: 5.748358302 | E47: 5.16484683 | F47: 0.8015237005 | H47: 0.7653987536 | I47: 0.7660444431 | J47: 0.0006456894967
B48: 55 | C48: 156.0233365 | D48: 5.864713585 | E48: 5.221240631 | F48: 0.8579175012 | H48: =F48/$D$8 -> 0.8192508665 | I48: 0.8191520443 | J48: -9.882223106e-05
B49: 60 | C49: 162.6900031 | D49: 5.981068869 | E49: 5.271052001 | F49: 0.9077288715 | H49: 0.8668172213 | I49: 0.8660254038 | J49: -0.0007918174962
B50: 65 | C50: 169.3566698 | D50: 6.097424152 | E50: 5.313739755 | F50: 0.9504166246 | H50: 0.9075810229 | I50: 0.906307787 | J50: -0.001273235814
B51: 70 | C51: 176.0233365 | D51: 6.213779435 | E51: 5.3488595 | F51: 0.9855363698 | H51: 0.9411179091 | I51: 0.9396926208 | J51: -0.001425288297
B52: 75 | C52: 182.6900031 | D52: 6.330134719 | E52: 5.376096612 | F52: 1.012773482 | H52: 0.9671274357 | I52: 0.9659258263 | J52: -0.00120160944
B53: 80 | C53: 189.3566698 | D53: 6.446490002 | E53: 5.395285256 | F53: 1.031962126 | H53: 0.9854512409 | I53: 0.984807753 | J53: -0.0006434878434
B54: 85 | C54: 196.0233365 | D54: 6.562845286 | E54: 5.406408089 | F54: 1.043084959 | H54: 0.9960727638 | I54: 0.9961946981 | J54: 0.0001219343231
B55: 90 | C55: 202.6900031 | D55: 6.679200569 | E55: 5.409576093 | F55: 1.046252963 | H55: 0.999097985 | I55: 1 | J55: 0.0009020150043
F64: Generated by Four-Bar
B65: x | C65: y(required) | D65: q | E65: fg | F65: freqired | G65: y (generated) | H65: e
B66: 1 | C66: 0 | D66: 30 | E66: 31.25002124 | F66: 30 | G66: 0.01444081163 | H66: -0.01444081163
B67: 1.1 | C67: 0.0953101798 | D67: 39 | E67: 38.00078726 | F67: 38.25021142 | G67: 0.09242871891 | H67: 0.002881460895
B68: 1.2 | C68: 0.1823215568 | D68: 48 | E68: 44.86368623 | F68: 45.78206435 | G68: 0.1717120367 | H68: 0.01060952008
B69: 1.3 | C69: 0.2623642645 | D69: 57 | E69: 51.74521066 | F69: 52.7106974 | G69: 0.2512105243 | H69: 0.01115374014
B70: 1.4 | C70: 0.3364722366 | D70: 66 | E70: 58.55671384 | F70: 59.12560963 | G70: 0.3299000947 | H70: 0.006572141875
B71: 1.5 | C71: 0.4054651081 | D71: 75 | E71: 65.20142848 | F71: 65.09775004 | G71: 0.4066628484 | H71: -0.001197740268
B72: 1.6 | C72: 0.4700036292 | D72: 84 | E72: 71.55500197 | F72: 70.68431431 | G72: 0.4800622075 | H72: -0.01005857828
B73: 1.7 | C73: 0.5306282511 | D73: 93 | E73: 77.42935908 | F73: 75.93208478 | G73: 0.547925442 | H73: -0.01729719098
B74: 1.8 | C74: 0.5877866649 | D74: 102 | E74: 82.48529441 | F74: 80.87981439 | G74: 0.6063338974 | H74: -0.01854723246
B75: 1.9 | C75: 0.6418538862 | D75: 111 | E75: 85.93175883 | F75: 85.55996511 | G75: 0.6461490156 | H75: -0.004295129387
B76: 2 | C76: 0.6931471806 | D76: 120 | E76: 83.94243616 | F76: 90 | G76: 0.623167459 | H76: 0.06997972156
B83: qin | C83: 28
B84: fin | C84: 14
B87: x | C87: y(required) | D87: q | E87: fg | F87: freqired | G87: y (generated) | H87: e
B88: 1 | C88: 0 | D88: 28 | E88: 13.84887412 | F88: 14 | G88: -0.001745874663 | H88: 0.001745874663
B89: 1.1 | C89: 0.0953101798 | D89: 37 | E89: 22.4425745 | F89: 22.25021142 | G89: 0.09753244518 | H89: -0.00222226538
B90: 1.2 | C90: 0.1823215568 | D90: 46 | E90: 29.74673753 | F90: 29.78206435 | G90: 0.1819134453 | H90: 0.0004081114795
B91: 1.3 | C91: 0.2623642645 | D91: 55 | E91: 36.52276731 | F91: 36.7106974 | G91: 0.2601932109 | H91: 0.002171053526
B92: 1.4 | C92: 0.3364722366 | D92: 64 | E92: 42.93747896 | F92: 43.12560963 | G92: 0.3342988659 | H92: 0.002173370765
B93: 1.5 | C93: 0.4054651081 | D93: 73 | E93: 49.03115155 | F93: 49.09775004 | G93: 0.4046957321 | H93: 0.000769375976
B94: 1.6 | C94: 0.4700036292 | D94: 82 | E94: 54.7954243 | F94: 54.68431431 | G94: 0.4712872222 | H94: -0.001283592953
B95: 1.7 | C95: 0.5306282511 | D95: 91 | E95: 60.1949678 | F95: 59.93208478 | G95: 0.5336651947 | H95: -0.003036943672
B96: 1.8 | C96: 0.5877866649 | D96: 100 | E96: 65.17450984 | F96: 64.87981439 | G96: 0.5911911202 | H96: -0.003404455299
B97: 1.9 | C97: 0.6418538862 | D97: 109 | E97: 69.66097135 | F97: 69.55996511 | G97: 0.643020756 | H97: -0.00116686984
B98: 2 | C98: 0.6931471806 | D98: 118 | E98: 73.56412432 | F98: 74 | G98: 0.6881117473 | H98: 0.005035433298

Sheet Least_4DV_2LOGX
A1: Synthesize | I1: =PI()/180 -> 0.01745329252
A2: y=log x | C2: 1<x<10 | L2: Optimal Synthesis of Function Generators Without the Branch Defect
L3: Tinunu&Gupta
B4: qin | C4: 30 | D4: =C4*D_R -> 0.5235987756 | L4: Transactions of the ASME | N4: Vol. 106, SEPTEMBER 1984
B5: fin | C5: 348.8419873 | D5: =C5*D_R -> 6.088441247 | N5: qin | O5: 30
N6: fin | O6: 348.5001421 | P6: 310
B7: Dq | C7: 90 | D7: =C7/9 -> 10 | E7: =D7*D_R -> 0.1745329252 | N7: qin | O7: 30
B8: Df | C8: 60 | D8: =C8/LOG(10) -> 60 | E8: =D8*D_R -> 1.047197551 | N8: fin | O8: 177.5664523 | P8: 100 | AB8: f is variable
AB9: qin | AC9: 80
B10: y=log(X) | AB10: fin | AC10: 132.6195193
B11: x | C11: y(required) | D11: q | E11: f | G11: q | H11: f | J11: cosf | K11: cosq | L11: cos(f-q) | M11: cos2f | N11: cos2q | O11: cosfcosq | P11: cosq*cos(f-q) | Q11: cosf*cos(f-q)
B12: 1 | C12: =LOG(B12) -> 0 | D12: =(B12-$B$12)*$D$7+$C$4 -> 30 | E12: =$C$5+$D$8*C12 -> 348.8419873 | G12: =D12*D_R -> 0.5235987756 | H12: =E12*D_R -> 6.088441247 | J12: =COS(H12) -> 0.98109723 | K12: =COS(G12) -> 0.8660254038 | L12: =COS(H12-G12) -> 0.7528974049 | M12: =J12^2 -> 0.9625517746 | N12: =K12^2 -> 0.75 | O12: =J12*K12 -> 0.8496551247 | P12: =L12*K12 -> 0.6520282791 | Q12: =J12*L12 -> 0.7386655584 | S12: =(-SIN(G12)*$C$31-SIN(H12-G12))*($C$30*COS(H12)-$C$31*COS(G12)+$C$32-COS(H12-G12)) -> 0.102995923 | T12: =(-SIN(H12)*$C$30+SIN(H12-G12))*($C$30*COS(H12)-$C$31*COS(G12)+$C$32-COS(H12-G12)) -> -0.07674542581
B13: 2 | C13: =LOG(B13) -> 0.3010299957 | D13: =(B13-$B$12)*$D$7+$C$4 -> 40 | E13: =$C$5+$D$8*C13 -> 366.903787 | G13: 0.6981317008 | H13: 6.403679121 | J13: =COS(H13) -> 0.9927493992 | K13: =COS(G13) -> 0.7660444431 | L13: =COS(H13-G13) -> 0.8377548097 | M13: =J13^2 -> 0.9855513697 | N13: 0.5868240888 | O13: =J13*K13 -> 0.7604901607 | P13: =L13*K13 -> 0.6417574167 | Q13: =J13*L13 -> 0.8316805841 | S13: =(-SIN(G13)*$C$31-SIN(H13-G13))*($C$30*COS(H13)-$C$31*COS(G13)+$C$32-COS(H13-G13)) -> 0.01838968444 | T13: =(-SIN(H13)*$C$30+SIN(H13-G13))*($C$30*COS(H13)-$C$31*COS(G13)+$C$32-COS(H13-G13)) -> -0.01539910814
B14: 3 | C14: 0.4771212547 | D14: 50 | E14: 377.4692625 | G14: 0.872664626 | H14: 6.588081456 | J14: 0.9538781331 | K14: 0.6427876097 | L14: 0.8431030794 | M14: 0.9098834928 | N14: 0.4131759112 | O14: 0.6131410451 | P14: 0.5419362131 | Q14: 0.8042175914 | S14: -0.01837726971 | T14: 0.01644371606
B15: 4 | C15: 0.6020599913 | D15: 60 | E15: 384.9655867 | G15: 1.047197551 | H15: 6.718916995 | J15: 0.9065614585 | K15: 0.5 | L15: 0.8188073923 | M15: 0.8218536781 | N15: 0.25 | O15: 0.4532807293 | P15: 0.4094036962 | Q15: 0.7422992239 | S15: -0.04340603609 | T15: 0.04038602257
B16: 5 | C16: 0.6989700043 | D16: 70 | E16: 390.7801875 | G16: 1.221730476 | H16: 6.820400924 | J16: 0.8591369064 | K16: 0.3420201433 | L16: 0.774725891 | M16: 0.738116224 | N16: 0.1169777784 | O16: 0.2938421279 | P16: 0.2649718603 | Q16: 0.6655956054 | S16: -0.05954299388 | T16: 0.05686178879
B17: 6 | C17: 0.7781512504 | D17: 80 | E17: 395.5310623 | G17: 1.396263402 | H17: 6.903319331 | J17: 0.813800577 | K17: 0.1736481777 | L17: 0.7136303346 | M17: 0.6622713791 | N17: 0.03015368961 | O17: 0.1413149872 | P17: 0.1239206071 | Q17: 0.5807527781 | S17: -0.06361092182 | T17: 0.06201694758
B18: 7 | C18: 0.84509804 | D18: 90 | E18: 399.5478697 | G18: 1.570796327 | H18: 6.973425845 | J18: 0.7710928815 | K18: 6.125742275e-17 | L18: 0.6367226775 | M18: 0.5945842319 | N18: 3.752471841e-33 | O18: 4.723516262e-17 | P18: 3.900399023e-17 | Q18: 0.4909723241 | S18: -0.05126986284 | T18: 0.05095850068
B19: 8 | C19: 0.903089987 | D19: 100 | E19: 403.0273865 | G19: 1.745329252 | H19: 7.03415487 | J19: 0.7310276337 | K19: -0.1736481777 | L19: 0.545039844 | M19: 0.5344014012 | N19: 0.03015368961 | O19: -0.1269416164 | P19: -0.09464517567 | Q19: 0.3984391874 | S19: -0.0189065285 | T19: 0.01917002797
B20: 9 | C20: 0.9542425094 | D20: 110 | E20: 406.0965378 | G20: 1.919862177 | H20: 7.087721666 | J20: 0.6934453673 | K20: -0.3420201433 | L20: 0.4398849045 | M20: 0.4808664774 | N20: 0.1169777784 | O20: -0.2371722839 | P20: -0.1504494981 | Q20: 0.3050361492 | S20: 0.03523831577 | T20: -0.03651567625
B21: 10 | C21: 1 | D21: 120 | E21: 408.8419873 | G21: 2.094395102 | H21: 7.135638798 | J21: 0.6581379017 | K21: -0.5 | L21: 0.3229593282 | M21: 0.4331454977 | N21: 0.25 | O21: -0.3290689509 | P21: -0.1614796641 | Q21: 0.2125517746 | S21: 0.110348078 | T21: -0.1171767981
J24: =SUM(J12:J22) -> 8.360927488 | K24: =SUM(K12:K22) -> 2.274857457 | L24: 6.685525666 | M24: =SUM(M12:M22) -> 7.123225527 | N24: 2.544262936 | O24: 2.418541324 | P24: 2.227443735 | Q24: 5.770210777 | S24: =SUM(S12:S22) -> 0.01185838835 | T24: =SUM(T12:T22) -> -4.63978693e-09
C26: =M24 -> 7.123225527 | D26: =-O24 -> -2.418541324 | E26: =J24 -> 8.360927488 | G26: =Q24 -> 5.770210777 | M26: =M27/D_R -> 337.5610058
C27: =O24 -> 2.418541324 | D27: =-N24 -> -2.544262936 | E27: =K24 -> 2.274857457 | G27: =P24 -> 2.227443735 | K27: 75 | L27: =K27*D_R -> 1.308996939 | M27: =FourBar(ABS(F31),F32,ABS(F33),F30,-1,L27+PI()) -> 5.891550978
C28: =J24 -> 8.360927488 | D28: =-K24 -> -2.274857457 | E28: 10 | G28: =L24 -> 6.685525666
K29: 4 Design Parameter
B30: K1 | C30: =MMULT(MINVERSE(C26:E28),G26:G28) -> 0.3840566881 | E30: a1 | F30: 1 | I30: d1 | J30: =S24 -> 0.01185838835 | L30: fin
B31: K2 | C31: -0.250743219 | E31: a2 | F31: =F30/C30 -> 2.603782283 | G31: =-F31 -> -2.603782283 | I31: d2 | J31: =T24 -> -4.63978693e-09
B32: K3 | C32: 0.2904050464 | E32: a3 | F32: =SQRT(F30^2+F31^2+F33^2-2*C32*F31*F33) -> 5.45126174 | I32: d | J32: =SQRT(J30^2+J31^2) -> 0.01185838835
E33: a4 | F33: =F30/C31 -> -3.988143744 | G33: =-F33 -> 3.988143744
I34: =MIN(J37:J55) -> -0.2361257589 | K34: =SQRT(SUM(L37:L47)) -> 0
F35: Generated by Four-Bar | I35: =MAX(J37:J55) -> 0.07744200512 | J35: =MAX(-I34,I35) -> 0.2361257589 | K35: =SQRT(SUM(K37:K55)) -> 0.343151554
B36: x | C36: q | F36: f | H36: ygen | I36: yactual | J36: e
B37: 1 | C37: =(B37-$B$37)*$D$7+$C$4 -> 30 | D37: =C37*D_R -> 0.5235987756 | E37: =FourBar($F$31,$F$32,$G$33,$F$30,-1,D37) -> 3.19411891 | F37: =E37/D_R+180 -> 363.0095328 | H37: =(F37-$C$5)/$D$8 -> 0.2361257589 | I37: =LOG(B37) -> 0 | J37: =I37-H37 -> -0.2361257589 | K37: =J37^2 -> 0.05575537399
B38: 1.5 | C38: =(B38-$B$37)*$D$7+$C$4 -> 35 | D38: 0.6108652382 | E38: =FourBar($F$31,$F$32,$G$33,$F$30,-1,D38) -> 3.252301116 | F38: 366.3431276 | H38: =(F38-$C$5)/$D$8 -> 0.2916856729 | I38: =LOG(B38) -> 0.1760912591 | J38: =I38-H38 -> -0.1155944139 | K38: =J38^2 -> 0.01336206851
B39: 2 | C39: 40 | D39: 0.6981317008 | E39: =FourBar($F$31,$F$32,$G$33,$F$30,-1,D39) -> 3.306778905 | F39: 369.464475 | H39: 0.3437081294 | I39: 0.3010299957 | J39: -0.04267813372 | K39: 0.001821423098
B40: 2.5 | C40: 45 | D40: 0.7853981634 | E40: =FourBar($F$31,$F$32,$G$33,$F$30,-1,D40) -> 3.358580854 | F40: 372.4325081 | H40: 0.3931753473 | I40: 0.3979400087 | J40: 0.004764661401 | K40: 2.270199827e-05
B41: 3 | C41: 50 | D41: 0.872664626 | E41: =FourBar($F$31,$F$32,$G$33,$F$30,-1,D41) -> 3.408449649 | F41: 375.2897796 | H41: 0.4407965388 | I41: 0.4771212547 | J41: 0.03632471591 | K41: 0.001319484986
B42: 3.5 | C42: 55 | D42: 0.9599310886 | E42: =FourBar($F$31,$F$32,$G$33,$F$30,-1,D42) -> 3.456931463 | F42: 378.0675829 | H42: 0.4870932609 | I42: 0.5440680444 | J42: 0.05697478341 | K42: 0.003246125945
B43: 4 | C43: 60 | D43: 1.047197551 | E43: =FourBar($F$31,$F$32,$G$33,$F$30,-1,D43) -> 3.504436637 | F43: 380.7894289 | H43: 0.5324573603 | I43: 0.6020599913 | J43: 0.06960263105 | K43: 0.00484452625
B44: 4.5 | C44: 65 | D44: 1.134464014 | E44: =FourBar($F$31,$F$32,$G$33,$F$30,-1,D44) -> 3.551280538 | F44: 383.4733867 | H44: 0.5771899906 | I44: 0.6532125138 | J44: 0.07602252315 | K44: 0.005779424026
B45: 5 | C45: 70 | D45: 1.221730476 | E45: =FourBar($F$31,$F$32,$G$33,$F$30,-1,D45) -> 3.597711192 | F45: 386.1336672 | H45: 0.6215279992 | I45: 0.6989700043 | J45: 0.07744200512 | K45: 0.005997264158
B46: 5.5 | C46: 75 | D46: 1.308996939 | E46: =FourBar($F$31,$F$32,$G$33,$F$30,-1,D46) -> 3.643928165 | F46: 388.7817047 | H46: 0.665661957 | I46: 0.7403626895 | J46: 0.0747007325 | K46: 0.005580199436
B47: 6 | C47: 80 | D47: 1.396263402 | E47: =FourBar($F$31,$F$32,$G$33,$F$30,-1,D47) -> 3.690095634 | F47: 391.4269058 | H47: 0.7097486428 | I47: 0.7781512504 | J47: 0.06840260761 | K47: 0.004678916728
B48: 6.5 | C48: 85 | D48: 1.483529864 | E48: =FourBar($F$31,$F$32,$G$33,$F$30,-1,D48) -> 3.736351573 | F48: 394.0771759 | H48: 0.753919811 | I48: 0.8129133566 | J48: 0.05899354567 | K48: 0.00348023843
B49: 7 | C49: 90 | D49: 1.570796327 | E49: =FourBar($F$31,$F$32,$G$33,$F$30,-1,D49) -> 3.782814291 | F49: 396.7392936 | H49: 0.7982884386 | I49: 0.84509804 | J49: 0.04680960142 | K49: 0.002191138785
B50: 7.5 | C50: 95 | D50: 1.658062789 | E50: =FourBar($F$31,$F$32,$G$33,$F$30,-1,D50) -> 3.829587161 | F50: 399.4191816 | H50: 0.8429532388 | I50: 0.8750612634 | J50: 0.03210802461 | K50: 0.001030925244
B51: 8 | C51: 100 | D51: 1.745329252 | E51: =FourBar($F$31,$F$32,$G$33,$F$30,-1,D51) -> 3.876762078 | F51: 402.1221052 | H51: 0.8880019664 | I51: 0.903089987 | J51: 0.01508802056 | K51: 0.0002276483645
B52: 8.5 | C52: 105 | D52: 1.832595715 | E52: =FourBar($F$31,$F$32,$G$33,$F$30,-1,D52) -> 3.924422032 | F52: 404.8528195 | H52: 0.9335138705 | I52: 0.9294189257 | J52: -0.004094944831 | K52: 1.676857317e-05
B53: 9 | C53: 110 | D53: 1.919862177 | E53: =FourBar($F$31,$F$32,$G$33,$F$30,-1,D53) -> 3.972643036 | F53: 407.6156795 | H53: 0.979561537 | I53: 0.9542425094 | J53: -0.02531902752 | K53: 0.0006410531547
B54: 9.5 | C54: 115 | D54: 2.00712864 | E54: =FourBar($F$31,$F$32,$G$33,$F$30,-1,D54) -> 4.021495591 | F54: 410.4147247 | H54: 1.026212291 | I54: 0.9777236053 | J54: -0.04848868541 | K54: 0.002351152613
B55: 10 | C55: 120 | D55: 2.094395102 | E55: =FourBar($F$31,$F$32,$G$33,$F$30,-1,D55) -> 4.071045824 | F55: 413.2537439 | H55: 1.073529278 | I55: 1 | J55: -0.07352927783 | K55: 0.005406554699
F64: Generated by Four-Bar
B65: x | C65: y(required) | D65: q | E65: fg | F65: freqired | G65: y (generated) | H65: e
B66: 1 | C66: 0 | D66: 30 | E66: 31.25002124 | F66: 30 | G66: 0.01444081163 | H66: -0.01444081163
B67: 1.1 | C67: 0.0953101798 | D67: 39 | E67: 38.00078726 | F67: 38.25021142 | G67: 0.09242871891 | H67: 0.002881460895
B68: 1.2 | C68: 0.1823215568 | D68: 48 | E68: 44.86368623 | F68: 45.78206435 | G68: 0.1717120367 | H68: 0.01060952008
B69: 1.3 | C69: 0.2623642645 | D69: 57 | E69: 51.74521066 | F69: 52.7106974 | G69: 0.2512105243 | H69: 0.01115374014
B70: 1.4 | C70: 0.3364722366 | D70: 66 | E70: 58.55671384 | F70: 59.12560963 | G70: 0.3299000947 | H70: 0.006572141875
B71: 1.5 | C71: 0.4054651081 | D71: 75 | E71: 65.20142848 | F71: 65.09775004 | G71: 0.4066628484 | H71: -0.001197740268
B72: 1.6 | C72: 0.4700036292 | D72: 84 | E72: 71.55500197 | F72: 70.68431431 | G72: 0.4800622075 | H72: -0.01005857828
B73: 1.7 | C73: 0.5306282511 | D73: 93 | E73: 77.42935908 | F73: 75.93208478 | G73: 0.547925442 | H73: -0.01729719098
B74: 1.8 | C74: 0.5877866649 | D74: 102 | E74: 82.48529441 | F74: 80.87981439 | G74: 0.6063338974 | H74: -0.01854723246
B75: 1.9 | C75: 0.6418538862 | D75: 111 | E75: 85.93175883 | F75: 85.55996511 | G75: 0.6461490156 | H75: -0.004295129387
B76: 2 | C76: 0.6931471806 | D76: 120 | E76: 83.94243616 | F76: 90 | G76: 0.623167459 | H76: 0.06997972156
B83: qin | C83: 28
B84: fin | C84: 14
B87: x | C87: y(required) | D87: q | E87: fg | F87: freqired | G87: y (generated) | H87: e
B88: 1 | C88: 0 | D88: 28 | E88: 13.84887412 | F88: 14 | G88: -0.001745874663 | H88: 0.001745874663
B89: 1.1 | C89: 0.0953101798 | D89: 37 | E89: 22.4425745 | F89: 22.25021142 | G89: 0.09753244518 | H89: -0.00222226538
B90: 1.2 | C90: 0.1823215568 | D90: 46 | E90: 29.74673753 | F90: 29.78206435 | G90: 0.1819134453 | H90: 0.0004081114795
B91: 1.3 | C91: 0.2623642645 | D91: 55 | E91: 36.52276731 | F91: 36.7106974 | G91: 0.2601932109 | H91: 0.002171053526
B92: 1.4 | C92: 0.3364722366 | D92: 64 | E92: 42.93747896 | F92: 43.12560963 | G92: 0.3342988659 | H92: 0.002173370765
B93: 1.5 | C93: 0.4054651081 | D93: 73 | E93: 49.03115155 | F93: 49.09775004 | G93: 0.4046957321 | H93: 0.000769375976
B94: 1.6 | C94: 0.4700036292 | D94: 82 | E94: 54.7954243 | F94: 54.68431431 | G94: 0.4712872222 | H94: -0.001283592953
B95: 1.7 | C95: 0.5306282511 | D95: 91 | E95: 60.1949678 | F95: 59.93208478 | G95: 0.5336651947 | H95: -0.003036943672
B96: 1.8 | C96: 0.5877866649 | D96: 100 | E96: 65.17450984 | F96: 64.87981439 | G96: 0.5911911202 | H96: -0.003404455299
B97: 1.9 | C97: 0.6418538862 | D97: 109 | E97: 69.66097135 | F97: 69.55996511 | G97: 0.643020756 | H97: -0.00116686984
B98: 2 | C98: 0.6931471806 | D98: 118 | E98: 73.56412432 | F98: 74 | G98: 0.6881117473 | H98: 0.005035433298
